Workbook

Sheet Information
A1: Southampton City Council NO2 Diffusion Tube Survey
A3: Information
A4: • Southampton City Council monitor nitrogen dioxide (NO2) across the city using NO2 diffusion tubes
A5: • Monitoring is undertaken in accordance with the Local Air Quality Management Technical Guidance (LAQM TG): https://laqm.defra.gov.uk/technical-guidance/
A6: • Data is collected monthly and is averaged at the end of the year to compare with the annual mean nitrogen dioxide UK objective
A7: • Data is bias adjusted in accordance with the LAQM National Bias Adjustment Spreadsheet: https://laqm.defra.gov.uk/bias-adjustment-factors/national-bias.html
A8: • The latest version of the bias adjustment factor has been calculated based on the following version: 03/19 (Gradko 20% TEA in water)
A9: • Exceedances of the annual mean nitrogen dioxide UK objective (40 µg/m3) are shown in red. However, some exceedances are not representative of relevant receptors. Refer to the associated Annual Status Report for details.
A10: • 60 µg/m3 is used as an indicator of potential exceedances of the hourly mean NO2 UK Objective. Results over 60 µg/m3 are underlined.
A11: • Corrections for distance and annualisations are carried out in accordance with the LAQM TG and calculations are detailed in the associated Annual Status Report for the data year
A12: • Due to ongoing quality assurance and quality control (QA QC) checks the data on this sheet is subject to change. A log of changes is held on "QA QC Log"
A13: • "Missing" indicates where diffusion tubes are abscent from site on collection
A14: • "Error" indicates where the validation process has identified an error that may have occurred through tube collection, analytical error or interference (i.e. insects in tubes)
A16: For more information please contact: air.quality@southampton.gov.uk

Sheet 2017
A1: Southampton City Council NO2 Diffusion Tube Data 2017
A2: Status
A3: Bias Adjustment factor | B3: 0.87
A4: Other comments | B4: Time weighted average applied in accordance with LAQM
A7: Site ID | B7: Site Name | C7: 2017-01-01 | D7: 2017-02-01 | E7: 2017-03-01 | F7: 2017-04-01 | G7: 2017-05-01 | H7: 2017-06-01 | I7: 2017-07-01 | J7: 2017-08-01 | K7: 2017-09-01 | L7: 2017-10-01 | M7: 2017-11-01 | N7: 2017-12-01 | O7: Bias Adjusted Time Weighted Annual Mean
A8: N100 | B8: 6 Sandringham Road | C8: 33.22 | D8: 22.49 | E8: 19.62 | F8: 15.1 | G8: 14.84 | H8: 13.4 | I8: 16.17 | J8: 15.08 | K8: 14.69 | L8: 22.08 | M8: 26.21 | N8: 20.89 | O8: 16.73696842
A9: N101 | B9: Redbridge School Fence | C9: 75.07 | D9: 54.37 | E9: 67.59 | F9: 50.48 | G9: 46.73 | H9: 35.84 | I9: 47.4 | J9: 50.55 | K9: 57.61 | L9: 57.49 | M9: 64.93 | N9: 57.44 | O9: 48.2387589
A10: N102 | B10: 64 Burgess Road | C10: 52.63 | D10: 57.13 | E10: 37.16 | F10: 27.75 | G10: 32.77 | H10: 29.89 | I10: 27.01 | J10: 27.74 | K10: 32.38 | L10: 35.3 | M10: 39.89 | N10: 32.29 | O10: 30.88328417
A11: N103 | B11: 485 Millbrook Road | C11: 49.58 | D11: 37.6 | E11: 42.8 | F11: 30.7 | G11: 35.03 | H11: 29.51 | I11: 30.57 | J11: 32.51 | K11: 35.36 | L11: 39.13 | M11: 35.51 | N11: 38.3 | O11: 31.50157973
A12: N104 | B12: Regents Park Junction | C12: 58.15 | D12: 50.53 | E12: 39.58 | F12: 37.14 | G12: 46.46 | H12: 36.35 | I12: 40.69 | J12: 34.66 | K12: 42.56 | L12: 42.16 | M12: 41.66 | N12: 24.95 | O12: 35.64280356
A13: N106 | B13: 2 Romsey Road, Oakhill | C13: 52.8 | D13: 41.26 | E13: 49.03 | F13: 38.05 | G13: 43.03 | H13: 40.17 | I13: 41.3 | J13: 40.1 | K13: 36.94 | L13: 43.87 | M13: 40 | N13: 35.23 | O13: 36.27959426
A14: N107 | B14: Cranbury Place | C14: 68.76 | D14: 65.76 | E14: 53.01 | F14: 43.23 | G14: 51.53 | H14: 42.19 | I14: 50.44 | J14: 49.56 | K14: 52 | L14: 56.07 | M14: 62.57 | N14: 32.61 | O14: 45.26984583
A15: N109 | B15: 72 Bevois Valley | C15: 61.55 | D15: 54.26 | E15: 42.42 | F15: 38.43 | G15: 44.12 | H15: 32.15 | I15: 36.49 | J15: 35.65 | K15: Missing | L15: 42.59 | M15: 44.14 | N15: 38.35 | O15: 36.59282703
A16: N110 | B16: Brintons Road 1 | C16: 46.99 | D16: 36.3 | E16: 32.2 | F16: 24.65 | G16: 31.85 | H16: 24.02 | I16: 28.05 | J16: 27.91 | K16: 31.48 | L16: 35.48 | M16: 31.78 | N16: 37.03 | O16: 27.72982397
A17: N111 | B17: Brintons Road 2 | C17: 46.53 | D17: 36.38 | E17: 29.13 | F17: 25.26 | G17: 31.19 | H17: 25.03 | I17: 28.78 | J17: 27.9 | K17: 33.92 | L17: 34.52 | M17: 34.3 | N17: 32.74 | O17: 27.53914298
A18: N112 | B18: Brintons Road 3 | C18: 48.36 | D18: 38.35 | E18: 29.17 | F18: 25.85 | G18: 33.66 | H18: 26.32 | I18: 27.5 | J18: 29.65 | K18: 30.95 | L18: Missing | M18: 33.85 | N18: 34.57 | O18: 27.83841108
A19: N113 | B19: 206 Bitterne Road | C19: 50.31 | D19: 41.19 | E19: 41.22 | F19: 41.25 | G19: 31.79 | H19: 37.42 | I19: 34.52 | J19: 34.15 | K19: 36.08 | L19: 43.83 | M19: 52.24 | N19: 40.37 | O19: 35.22332055
A20: N114 | B20: Bitterne Library | C20: 53.74 | D20: 40.32 | E20: 44.37 | F20: 35.58 | G20: 35.76 | H20: 40.43 | I20: 33.81 | J20: 32.03 | K20: 35.55 | L20: 40.46 | M20: 42.51 | N20: 38.38 | O20: 34.35653836
A21: N115 | B21: 54 Redbridge Road | C21: 45.75 | D21: 48.06 | E21: 51.33 | F21: 36.48 | G21: 44.5 | H21: 46.77 | I21: 38.12 | J21: 32.71 | K21: 36.47 | L21: 40.38 | M21: 39.14 | N21: 36.13 | O21: 35.93080932
A22: N116 | B22: 57 Redbridge Road | C22: 51.64 | D22: 39.96 | E22: 36.35 | F22: 40.74 | G22: 43.98 | H22: 31.62 | I22: 38.15 | J22: 36.02 | K22: 38.07 | L22: 37.96 | M22: 43.09 | N22: 38.05 | O22: 34.34583616
A23: N117 | B23: Victoria Road (Lamp Post) | C23: 50.06 | D23: 39.35 | E23: 40.9 | F23: 34.64 | G23: 36.77 | H23: 40.87 | I23: 34.45 | J23: 37.27 | K23: 36.71 | L23: Missing | M23: 43.17 | N23: 38.38 | O23: 34.23875801
A24: N118 | B24: 3 Rockstone Lane | C24: 60.44 | D24: 51.24 | E24: 38.54 | F24: 34.93 | G24: 39.75 | H24: 26.2 | I24: 32.07 | J24: Missing | K24: 35.29 | L24: 41.68 | M24: 41.05 | N24: 37.02 | O24: 34.09417914
A25: N120 | B25: 6-9 Canute Road | C25: 61.62 | D25: 42.69 | E25: 44.89 | F25: 47.3 | G25: 44.37 | H25: 43.06 | I25: 41.8 | J25: 43.01 | K25: 41.82 | L25: 47.06 | M25: 49.09 | N25: 45.23 | O25: 39.99342198
A26: N122 | B26: 151 Paynes Road | C26: 44.49 | D26: 37.46 | E26: 42.21 | F26: 30.49 | G26: 34.47 | H26: 29.73 | I26: 30.62 | J26: 33.67 | K26: 33.54 | L26: 36.46 | M26: 41.09 | N26: 42.21 | O26: 31.58784082
A27: N123 | B27: 102 St Andrews Road | C27: 54.33 | D27: 38.8 | E27: 40.15 | F27: 32.61 | G27: 39.05 | H27: 27.63 | I27: 31.54 | J27: 13.84 | K27: 37.13 | L27: 39.01 | M27: 38.35 | N27: 33.94 | O27: 30.32367025
A28: N124 | B28: 305 Millbrook Road | C28: 53.63 | D28: Missing | E28: 38.54 | F28: 37.9 | G28: 42.83 | H28: 36.42 | I28: 38.81 | J28: 35.92 | K28: 35.97 | L28: 41.06 | M28: 47.73 | N28: 39.87 | O28: 35.45192349
A29: N125 | B29: Princes Court | C29: 55.8 | D29: 38.57 | E29: 41.21 | F29: 40.18 | G29: 35.03 | H29: 43.11 | I29: 33.68 | J29: 34.34 | K29: 33.42 | L29: 34.87 | M29: 43.4 | N29: 41.14 | O29: 34.52593808
A30: N126 | B30: 107 St Andrews Road | C30: 55.27 | D30: 42.6 | E30: 34.08 | F30: 35.89 | G30: 35.6 | H30: 30.81 | I30: 33.32 | J30: 32.27 | K30: 30.46 | L30: 40.79 | M30: 42.62 | N30: 36.29 | O30: 32.25157107
A31: N129 | B31: South West House | C31: 45.76 | D31: 34.2 | E31: 31.17 | F31: Missing | G31: 33.55 | H31: 37.86 | I31: 29.53 | J31: 30.63 | K31: 29.89 | L31: 34.89 | M31: 37.88 | N31: 35.67 | O31: 30.16740629
A32: N130 | B32: 367A Millbrook Road | C32: 53.63 | D32: 48.46 | E32: 52.23 | F32: 38.16 | G32: 51.23 | H32: 44.88 | I32: 43.67 | J32: 38.7 | K32: 52.98 | L32: 47.58 | M32: 48.1 | N32: 46.7 | O32: 40.83632219
A33: N131 | B33: 142 Romsey Road | C33: 52.9 | D33: 41.21 | E33: 48.05 | F33: 42.39 | G33: 42.8 | H33: 26.81 | I33: 41.87 | J33: 37.33 | K33: 34.21 | L33: 41.51 | M33: 40.23 | N33: 39.81 | O33: 35.24850164
A34: N133 | B34: 539 Millbrook Road | C34: 43.88 | D34: 35.08 | E34: 37.48 | F34: 29.7 | G34: 33.66 | H34: 28.26 | I34: 30.38 | J34: 29.07 | K34: 34.14 | L34: 36.27 | M34: 37.4 | N34: 32.11 | O34: 29.4293589
A35: N134 | B35: 435 Millbrook Road West Ladbrokes | C35: 55.7 | D35: 41.42 | E35: 48.64 | F35: 43.06 | G35: 44.08 | H35: 34.49 | I35: 35.33 | J35: 35.13 | K35: 40.79 | L35: 40.23 | M35: 41.45 | N35: 40.69 | O35: 36.13894192
A36: N138 | B36: 66 Burgess Road | C36: 67.45 | D36: 33.34 | E36: 56.31 | F36: 39.2 | G36: 54.59 | H36: 44.7 | I36: 46.65 | J36: 42.64 | K36: 40.65 | L36: 43.83 | M36: 51.16 | N36: 41.51 | O36: 40.35536083
A37: N140 | B37: 5 Commercial Road | C37: 61.25 | D37: 55.76 | E37: 63.22 | F37: 46.15 | G37: 54.71 | H37: 44.31 | I37: 52.11 | J37: 48.6 | K37: 54.41 | L37: 52.7 | M37: 53.32 | N37: 39.87 | O37: 45.37635577
A38: N141 | B38: Town Quay Road | C38: 48.56 | D38: 37.08 | E38: 38.47 | F38: 43.81 | G38: 41.07 | H38: 41.88 | I38: 33.22 | J38: 33.48 | K38: 28.2 | L38: 34.91 | M38: 41.76 | N38: 30.89 | O38: 32.96905632
A39: N143 | B39: 102 Romsey Road | C39: 48.61 | D39: 41.15 | E39: 46.39 | F39: 40.15 | G39: 40.37 | H39: 36.44 | I39: 37.65 | J39: 35.98 | K39: 43.3 | L39: 42.69 | M39: 46.71 | N39: 40.75 | O39: 36.1917623
A40: N144 | B40: 208 Northam Road | C40: 52.4 | D40: Missing | E40: 43.09 | F40: 38 | G40: 32.12 | H40: 44.47 | I40: 36.02 | J40: 36.7 | K40: 35.39 | L40: 43.05 | M40: 49.01 | N40: 47.48 | O40: 36.37645549
A41: N146 | B41: 222 Northam Road | C41: 44.83 | D41: 35.34 | E41: 33.74 | F41: 30.69 | G41: 31.76 | H41: 34.8 | I41: 30.01 | J41: 29 | K41: 32.91 | L41: 34.92 | M41: 40.3 | N41: 38.47 | O41: 30.23023562
A42: N149 | B42: 44B Burgess Road | C42: 51.17 | D42: 41.07 | E42: 36.18 | F42: 24.09 | G42: 29.55 | H42: 29.28 | I42: 30.7 | J42: 28.45 | K42: 20.24 | L42: 37.5 | M42: 38.17 | N42: 31.71 | O42: 28.54523167
A43: N151 | B43: 134 Romsey Road | C43: 48.47 | D43: 40.45 | E43: 47.46 | F43: 42.61 | G43: 43.95 | H43: 42.35 | I43: 40.91 | J43: 39.61 | K43: 37.9 | L43: 42.91 | M43: 48.26 | N43: 44.54 | O43: 37.6461123
A44: N152 | B44: M271 | C44: 64.9 | D44: 51.69 | E44: 54.66 | F44: 54.64 | G44: 53.22 | H44: 46.36 | I44: 48.73 | J44: 50.15 | K44: 49.94 | L44: 52.42 | M44: 57.84 | N44: 46.81 | O44: 45.78144986
A45: N153 | B45: Coniston Road | C45: 47.49 | D45: 36.12 | E45: 36.78 | F45: 30.57 | G45: 42.12 | H45: 30.15 | I45: 35.54 | J45: 33.79 | K45: 29.49 | L45: 30.04 | M45: 29.67 | N45: 31.02 | O45: 29.80932247
A46: N154 | B46: Oceana Boulevard DG5 | C46: 50.62 | D46: 34.6 | E46: 39.24 | F46: 32.63 | G46: 33.86 | H46: 39.59 | I46: Missing | J46: 37.57 | K46: 34.33 | L46: 39.23 | M46: 46.48 | N46: 37.8 | O46: 33.83816955
A47: N157 | B47: Admiralty House | C47: 41.79 | D47: Missing | E47: 32.5 | F47: 28.05 | G47: 25.38 | H47: 29.67 | I47: 27.73 | J47: Missing | K47: Missing | L47: 32.71 | M47: 37.85 | N47: 31.22 | O47: 27.84072764
A48: N158 | B48: 24 Portsmouth Road | C48: 51.03 | D48: 45.46 | E48: 40.23 | F48: 37.82 | G48: 44.08 | H48: 41.48 | I48: 33.67 | J48: 36.76 | K48: 40.51 | L48: 42.97 | M48: 45.75 | N48: 45.52 | O48: 36.56588489
A49: N159 | B49: 35 Portsmouth Road | C49: 48.45 | D49: 35.99 | E49: 35.79 | F49: 40.6 | G49: 33.54 | H49: 32.29 | I49: 30.22 | J49: 33.59 | K49: 37.27 | L49: 38.24 | M49: 43.06 | N49: 29.42 | O49: 31.87577225
A50: N160 | B50: 2 Dorset Street | C50: 52.58 | D50: 40.35 | E50: 34.53 | F50: 31.44 | G50: 34.6 | H50: 22.06 | I50: 29.07 | J50: 26.71 | K50: Missing | L50: 52.8 | M50: 35.73 | N50: 59.72 | O50: 32.56697387
A51: N161 | B51: 30 Addis Square | C51: 54.32 | D51: 40.93 | E51: 35.53 | F51: 35.99 | G51: 28.67 | H51: 29.1 | I51: 28.16 | J51: 31.64 | K51: 31.71 | L51: 31.19 | M51: 42.23 | N51: 34.75 | O51: 30.43943917
A52: N162 | B52: 263A Portswood Road | C52: 60.81 | D52: 43.98 | E52: 32.84 | F52: 40.65 | G52: Missing | H52: 42.99 | I52: Missing | J52: 36.98 | K52: 42.88 | L52: 43.37 | M52: 45.39 | N52: 45.78 | O52: 37.35713522
A53: N163 | B53: 285 Portswood Road | C53: 45.21 | D53: 37.99 | E53: 43.15 | F53: 31.19 | G53: 28.01 | H53: 28.74 | I53: 24.42 | J53: 24.97 | K53: 29.18 | L53: 36.53 | M53: 36.5 | N53: 32.33 | O53: 28.68329583
A54: N164 | B54: 168 Portswood Road(Int.Food) | C54: 56.52 | D54: 45.96 | E54: 41.06 | F54: 32.17 | G54: 35.2 | H54: 34.73 | I54: 34.82 | J54: 31.79 | K54: 33.98 | L54: 37.82 | M54: 38.22 | N54: 30.19 | O54: 32.42980583
A55: N165 | B55: 8 The Broadway | C55: 55.69 | D55: 39.65 | E55: 38.09 | F55: 33.1 | G55: 36.66 | H55: 32.06 | I55: 34.89 | J55: 28.05 | K55: 33.35 | L55: 38.55 | M55: 37.28 | N55: 31.66 | O55: 31.3912675
A56: N166 | B56: 14 New Road | C56: 58.96 | D56: Missing | E56: 40.75 | F56: 34.37 | G56: 41.11 | H56: 34.75 | I56: 33.61 | J56: 37.87 | K56: 39.14 | L56: Missing | M56: Missing | N56: Missing | O56: 37.323
A57: N167 | B57: 13 Romsey Road | C57: 56.13 | D57: 38.63 | E57: 43.75 | F57: 48.01 | G57: 40.33 | H57: 33.45 | I57: 30.21 | J57: 33.19 | K57: 33.54 | L57: 35.68 | M57: 45.87 | N57: 36.35 | O57: 34.46485984
A58: N168 | B58: 23 Romsey Road | C58: 61.39 | D58: 35.84 | E58: 46.07 | F58: 48.01 | G58: 42.44 | H58: 33.63 | I58: 32.09 | J58: 33.33 | K58: 36.44 | L58: 37.84 | M58: 49.45 | N58: 38.98 | O58: 35.8899959
A59: N169 | B59: 150 Romsey Road | C59: 61.92 | D59: 47.24 | E59: 56.3 | F59: 47.23 | G59: 53.53 | H59: 43.3 | I59: 50.46 | J59: 43.25 | K59: 49.34 | L59: 48.61 | M59: 49.52 | N59: 44.93 | O59: 42.97833279
A60: N170 | B60: Union Castle House (2) | C60: 57.73 | D60: 44.74 | E60: 48.9 | F60: 46.36 | G60: 41.55 | H60: 44.79 | I60: 38.87 | J60: 42.27 | K60: 43.54 | L60: 46.6 | M60: 50.33 | N60: Missing | O60: 40.07743036
A61: N171 | B61: 132 Newton Road | C61: 34.6 | D61: 23.75 | E61: 21.66 | F61: 16.05 | G61: 16.27 | H61: 14.65 | I61: 14.13 | J61: 14.45 | K61: 16.58 | L61: 22.13 | M61: Missing | N61: 47.23 | O61: 18.77002385
A62: N172 | B62: 4 New Road | C62: 62.5 | D62: 55.65 | E62: 55.82 | F62: 42.67 | G62: 50.79 | H62: 39.74 | I62: 33.59 | J62: 49.98 | K62: 47.75 | L62: Missing | M62: 53.48 | N62: 44.65 | O62: 42.06917463
A63: N173 | B63: 19A Burgess Road | C63: 44.57 | D63: 36.89 | E63: 34.25 | F63: 26.56 | G63: 33.62 | H63: 27.91 | I63: 31.11 | J63: 29.76 | K63: 30.28 | L63: 33.84 | M63: 34.23 | N63: 28.27 | O63: 28.05083
A64: N174 | B64: 166A Bitterne Road West | C64: 58.14 | D64: 45.81 | E64: 48.74 | F64: 44.45 | G64: 45.9 | H64: 54.78 | I64: 42.51 | J64: 38.95 | K64: 41.83 | L64: 48.17 | M64: 50.48 | N64: 45.99 | O64: 41.16046274
A65: N175 | B65: 38 Shirley High Street | C65: 62.69 | D65: 44.44 | E65: 42.3 | F65: 40.18 | G65: 41.34 | H65: 42.37 | I65: Missing | J65: 40.95 | K65: 36.92 | L65: 45.29 | M65: 48.54 | N65: 46.26 | O65: 38.85761327
A66: N176 | B66: Salisbury Arms, Shirley High Street | C66: 61.86 | D66: 41.24 | E66: 49.03 | F66: 41.48 | G66: 47.29 | H66: 33.64 | I66: 33.73 | J66: 36.09 | K66: 33.08 | L66: 38.36 | M66: 40.84 | N66: 33.88 | O66: 35.45202459
A67: N177 | B67: 95 Shirley High Street (Windsor Castle Pub) | C67: 62.14 | D67: 49.15 | E67: 38.58 | F67: 44.52 | G67: 48.71 | H67: 35.65 | I67: 40.63 | J67: 38.13 | K67: 36.48 | L67: 38.1 | M67: 43.37 | N67: 42.55 | O67: 37.5115
A68: N178 | B68: 2 Gover Road | C68: 38.56 | D68: 29.34 | E68: 32.29 | F68: 26 | G68: 34.16 | H68: 24.26 | I68: 27.03 | J68: 24.1 | K68: 24.87 | L68: 28.08 | M68: 26.57 | N68: 24.52 | O68: 24.52763589
A69: N180 | B69: Opposite 5 Commercial Road | C69: 66.92 | D69: Missing | E69: 45.33 | F69: 35.41 | G69: 46.29 | H69: 38.76 | I69: 41.03 | J69: Missing | K69: 48.43 | L69: 47.67 | M69: 46.19 | N69: 40.19 | O69: 39.66359
A70: N184 | B70: Redbridge New AMS | C70: Missing | D70: 56.03 | E70: Missing | F70: 38 | G70: 46.92 | H70: 40.28 | I70: 41.22 | J70: 36.95 | K70: 39.77 | L70: 80.72 | M70: 56.25 | N70: 46.62 | O70: 41.76051513
A71: N185 | B71: Redbridge Causeway 1 | C71: 70.02 | D71: 70.16 | E71: 61.11 | F71: 58.84 | G71: 53 | H71: 37.26 | I71: 50.66 | J71: 55.68 | K71: 49.35 | L71: 48.27 | M71: 71.07 | N71: 68.36 | O71: 50.24887049
A72: N186 | B72: Redbridge Causeway 2 | C72: 62.76 | D72: Missing | E72: 41.08 | F72: 53.28 | G72: 48.39 | H72: 36 | I72: 34.96 | J72: 43.88 | K72: 39.45 | L72: 42.21 | M72: 50 | N72: 41.09 | O72: 39.04205841

Sheet 2018
A1: Southampton City Council NO2 Diffusion Tube Data 2018
A2: Status
A3: Bias Adjustment factor | B3: 0.92
A4: Other comments | B4: Bias adjustment factor updated in June 2019 from 0.93 to 0.92 following national bias adjustment factor update (v 06/19 Gradko 20% TEA in water)
A6: Site ID | B6: Site Name | C6: 2018-01-01 | D6: 2018-02-01 | E6: 2018-03-01 | F6: 2018-04-01 | G6: 2018-05-01 | H6: 2018-06-01 | I6: 2018-07-01 | J6: 2018-08-01 | K6: 2018-09-01 | L6: 2018-10-01 | M6: 2018-11-01 | N6: 2018-12-01 | O6: Bias Adjusted Annual Mean
A7: N100 | B7: 6 Sandringham Road | C7: 23.35502051 | D7: 20.99271235 | E7: 18.6 | F7: 16.60953356 | G7: 18.1429951 | H7: 15.39067628 | I7: 16.51449866 | J7: 13.62410784 | K7: 16.8 | L7: 19.88 | M7: 20.79 | N7: 20.6 | O7: =AVERAGE(C7:N7)*0.92 -> 16.9662984
A8: N101 | B8: Redbridge School Fence | C8: 51.93231753 | D8: 39.58472793 | E8: 47.02220149 | F8: 47.47173495 | G8: 47.95416176 | H8: 41.8 | I8: 47.07134077 | J8: Missing | K8: 43.7 | L8: 40.1 | M8: 47.04 | N8: 48.41 | O8: =AVERAGE(C8:N8)*0.92 -> 41.99268779
A9: N102 | B9: 64 Burgess Road | C9: 37.56603894 | D9: 39.34009315 | E9: 36.4 | F9: 32.15491789 | G9: 28.51282966 | H9: 33.90610714 | I9: 31.23451149 | J9: 24.57191782 | K9: 34.9 | L9: 36.4 | M9: 56.85 | N9: 34.7 | O9: 32.70112523
A10: N103 | B10: 485 Millbrook Road | C10: 33.80048592 | D10: 27.13580556 | E10: 30.19199613 | F10: 35.33706134 | G10: 31.26125735 | H10: Error | I10: 29.15597619 | J10: Missing | K10: 30.5 | L10: 35 | M10: 59.3 | N10: 32.14 | O10: 31.63167759
A11: N104 | B11: Regents Park Junction | C11: 36.25773261 | D11: 34.84127022 | E11: 39.62878646 | F11: 45.76778472 | G11: 42.59219853 | H11: 32.80047321 | I11: 41.93219048 | J11: 35.24924762 | K11: 33.4 | L11: 40.3 | M11: 46.96 | N11: 39.52 | O11: 35.9758091
A12: N106 | B12: 2 Romsey Road, Oakhill | C12: 41.2217183 | D12: 38.20458133 | E12: 36.14073133 | F12: 43.53740714 | G12: 41.74183108 | H12: 40.31468899 | I12: 39.47522619 | J12: 36.70752819 | K12: 39.1 | L12: 36.8 | M12: 43.78 | N12: 39.87 | O12: 36.5618513
A13: N107 | B13: Cranbury Place | C13: 54.08345385 | D13: 52.40909568 | E13: Missing | F13: Missing | G13: 55.8116299 | H13: 50.48920402 | I13: Missing | J13: 40.65456905 | K13: 53.2 | L13: 51.5 | M13: 51.87 | N13: 54.51 | O13: 47.48507959
A14: N109 | B14: 72 Bevois Valley | C14: 44.9989859 | D14: 46.10083988 | E14: 48.4 | F14: 38.02834722 | G14: 46.85816299 | H14: 42.68057615 | I14: 41.19510119 | J14: 29.04677778 | K14: 40.2 | L14: 45.6 | M14: 42.34 | N14: 41.47 | O14: 38.86377398
A15: N110 | B15: Brintons Road 1 | C15: 41.95061771 | D15: 31.18297173 | E15: 35 | F15: 26.84915972 | G15: 29.15101263 | H15: 26.35164799 | I15: 29.36527315 | J15: 26.94470833 | K15: 30.8 | L15: 35.7 | M15: 34.22 | N15: 33.02 | O15: 29.17438
A16: N111 | B16: Brintons Road 2 | C16: 38.15733785 | D16: 31.04374375 | E16: 34.5 | F16: 31.94508565 | G16: 28.31713384 | H16: 25.75858764 | I16: 29.51390432 | J16: 23.5204527 | K16: 30.6 | L16: 36.1 | M16: 37.36 | N16: 34 | O16: 29.19591217
A17: N112 | B17: Brintons Road 3 | C17: 38.54430972 | D17: 31.8176875 | E17: 36.6 | F17: 22.82019329 | G17: 26.52776894 | H17: 26.98424569 | I17: 29.4077392 | J17: 27.57997748 | K17: 31.4 | L17: 33.9 | M17: 33.41 | N17: 32.94 | O17: 28.51478067
A18: N113 | B18: 206 Bitterne Road | C18: 41.20943348 | D18: 39.58988452 | E18: 36.4 | F18: 28.53354524 | G18: 35.23286786 | H18: 36.87493899 | I18: 35.89991954 | J18: 35.30802206 | K18: 35.79 | L18: 35.9 | M18: 31.92 | N18: 32.28 | O18: 32.5786269
A19: N114 | B19: Bitterne Library | C19: 43.42889122 | D19: 34.31764866 | E19: 44.6 | F19: 31.23620595 | G19: 32.85780238 | H19: 37.40728125 | I19: 39.24082615 | J19: 36.13423652 | K19: 35.13 | L19: 28.6 | M19: 36.48 | N19: 35.67 | O19: 33.3578884
A20: N115 | B20: 54 Redbridge Road | C20: 38.14366451 | D20: 33.97708611 | E20: 40.77127485 | F20: 40.9744294 | G20: 37.65177328 | H20: 38.16484524 | I20: 44.45057887 | J20: 28.91027976 | K20: 33.1 | L20: 34.4 | M20: 42.69 | N20: 30.55 | O20: 34.02343479
A21: N116 | B21: 57 Redbridge Road | C21: 30.45562557 | D21: 40.11980015 | E21: 36.07028318 | F21: 39.0821119 | G21: 42.62014048 | H21: 41.58412054 | I21: 41.56364583 | J21: 28.81200119 | K21: 32.7 | L21: 39.7 | M21: 37.47 | N21: 32.07 | O21: 33.90565921
A22: N117 | B22: Victoria Road (Lamp Post) | C22: 35.44280181 | D22: 31.83042731 | E22: 37.41830609 | F22: 36.85446429 | G22: 37.2794527 | H22: 36.51274856 | I22: 30.58920536 | J22: 33.01485539 | K22: 35.3 | L22: 40.6 | M22: 38.74 | N22: 36.55 | O22: 32.97680672
A23: N118 | B23: 3 Rockstone Lane | C23: 37.59470353 | D23: 43.17500491 | E23: 41.7 | F23: 33.93568171 | G23: 42.3055527 | H23: 41.47468678 | I23: 35.11411458 | J23: 28.79198148 | K23: 35.2 | L23: 41.3 | M23: 47.24 | N23: 38.79 | O23: 35.7743323
A24: N120 | B24: 6-9 Canute Road | C24: 41.13777202 | D24: 40.86341101 | E24: 42.3 | F24: 36.82170476 | G24: 41.8339119 | H24: 46.08855506 | I24: 33.80443966 | J24: 34.97079167 | K24: 45.8 | L24: 44.2 | M24: 35.61 | N24: 36.87 | O24: 36.82304493
A25: N122 | B25: 151 Paynes Road | C25: 29.96536236 | D25: 29.59671312 | E25: 29.3 | F25: 30.51185648 | G25: 31.93571814 | H25: 28.64410863 | I25: 31.26487054 | J25: 27.81283571 | K25: 33.2 | L25: 29.7 | M25: 32.55 | N25: 29.91 | O25: 27.93667898
A26: N123 | B26: 102 St Andrews Road | C26: 38.56580816 | D26: 35.23286786 | E26: 37.7 | F26: 32.94918421 | G26: 36.34321717 | H26: 40.96987946 | I26: 34.11085417 | J26: 29.93512162 | K26: 31.1 | L26: 41.9 | M26: 39.7 | N26: 42.25 | O26: 33.79136484
A27: N124 | B27: 305 Millbrook Road | C27: 40.14820848 | D27: 37.30005448 | E27: 31.31196235 | F27: 39.20678009 | G27: 40.78801593 | H27: 40.60133482 | I27: 38.32864286 | J27: 32.77590357 | K27: 34.6 | L27: 38.2 | M27: 40.83 | N27: 35.54 | O27: 34.47170253
A28: N125 | B28: Princes Court | C28: 36.73571101 | D28: 33.4065244 | E28: 34.5 | F28: Missing | G28: 44.04517976 | H28: 47.48083482 | I28: 41.49445546 | J28: 34.95393015 | K28: 39.3 | L28: 41.7 | M28: 37.28 | N28: 37.63 | O28: 35.84040952
A29: N126 | B29: 107 St Andrews Road | C29: 42.89893767 | D29: 38.22012693 | E29: 39.2 | F29: 32.82849123 | G29: 39.33128283 | H29: 39.16810565 | I29: 36.50639435 | J29: 33.11146734 | K29: 37.1 | L29: 45.9 | M29: 41.55 | N29: 36.79 | O29: 35.46636846
A30: N129 | B30: South West House | C30: 29.59618229 | D30: 29.51223601 | E30: 35.7 | F30: 30.87585119 | G30: 29.18873571 | H30: 30.9986994 | I30: 33.34976006 | J30: 23.83937847 | K30: Missing | L30: Missing | M30: 35.95 | N30: 31.77 | O30: 28.59183757
A31: N130 | B31: 367A Millbrook Road | C31: 48.75351408 | D31: 34.76270802 | E31: 41.27495253 | F31: 44.71675 | G31: 43.80622794 | H31: 41.2565253 | I31: 45.37194048 | J31: 35.60960238 | K31: 82.2 | L31: 42.4 | M31: Missing | N31: 40.37 | O31: 41.86185846
A32: N131 | B32: 142 Romsey Road | C32: 35.05269048 | D32: 39.37452099 | E32: 39.82253781 | F32: 44.45467381 | G32: 43.18280743 | H32: 39.90519494 | I32: 41.68649405 | J32: 37.01103554 | K32: 38.9 | L32: 42.3 | M32: 43 | N32: 42.55 | O32: 37.35506322
A33: N133 | B33: 539 Millbrook Road | C33: 30.81343865 | D33: 26.23764861 | E33: 32.66943512 | F33: 31.89731134 | G33: 27.18076961 | H33: 23.81207887 | I33: 29.83164137 | J33: 26.78091071 | K33: 29.4 | L33: 31.4 | M33: 35.66 | N33: 32 | O33: 27.42238129
A34: N134 | B34: 435 Millbrook Road West Ladbrokes | C34: 42.48881997 | D34: 35.68209799 | E34: 35.14892158 | F34: 40.94257986 | G34: 40.85546201 | H34: Missing | I34: 36.42449554 | J34: 33.2 | K34: 60.2 | L34: 44.1 | M34: 43.92 | N34: 35.93 | O34: 37.54372607
A35: N138 | B35: 66 Burgess Road | C35: 51.3073992 | D35: 52.52170655 | E35: 55.5 | F35: 46.47034804 | G35: 55.25519975 | H35: 59.88850446 | I35: 49.56007615 | J35: 45.94295718 | K35: 49.7 | L35: 54.5 | M35: 42.7 | N35: 47.53 | O35: 46.83384134
A36: N140 | B36: 5 Commercial Road | C36: 46.80036868 | D36: 48.68307901 | E36: 46.38991235 | F36: 50.97381905 | G36: 54.7334294 | H36: 50.7567872 | I36: 52.19001637 | J36: 40.19239414 | K36: 44.9 | L36: 51.3 | M36: Missing | N36: 47.16 | O36: 44.66849288
A37: N141 | B37: Town Quay Road | C37: 29.1621186 | D37: 37.4523256 | E37: 43.6 | F37: 36.77256548 | G37: 50.92467976 | H37: 45.12624405 | I37: 31.74849713 | J37: 31.99285995 | K37: 37.6 | L37: 39.7 | M37: 35.49 | N37: 35.08 | O37: 34.85644561
A38: N143 | B38: 102 Romsey Road | C38: 38.86098512 | D38: 32.26995093 | E38: 36.24052654 | F38: 39.72092262 | G38: 42.00523536 | H38: 36.36307143 | I38: 38.6767128 | J38: 41.14210784 | K38: 33.8 | L38: 34.5 | M38: 42.15 | N38: 42.25 | O38: 35.11176264
A39: N144 | B39: 208 Northam Road | C39: 42.56485878 | D39: 35.07316518 | E39: 35.5 | F39: 34.02076548 | G39: 31.31810476 | H39: 32.82094792 | I39: 35.86038218 | J39: 32.57645588 | K39: 36.1 | L39: 36.18 | M39: 32.89 | N39: 34.06 | O39: 32.12062548
A40: N146 | B40: 222 Northam Road | C40: 32.66124524 | D40: 30.71410104 | E40: 35.3 | F40: 26.94470833 | G40: 28.14043095 | H40: 27.68179762 | I40: 32.77646839 | J40: 23.52181985 | K40: 31.7 | L40: 28.5 | M40: 32.14 | N40: 28.58 | O40: 27.49731048
A41: N149 | B41: 44B Burgess Road | C41: 35.77560497 | D41: 37.79015818 | E41: 30.8 | F41: 30.58679657 | G41: 30.58679657 | H41: 31.53104167 | I41: 33.38929741 | J41: 27.31097801 | K41: 39.7 | L41: 29.2 | M41: 40.72 | N41: 38.48 | O41: 31.11675163
A42: N151 | B42: 134 Romsey Road | C42: 39.58374211 | D42: 34.4824321 | E42: 39.3830142 | F42: 40.90026548 | G42: 41.43194369 | H42: 39.39332738 | I42: 36.48591964 | J42: 38.35995711 | K42: 37.1 | L42: 44.8 | M42: 44.96 | N42: 41.14 | O42: 36.64824613
A43: N152 | B43: M271 | C43: 48.5064056 | D43: 40.89480556 | E43: 24.0373006 | F43: 52.00574405 | G43: 53.34888452 | H43: 49.876375 | I43: 45.20814286 | J43: 41.78477262 | K43: 44.1 | L43: 48.5 | M43: 50.39 | N43: 46.08 | O43: 41.76281969
A44: N153 | B44: Coniston Road | C44: 27.14041825 | D44: 28.67307654 | E44: 33.47818586 | F44: 36.88722381 | G44: 36.62514762 | H44: 36.0764256 | I44: 34.15180357 | J44: 18.16515595 | K44: Missing | L44: 37.8 | M44: 32.12 | N44: 30.22 | O44: 29.38458566
A45: N154 | B45: Oceana Boulevard DG5 | C45: Missing | D45: 28.21823482 | E45: 28.5 | F45: 31.03964881 | G45: 35.24924762 | H45: 34.25417708 | I45: 34.69403017 | J45: 33.69681019 | K45: 34.6 | L45: 34.95 | M45: 32.68 | N45: 27.85 | O45: 29.75214335
A46: N157 | B46: Admiralty House | C46: 29.27268199 | D46: 32.75133393 | E46: 30.1 | F46: 25.91278333 | G46: Missing | H46: 29.2174003 | I46: 27.24123851 | J46: 24.89041319 | K46: 30.25 | L46: 27.4 | M46: 26.88 | N46: 28.3 | O46: 26.11259847
A47: N158 | B47: 24 Portsmouth Road | C47: 35.10264875 | D47: 33.41865756 | E47: 35.13395929 | F47: 41.8339119 | G47: 38.73592342 | H47: 39.99203592 | I47: 39.74139732 | J47: 33.31836275 | K47: 35.8 | L47: 40.7 | M47: 39.27 | N47: 36.59 | O47: 34.4721621
A48: N159 | B48: 35 Portsmouth Road | C48: 29.79587889 | D48: 35.83497577 | E48: 34.24535721 | F48: 31.31810476 | G48: 39.71206869 | H48: 37.79771264 | I48: 27.35420238 | J48: 31.58162623 | K48: 35.5 | L48: 42.7 | M48: 31.34 | N48: 36.43 | O48: 31.71009437
A49: N160 | B49: 2 Dorset Street | C49: 37.493275 | D49: 32.10023839 | E49: 36.1 | F49: 31.89731134 | G49: 31.36242647 | H49: 27.75522414 | I49: 26.6990119 | J49: 26.3554919 | K49: 30.5 | L49: 36.1 | M49: 40.2 | N49: 35.15 | O49: 30.0313284
A50: N161 | B50: 30 Addis Square | C50: 38.56268446 | D50: 40.50799842 | E50: 40.3 | F50: 30.28617976 | G50: 36.95125379 | H50: 35.11411458 | I50: 31.51127299 | J50: 28.33016319 | K50: 33.8 | L50: 39.5 | M50: 34.74 | N50: 36.81 | O50: 32.69171448
A51: N162 | B51: 263A Portswood Road | C51: 49.15535048 | D51: 41.81668491 | E51: 39.6 | F51: 36.9363631 | G51: 36.05185595 | H51: 40.5273109 | I51: 44.16322701 | J51: 35.94220255 | K51: 39.8 | L51: Missing | M51: 40.41 | N51: 39.69 | O51: 37.14232321
A52: N163 | B52: 285 Portswood Road | C52: 34.62681667 | D52: 33.86572256 | E52: 34 | F52: 26.99384762 | G52: 28.73010238 | H52: 40.21861538 | I52: 29.4157931 | J52: 26.73768634 | K52: 29.2 | L52: 34 | M52: 32.64 | N52: 32.54 | O52: 29.36092478
A53: N164 | B53: 168 Portswood Road(Int.Food) | C53: 37.10961058 | D53: 38.92255043 | E53: 41.5 | F53: 35.5604631 | G53: 38.00104762 | H53: 40.48321154 | I53: 40.68393966 | J53: 27.72502199 | K53: 30.8 | L53: 33.6 | M53: 41.23 | N53: 35.34 | O53: 33.80661478
A54: N165 | B54: 8 The Broadway | C54: 36.25628798 | D54: 39.94459109 | E54: 36.6 | F54: 33.00522024 | G54: 38.5252 | H54: 32.08228365 | I54: 37.71863793 | J54: 31.70621412 | K54: 32.4 | L54: 33.4 | M54: 34.53 | N54: 35.11 | O54: 32.29801335
A55: N166 | B55: 14 New Road | C55: Missing | D55: 35.91877039 | E55: 42.9 | F55: 36.47945395 | G55: 36.1868649 | H55: 40.51943601 | I55: 34.13132887 | J55: 35.00178041 | K55: 42 | L55: 42.6 | M55: 44.06 | N55: 34.43 | O55: 35.48085671
A56: N167 | B56: 13 Romsey Road | C56: 28.78538408 | D56: 40.56994028 | E56: 37.52724784 | F56: 38.03380714 | G56: 49.45802703 | H56: 39.94614435 | I56: 32.6980997 | J56: 32.10433333 | K56: 29.1 | L56: 46.1 | M56: 40.1 | N56: 39.02 | O56: 34.76396209
A57: N168 | B57: 23 Romsey Road | C57: 35.3536686 | D57: 40.78864043 | E57: 37.7523179 | F57: 40.96578452 | G57: 49.73692568 | H57: 44.00013542 | I57: 33.41471429 | J57: 34.12771569 | K57: 33.4 | L57: 43.1 | M57: 40.31 | N57: 37.79 | O57: 36.09005919
A58: N169 | B58: 150 Romsey Road | C58: 41.16643661 | D58: 42.27707546 | E58: 42.61680386 | F58: 50.9083 | G58: 48.5128705 | H58: 46.64137202 | I58: 50.85916071 | J58: 42.57533701 | K58: 43.2 | L58: 48.6 | M58: 48.92 | N58: 46.37 | O58: 42.36963064
A59: N170 | B59: Union Castle House (2) | C59: 42.3 | D59: 38.58252917 | E59: 37 | F59: 40.70370833 | G59: 48.66427262 | H59: 45.96570685 | I59: 46.8913046 | J59: 36.96138773 | K59: 44.1 | L59: 43.5 | M59: 36.04 | N59: 42.95 | O59: 38.61384971
A60: N171 | B60: 132 Newton Road | C60: 47.2 | D60: Closed | O60: 43.424
A61: N172 | B61: 4 New Road | C61: 45 | D61: 38.03585461 | E61: 48.5 | F61: 43.04213487 | G61: 44.80361237 | H61: 47.09181548 | I61: 53.80751786 | J61: 39.51064189 | K61: 39.2 | L61: 45.1 | M61: 46.85 | N61: 41.73 | O61: 40.83815424
A62: N173 | B62: 19A Burgess Road | C62: 42.09283814 | D62: 34.9687442 | E62: 35.8 | F62: 29.0692598 | G62: 31.09264216 | H62: 34.88889286 | I62: 30.5030704 | J62: 28.39386227 | K62: 34.4 | L62: 34.3 | M62: 35.12 | N62: 35.12 | O62: 31.10744709
A63: N174 | B63: 166A Bitterne Road West | C63: 47.73472113 | D63: 43.81176815 | E63: 48.4 | F63: 38.72175714 | G63: 43.58654643 | H63: 44.7372247 | I63: 53.67196121 | J63: 39.70887868 | K63: 44.3 | L63: 42.7 | M63: 48.78 | N63: 39.1 | O63: 41.0360524
A64: N175 | B64: 38 Shirley High Street | C64: 39.85196071 | D64: 38.38506204 | E64: 38.84157207 | F64: 43.52102738 | G64: 42.39259459 | H64: 37.77582589 | I64: 39.92566964 | J64: 39.82690931 | K64: 42 | L64: 44.9 | M64: 42.34 | N64: 43.9 | O64: 37.84731433
A65: N176 | B65: Salisbury Arms, Shirley High Street | C65: 31.41433586 | D65: 33.91551034 | E65: 39.08150525 | F65: 37.52603452 | G65: 47.16486036 | H65: 44.83959821 | I65: 37.7963006 | J65: 21.65019118 | K65: 26.6 | L65: 42.57 | M65: 60.39 | N65: 35.8 | O65: 35.17070578
A66: N177 | B66: 95 Shirley High Street (Windsor Castle Pub) | C66: 35.3741433 | D66: 42.45967948 | E66: 46.22641806 | F66: 46.68232143 | G66: 47.21134347 | H66: 42.36215923 | I66: 33.59898661 | J66: 37.0616201 | K66: 35.5 | L66: 45.1 | M66: 45.13 | N66: 41.87 | O66: 38.22421149
A67: N178 | B67: 2 Gover Road | C67: 25.40670517 | D67: 25.08257207 | E67: 27.52618988 | F67: 30.54825595 | G67: 27.53437976 | H67: 27.80464583 | I67: 23.87350298 | J67: 17.80480119 | K67: 20.4 | L67: 27.8 | M67: 35.15 | N67: 24.28 | O67: 24.01284738
A68: N180 | B68: Opposite 5 Commercial Road | C68: Missing | D68: 38.59102238 | E68: 44.24750015 | F68: Missing | G68: 48.04502662 | H68: 44.06155952 | I68: 42.46453274 | J68: 31.65499662 | K68: 40.1 | L68: 42.5 | M68: Missing | N68: Missing | O68: 40.1 | P68: Annualised
A69: N184 | B69: Redbridge New AMS | C69: 54.63879077 | D69: 39.1 | E69: 47.23498673 | F69: 51.16628125 | G69: 38.90193452 | H69: 34.52034821 | I69: 38.88145982 | J69: 34.85613333 | K69: 35.6 | L69: Missing | M69: 47.04 | N69: 36.55 | O69: 38.3464309
A70: N185 | B70: Redbridge Causeway 1 | C70: 54.31246638 | D70: 55.26107006 | E70: 49.98891003 | F70: 59.78613095 | G70: 68.10705 | H70: 64.08581845 | I70: 58.18910417 | J70: Mssing | K70: Error | L70: 57.47 | M70: 57.38 | N70: 55.36 | O70: 53.3545306
A71: N186 | B71: Redbridge Causeway 2 | C71: 36.74206523 | D71: 48.44739244 | E71: 37.59944012 | F71: 31.40000357 | G71: 60.50684048 | H71: 58.5166994 | I71: Missing | J71: Mssing | K71: 33.4 | L71: 45.3 | M71: 33.59 | N71: 34.04 | O71: 38.59790459
A72: N187 | B72: Cobden Avenue | K72: 41.9 | L72: 31.98 | M72: 36.05 | N72: 41.68 | O72: =AVERAGE(C72:N72)*0.92 -> 34.8703

Sheet 2019
A1: Southampton City Council NO2 Diffusion Tube Data 2019
A2: Status
A3: Bias Adjustment factor | B3: 0.93
A4: Other comments | B4: Bias adjustment factor updated from 0.92 to 0.93 following national bias adjustment factor update
A7: Site ID | B7: Site Name | C7: 2019-01-01 | D7: 2019-02-01 | E7: 2019-03-01 | F7: 2019-04-01 | G7: 2019-05-01 | H7: 2019-06-01 | I7: 2019-07-01 | J7: 2019-08-01 | K7: 2019-09-01 | L7: 2019-10-01 | M7: 2019-11-01 | N7: 2019-12-01 | O7: Bias Adjusted Annual Mean
A8: N100 | B8: 6 Sandringham Road | C8: 20.20853125 | D8: 27.0473338 | E8: 19.42377601 | F8: 15.77 | G8: 13.34 | H8: 13.91 | I8: 13 | J8: 29.86761182 | K8: 16.35316337 | L8: 20.44889173 | M8: 24.5401002 | N8: 19.92139674 | O8: =(AVERAGE(C8:N8))*0.93 -> 18.12188738
A9: N101 | B9: Redbridge School Fence | C9: 54.52413244 | D9: 55.04023386 | E9: 43.19650373 | F9: 42.91 | G9: 36.29 | H9: 30.21 | I9: 38.94 | J9: 39.54990816 | K9: 32.21500161 | L9: 36.89959589 | M9: 50.34004904 | N9: 45.66618326 | O9: =(AVERAGE(C9:N9))*0.93 -> 39.19807462
A10: N103 | B10: 485 Millbrook Road | C10: 40.82655655 | D10: 47.09754575 | E10: 32.69688051 | F10: 31.33 | G10: 25.67 | H10: 26.71 | I10: 29.18 | J10: 24.98516667 | K10: 24.20986226 | L10: 30.06901077 | M10: 37.55974672 | N10: 34.20992807 | O10: 29.80221404
A11: N104 | B11: Regents Park Junction | C11: 38.94288393 | D11: 57.94116746 | E11: 34.79530175 | F11: 22.06 | G11: 31.96 | H11: 30.09 | I11: 38.21 | J11: 30.18771581 | K11: 33.54495013 | L11: 35.63470173 | M11: 43.56960059 | N11: 41.74634708 | O11: 33.99790681
A12: N106 | B12: 2 Romsey Road, Oakhill | C12: 47.3459842 | D12: 51.13984009 | E12: Missing | F12: 34.82 | G12: 31.71 | H12: 31.49 | I12: 35.89 | J12: 33.70452473 | K12: 31.24873008 | L12: 35.17420889 | M12: 44.59240123 | N12: 41.36549988 | O12: 35.38068235
A13: N107 | B13: Cranbury Place | C13: 60.59905247 | D13: 65.20323848 | E13: 61.32829238 | F13: 41.44 | G13: 47.06 | H13: 44.84 | I13: 40.46 | J13: 43.52576304 | K13: 36.68428362 | L13: 53.51466545 | M13: 53.98782866 | N13: 51.15082838 | O13: 46.48403132
A14: N109 | B14: 72 Bevois Valley | C14: 46.50032407 | D14: 55.62647133 | E14: 38.79951504 | F14: 37.73 | G14: 32.82 | H14: 39.16 | I14: 32.45 | J14: 30.17405149 | K14: 35.33104384 | L14: 45.8870306 | M14: 46.64853392 | N14: 49.25982001 | O14: 38.00497625
A15: N110 | B15: Brintons Road 1 | C15: 33.03346121 | D15: 44.55295238 | E15: 32.27938878 | F15: 28.81 | G15: 13.11 | H15: 23.7 | I15: 23.54 | J15: 27.75557523 | K15: 27.70089827 | L15: 32.70829386 | M15: 37.05927248 | N15: 34.03747771 | O15: 27.76726729
A16: N111 | B16: Brintons Road 2 | C16: 29.00065086 | D16: 46.76868745 | E16: 32.24360231 | F16: 29.49 | G16: 24.61 | H16: 24.75 | I16: 22.21 | J16: 27.69448446 | K16: 26.57484549 | L16: 32.38322327 | M16: 37.30592321 | N16: 30.11890489 | O16: 28.14414995
A17: N112 | B17: Brintons Road 3 | C17: 34.53588075 | D17: 46.26836017 | E17: 32.08256324 | F17: 27.43 | G17: 24.9 | H17: 23.31 | I17: 24.98 | J17: 27.02248594 | K17: 26.59531918 | L17: 31.57828655 | M17: 38.53917687 | N17: 32.97175707 | O17: 28.69157181
A18: N113 | B18: 206 Bitterne Road | C18: 41.13367708 | D18: 38.35661819 | E18: 42.34376869 | F18: 33.58 | G18: 27.81 | H18: 34.55 | I18: 26.11 | J18: 32.96590605 | K18: 33.19126253 | L18: 36.25239754 | M18: 39.47389591 | N18: 35.97795411 | O18: 32.68527471
A19: N114 | B19: Bitterne Library | C19: 37.26395833 | D19: 44.17669435 | E19: 39.45738323 | F19: 40.97 | G19: 30.8 | H19: 29.77 | I19: 32.29 | J19: 31.94291242 | K19: 28.99160252 | L19: 29.51476844 | M19: 38.66061464 | N19: 39.10939982 | O19: 32.77841837
A20: N115 | B20: 54 Redbridge Road | C20: 50.26539435 | D20: 45.98796196 | E20: 36.34324129 | F20: 33.23 | G20: 29.84 | H20: 30.19 | I20: 28.43 | J20: 27.30612506 | K20: 27.99719452 | L20: 33.97062051 | M20: 42.54580218 | N20: 37.01554635 | O20: 32.79194618
A21: N116 | B21: 57 Redbridge Road | C21: 44.65532589 | D21: 40.52874442 | E21: 32.68290853 | F21: 38.34 | G21: 32.52 | H21: 29.7 | I21: Missing | J21: 28.84388285 | K21: 29.04269014 | L21: 32.01348703 | M21: 43.83765701 | N21: 32.41795531 | O21: 32.51471505
A22: N117 | B22: Victoria Road (Lamp Post) | C22: 44.45975718 | D22: 44.1737062 | E22: 38.80448393 | F22: 38.16 | G22: 30.21 | H22: 33.01 | I22: 29.07 | J22: 28.50911048 | K22: 30.82436436 | L22: 33.85925552 | M22: 46.37152376 | N22: 37.00744391 | O22: 33.67062251
A23: N118 | B23: 3 Rockstone Lane | C23: 44.10099228 | D23: 52.92105814 | E23: Missing | F23: 39.18 | G23: Missing | H23: 30.99 | I23: 26.94 | J23: 30.95060441 | K23: 28.32966578 | L23: 39.90604997 | M23: 44.0708268 | N23: 39.15737938 | O23: 35.01883164
A24: N120 | B24: 6-9 Canute Road | C24: Missing | D24: Missing | E24: 49.20480826 | F24: 44.23 | G24: 31.66 | H24: 39.05 | I24: 34.41 | J24: 37.52 | K24: 30.33744477 | L24: 35.56177471 | M24: 44.22109446 | N24: Missing | O24: 35.77349596
A25: N122 | B25: 151 Paynes Road | C25: 37.73487649 | D25: 41.97875973 | E25: 33.31115553 | F25: 30.83 | G25: Missing | H25: 25.63 | I25: 30.37 | J25: 31.21781598 | K25: 30.37335324 | L25: 28.2665054 | M25: 37.00310107 | N25: 42.27306105 | O25: 31.19631132
A26: N123 | B26: 102 St Andrews Road | C26: Missing | D26: 47.83048353 | E26: 33.66408796 | F26: 38.26 | G26: 29.92 | H26: 30.17 | I26: 27.7 | J26: 27.89041791 | K26: 33.13450275 | L26: 37.33205994 | M26: 47.28781593 | N26: 33.82207207 | O26: 32.72005812
A27: N124 | B27: 305 Millbrook Road | C27: 44.51200298 | D27: 52.49745992 | E27: 35.92593699 | F27: 33.97 | G27: Missing | H27: 31.25 | I27: 35.97 | J27: 29.65466692 | K27: 31.33620909 | L27: 34.30559043 | M27: 43.95354035 | N27: 36.91134 | O27: 34.68787949
A28: N125 | B28: Princes Court | C28: 40.23279018 | D28: 43.16897353 | E28: 38.37372477 | F28: 48.15 | G28: 33.28 | H28: 36.72 | I28: 32.73 | J28: 23.29103291 | K28: 29.23975989 | L28: 52.58216561 | M28: 48.74322399 | N28: 50.99438494 | O28: 37.00671933
A29: N126 | B29: 107 St Andrews Road | C29: 39.93931944 | D29: 50.12246607 | E29: 37.1858014 | F29: 36.94 | G29: 29.97 | H29: 26.46 | I29: 29.35 | J29: 28.23548131 | K29: 29.21034541 | L29: Missing | M29: 40.65 | N29: 35.37654563 | O29: 32.41810565
A30: N129 | B30: South West House | C30: 35.2983869 | D30: 38.03027194 | E30: 35.876775 | F30: 34.13 | G30: Missing | H30: 30.09 | I30: 26.3 | J30: 28.28569596 | K30: 21.17559188 | L30: 30.91 | M30: 39.24607055 | N30: 29.74540207 | O30: 29.51382006
A31: N130 | B31: 367A Millbrook Road | C31: 45.92475744 | D31: 56.84773972 | E31: 42.91679364 | F31: 40.75 | G31: 37.53 | H31: 38.76 | I31: 43.18 | J31: 41.26017124 | K31: 33.80154154 | L31: 37.26567293 | M31: 43.65003777 | N31: 43.45535534 | O31: 39.16401039
A32: N131 | B32: 142 Romsey Road | C32: 43.9062342 | D32: 50.14102034 | E32: 38.50416398 | F32: 39.36 | G32: 32.44 | H32: 35.84 | I32: 37.23 | J32: 36.86183912 | K32: Missing | L32: 34.58147322 | M32: 44.61828242 | N32: 38.21306922 | O32: 36.49794152
A33: N133 | B33: 539 Millbrook Road | C33: 38.14437054 | D33: 45.17564783 | E33: 29.09581226 | F33: 25.87 | G33: 24.22 | H33: 22.18 | I33: 25.82 | J33: 27.38007674 | K33: 25.49560669 | L33: 27.58273275 | M33: 36.8677478 | N33: 33.29936073 | O33: 27.98768004
A34: N134 | B34: 435 Millbrook Road West Ladbrokes | C34: 43.57016667 | D34: 49.01663583 | E34: 37.68160636 | F34: 35.19 | G34: 29.81 | H34: 32.78 | I34: 34.13 | J34: 29.14346068 | K34: 30.81027028 | L34: 29.98791579 | M34: 45.03797675 | N34: 38.32927001 | O34: 33.75026593
A35: N138 | B35: 66 Burgess Road | C35: 46.76422024 | D35: 65.79356786 | E35: 46.84440389 | F35: 55.98 | G35: 27.78 | H35: 44.76 | I35: 44.05 | J35: 36.85035794 | K35: 39.78506024 | L35: 46.06262929 | M35: 53.03631196 | N35: 48.64542556 | O35: 43.11727822
A36: N140 | B36: 5 Commercial Road | C36: 49.21622096 | D36: 65.9333942 | E36: 43.56691981 | F36: 49.05 | G36: 39.19 | H36: 43.39 | I36: 43.71 | J36: 39.86021285 | K36: 37.95233457 | L36: 48.68837516 | M36: 59.56500417 | N36: 53.50971982 | O36: 44.45649407
A37: N141 | B37: Town Quay Road | C37: 40.94940476 | D37: 36.50852004 | E37: 39.46647018 | F37: 48.07 | G37: 34.71 | H37: 36.07 | I37: 34.17 | J37: 27.92933034 | K37: 28.57362533 | L37: 32.62221283 | M37: 39.64423878 | N37: 29.89041519 | O37: 33.21682685
A38: N143 | B38: 102 Romsey Road | C38: 46.02148276 | D38: 51.8127761 | E38: 38.54701263 | F38: 35.5 | G38: 37.42 | H38: 32.41 | I38: 33.01 | J38: 33.57399595 | K38: 29.47152503 | L38: 34.67271294 | M38: 39.94843951 | N38: 39.80323126 | O38: 35.04481615
A39: N144 | B39: 208 Northam Road | C39: 34.09037946 | D39: 44.73379957 | E39: 35.30574269 | F39: 31.66 | G39: 25.61 | H39: 29.14 | I39: 26.58 | J39: 23.34848182 | K39: 29.47035075 | L39: 41.19300122 | M39: 33.92304032 | N39: 36.49986173 | O39: 30.34548596
A40: N146 | B40: 222 Northam Road | C40: 34.15180357 | D40: 38.69951831 | E40: 31.96276757 | F40: 31.99 | G40: 23.67 | H40: 26.1 | I40: 25.07 | J40: 26.19525574 | K40: 25.44204943 | L40: 30.42435775 | M40: 34.63720959 | N40: 34.49640991 | O40: 28.12005132
A41: N149 | B41: 44B Burgess Road | C41: 32.43192857 | D41: 53.82759762 | E41: 33.50983918 | F41: 29.22 | G41: 27.12 | H41: 24.22 | I41: 26.74 | J41: 23.64598579 | K41: 25.29397255 | L41: 35.99116592 | M41: 37.65567425 | N41: 33.26154141 | O41: 29.67612216
A42: N151 | B42: 134 Romsey Road | C42: 43.88646552 | D42: 49.24212142 | E42: Missing | F42: 36.29 | G42: 35.14 | H42: 32.97 | I42: 37.75 | J42: 35.97655646 | K42: Missing | L42: 35.17247511 | M42: 44.78774876 | N42: 43.49175146 | O42: 36.70776204
A43: N152 | B43: M271 | C43: 49.11881101 | D43: 57.02004314 | E43: 41.4670659 | F43: 31.78 | G43: 35.58 | H43: 41.55 | I43: 42.97 | J43: 40.59902985 | K43: 36.92765252 | L43: 41.95690405 | M43: 47.4695219 | N43: 47.96901165 | O43: 39.8666231
A44: N158 | B44: 24 Portsmouth Road | C44: 44.47952586 | D44: 48.1862446 | E44: 39.08194488 | F44: 41.35 | G44: 34.05 | H44: 33.86 | I44: 33.77 | J44: 26.61416921 | K44: 29.93156569 | L44: 36.34513383 | M44: Missing | N44: 41.52378217 | O44: 34.5953546
A45: N159 | B45: 35 Portsmouth Road | C45: 36.82904741 | D45: 40.66029057 | E45: 35.85062925 | F45: 35.11 | G45: 28.03 | H45: 33.56 | I45: 31.17 | J45: 29.88573156 | K45: 29.79447455 | L45: 37.24880132 | M45: 42.7913768 | N45: 33.60069005 | O45: 32.12615572
A46: N161 | B46: 30 Addis Square | C46: 38.49244048 | D46: 40.52891481 | E46: 34.82743657 | F46: 30.37 | G46: 28.37 | H46: 27.21 | I46: 26.67 | J46: 16.79064407 | K46: 21.05478254 | L46: 36.18512973 | M46: 34.99068357 | N46: 32.06243728 | O46: 28.48531635
A47: N162 | B47: 263A Portswood Road | C47: 44.30725595 | D47: 51.61660355 | E47: Missing | F47: 33.28 | G47: Missing | H47: 35.96 | I47: Missing | J47: Missing | K47: 28.16389192 | L47: 40.09357434 | M47: 36.25605154 | N47: 45.4469577 | O47: 36.63320394
A48: N164 | B48: 168 Portswood Road(Int.Food) | C48: 38.04199702 | D48: 43.80027682 | E48: 33.86310965 | F48: 34.15 | G48: 27.66 | H48: 30.24 | I48: 27.73 | J48: 22.37 | K48: 26.66271635 | L48: 32.95657358 | M48: Missing | N48: Missing | O48: 29.52514463
A49: N165 | B49: 8 The Broadway | C49: 34.13132887 | D49: Missing | E49: 32.02082065 | F49: 37.38 | G49: Missing | H49: 30.8 | I49: Missing | J49: 26.12 | K49: 31.8477027 | L49: 38.19481322 | M49: 36.37 | N49: 32.04649375 | O49: 30.88748645
A50: N166 | B50: 14 New Road | C50: 40.53172083 | D50: 54.14627252 | E50: Missing | F50: 37.08 | G50: 28.3 | H50: Missing | I50: Missing | J50: 30.46 | K50: 30.76757747 | L50: 41.35360942 | M50: 45.96228703 | N50: Missing | O50: 35.87492057
A51: N167 | B51: 13 Romsey Road | C51: 48.35418678 | D51: 45.34946527 | E51: 35.46091855 | F51: 43.5 | G51: 29.64 | H51: 31.11 | I51: 28.14 | J51: 21.00278505 | K51: Error | L51: 48.47304015 | M51: 47.91489094 | N51: 34.86881091 | O51: 34.98610098
A52: N168 | B52: 23 Romsey Road | C52: 51.87301149 | D52: 48.19887585 | E52: 36.17847347 | F52: 45.85 | G52: 34.76 | H52: 33.5 | I52: 26.08 | J52: 28.93498884 | K52: 27.24018249 | L52: 30.91885448 | M52: 53.9859898 | N52: 35.81962945 | O52: 35.13385045
A53: N169 | B53: 150 Romsey Road | C53: 45.29004167 | D53: 55.17922777 | E53: 39.40490897 | F53: 38.68 | G53: 41.72 | H53: 39 | I53: 32.58 | J53: 40.95618932 | K53: 35.78674802 | L53: 40.21840415 | M53: 48.07153021 | N53: 44.67207792 | O53: 38.87083242
A54: N170 | B54: Union Castle House (2) | C54: 40.00756845 | D54: Missing | E54: 49.79524493 | F54: 40.2 | G54: 36.52 | H54: 36.53 | I54: 44.69 | J54: 33.34416634 | K54: 31.41489945 | L54: Missing | M54: 44.69959228 | N54: 40.31249374 | O54: 36.96879876
A55: N172 | B55: 4 New Road | C55: 42.00316944 | D55: 56.98885957 | E55: 46.03928344 | F55: 40.3 | G55: 37.29 | H55: 40.02 | I55: 37.28 | J55: 43.21909814 | K55: 37.84619269 | L55: 38.53685908 | M55: 47.72298043 | N55: 51.46261824 | O55: 40.19995223
A56: N174 | B56: 166A Bitterne Road West | C56: 48.27934821 | D56: 60.38979586 | E56: 48.48302459 | F56: 47.19 | G56: 34.84 | H56: 41.67 | I56: 39.41 | J56: 43.10673232 | K56: 36.05418751 | L56: 37.61312238 | M56: 43.20308809 | N56: 45.12159566 | O56: 40.71546933
A57: N175 | B57: 38 Shirley High Street | C57: 43.66901006 | D57: 50.23347505 | E57: 38.10404643 | F57: 32.6 | G57: 33.09 | H57: 30.8 | I57: 33.38 | J57: 35.23763433 | K57: Missing | L57: 32.01426179 | M57: 46.3999452 | N57: 44.77793996 | O57: 35.53498827
A58: N176 | B58: Salisbury Arms, Shirley High Street | C58: 41.31653736 | D58: 46.05828905 | E58: 33.18671617 | F58: 44.47 | G58: 31.69 | H58: 31.88 | I58: 23.89 | J58: 23.85076834 | K58: 27.29232161 | L58: 29.05092312 | M58: 45.6255939 | N58: 35.53388501 | O58: 32.07299018
A59: N177 | B59: 95 Shirley High Street (Windsor Castle Pub) | C59: 41.61306753 | D59: 54.69375269 | E59: 38.92494391 | F59: 37.12 | G59: Missing | H59: 33.7 | I59: 32.23 | J59: 28.71526989 | K59: 27.63613922 | L59: 33.32705688 | M59: 49.80178609 | N59: 38.32653069 | O59: 35.17839533
A60: N178 | B60: 2 Gover Road | C60: 29.36072321 | D60: 33.3622123 | E60: 23.60321986 | F60: 31.97 | G60: 21.97 | H60: 23.03 | I60: 22.27 | J60: 19.40257572 | K60: 20.73739515 | L60: 25.24257353 | M60: 31.8994909 | N60: 26.89085789 | O60: 24.00477626
A61: N180 | B61: Opposite 5 Commercial Road | C61: 47.84379545 | D61: 67.94865701 | E61: 38.42488724 | F61: 41.84 | G61: 29.31 | H61: 38.15 | I61: 38.51 | J61: 34.19700311 | K61: 35.12370354 | L61: Missing | M61: 50.96444943 | N61: Missing | O61: 39.27506211
A62: N184A | B62: Redbridge AMS (A) | C62: 45.29004167 | D62: 52.65755271 | E62: 39.8861001 | F62: 41.39 | G62: 34.86 | H62: 34.56 | I62: 33.91 | J62: 33.78685443 | K62: 29.01532393 | L62: 30.59927011 | M62: 45.91790006 | N62: 44.93528261 | O62: 36.17764524
A63: N184B | B63: Redbridge AMS (B) | E63: 38.22929286 | F63: 35.76 | G63: 32.22 | H63: 28.76 | I63: 32.5 | J63: 31.37067844 | K63: 32.95064193 | L63: 35.1824207 | M63: 47.69104684 | N63: 45.37592199 | O63: 33.48372026
A64: N184C | B64: Redbridge AMS (C) | E64: 44.57016006 | F64: 36.24 | G64: 32.12 | H64: 33.41 | I64: 36.81 | J64: 33.90568276 | K64: 31.93270693 | L64: 34.40592457 | M64: 43.91997175 | N64: 43.91865332 | O64: 34.52467824
A65: N185 | B65: Redbridge Causeway 1 | C65: 57.28821726 | D65: 62.10939319 | E65: 43.42256132 | F65: 44.84 | G65: 30.86 | H65: 50.32 | I65: 46.12 | J65: 46.01513311 | K65: 40.10051418 | L65: 43.32968038 | M65: 43.75856335 | N65: 46.30240789 | O65: 42.97115148
A66: N186 | B66: Redbridge Causeway 2 | C66: 42.1369375 | D66: 40.06920277 | E66: 58.5405223 | F66: 39.61 | G66: 32.79 | H66: 35.01 | I66: 36.65 | J66: 29.9969564 | K66: 29.08124444 | L66: 32.82401528 | M66: 44.2726721 | N66: 33.22918259 | O66: 35.20133184
A67: N187 | B67: Cobden Avenue | C67: 40.88798065 | D67: 50.11986531 | E67: 43.18439265 | F67: 28.36 | G67: 32.32 | H67: 29.37 | I67: 31.22 | J67: 24.46749113 | K67: 30.37790154 | L67: 37.27261282 | M67: 38.00617771 | N67: 35.76231708 | O67: 32.65452726
A68: N188 | B68: Blechynden Terrace, Taxi | D68: 46.09844379 | E68: 36.42869162 | F68: 44.99 | G68: 31.37 | H68: 30.83 | I68: 27.06 | J68: 12.9038417 | K68: 25.54249554 | L68: 36.34189607 | M68: 53.37098329 | N68: 40.3134232 | O68: 32.57111736
A69: N189 | B69: Cumberland House | D69: 54.79434907 | E69: Error | F69: 43.43 | G69: 35.98 | H69: 36.33 | I69: 30.01 | J69: 33.89644566 | K69: 30.90584822 | L69: 39.32388466 | M69: 48.01939726 | N69: 38.08083926 | O69: 36.34168106
A70: N190 | B70: Brunswick Apartments | D70: 54.14568504 | E70: 38.69652489 | F70: 45.71 | G70: 30.4 | H70: 39.19 | I70: 29.17 | J70: 43.37201981 | K70: 38.53515423 | L70: 44.59032066 | M70: 53.69334784 | N70: 43.92228088 | O70: 39.01141455
A71: N191 | B71: Marlands House | D71: Missing | E71: 51.27565386 | F71: Missing | G71: 39.02 | H71: 40.1 | I71: 39.67 | J71: 44.29068802 | K71: 41.84698838 | L71: 48.08478457 | M71: 49.53076194 | N71: 57.13464563 | O71: 42.46519732
A72: N192 | B72: Above Bar Street Bus Stop | D72: 60.42306836 | E72: 55.8834124 | F72: 46.78 | G72: 48.53 | H72: 36.36 | I72: 41.97 | J72: 31.27122874 | K72: 39.14154087 | L72: 49.41002021 | M72: 40.31568888 | N72: Missing | O72: 41.85790123
A73: N193 | B73: Above Bar Street Taxi Rank | D73: 54.04403341 | E73: 41.89153643 | F73: 38.84 | G73: 28.43 | H73: 27.99 | I73: 27.08 | J73: 40.05987472 | K73: 31.04573062 | L73: 35.79068558 | M73: 54.66881123 | N73: Missing | O73: =(AVERAGE(C73:N73))*0.93 -> 35.3251825
A74: N194 | B74: Vincents Walk Bus Stop | D74: 68.55548943 | E74: 66.50564892 | F74: 52.13 | G74: 47.6 | H74: 45.96 | I74: Missing | J74: 34.725371 | K74: 34.27259213 | L74: 51.12993198 | M74: 55.79633 | N74: 12.23695849 | O74: 43.60884594
A75: N195 | B75: Bargate Street | D75: 53.26942728 | E75: 42.52469634 | F75: 51.44 | G75: 35.33 | H75: 37.92 | I75: 30.61 | J75: 29.48766656 | K75: 41.27274727 | L75: 43.84130261 | M75: Missing | N75: 39.79082697 | O75: 37.71026003
A76: N197 | B76: 351 Winchester Road | E76: 35.33968568 | F76: 44.86 | G76: 35.29 | H76: 44.97 | I76: Missing | J76: 34.72669931 | K76: 33.53503887 | L76: 45.48907626 | M76: 50.45359359 | N76: 38.23535946 | O76: 37.49961016
A77: N198A | B77: Onslow Road (A) | E77: 43.72720778 | F77: 34.62 | G77: 33.99 | H77: 33.57 | I77: 30.8 | J77: 29.33701758 | K77: 30.65078059 | L77: 37.42748406 | M77: 43.06630479 | N77: 41.83935695 | O77: 33.38961811
A78: N198B | B78: Onslow Road (B) | E78: 44.13926845 | F78: 33.53 | G78: 32.8 | H78: 32.3 | I78: 28.33 | J78: 32.2155976 | K78: 31.08161485 | L78: 41.93357828 | M78: 36.97632065 | N78: 41.83935695 | O78: 33.02855352
A79: N198C | B79: Onslow Road (C) | E79: 48.94205546 | F79: 36.07 | G79: 33.15 | H79: 33.11 | I79: 30.7 | J79: 29.97118152 | K79: 31.38935361 | L79: 41.46279232 | M79: 37.82931517 | N79: 41.90141013 | O79: 33.90092806
A80: N199 | B80: Dorset Street/Charlottes Place Crossing | F80: 43.14 | G80: 40.63 | H80: Missing | I80: Missing | J80: 23.78452544 | K80: 27.91 | L80: 37.92109457 | M80: 47.06370587 | N80: 51.11738419 | O80: 36.07957719
A81: N200 | B81: Northam Bridge South | F81: 35.49 | G81: 25.96 | H81: 29.22 | I81: 30.06 | J81: 29.97 | K81: 27.52211392 | L81: 36.55626862 | M81: 35.41089297 | N81: 41.85362374 | O81: 30.17776626
A82: N201 | B82: 289 Millbrook Road West | F82: 58.64 | G82: Missing | H82: 59.82 | I82: Missing | J82: Missing | K82: 51.06921569 | L82: 48.89134361 | M82: 70.19759342 | N82: Missing | O82: 53.68297641
A83: N202 | B83: Redbridge Causeway North | F83: 48.33 | G83: Missing | H83: 43.78 | I83: 49.52 | J83: 54.07501835 | K83: 38.84438324 | L83: 52.3344676 | M83: 56.75740954 | N83: 56.31474928 | O83: 46.49488826
A84: N203 | B84: 100 Redbridge Road | F84: 49.34 | G84: 25.35 | H84: Missing | I84: Missing | J84: Missing | K84: Missing | L84: 37.11140109 | M84: Missing | N84: Missing | O84: 34.65843434
A85: N204 | B85: 6 Lodge Road | F85: 38.69 | G85: 46.03 | H85: 33.38 | I85: 30.41 | J85: 31.76451915 | K85: 33.95667562 | L85: 45.95973504 | M85: 41.88983632 | N85: 42.11 | O85: 35.56637917
A86: N205 | B86: Stags Gate, Lodge Road | F86: 41.08 | G86: 28.47 | H86: 35.28 | I86: 33.29 | J86: 34.18574163 | K86: 34.80403991 | L86: Missing | M86: Missing | N86: 47.94106292 | O86: 33.88532648
A87: N206 | B87: Charlottes Place | F87: 46.03 | G87: 31.62 | H87: 43.92 | I87: 37.8 | J87: 36.65564607 | K87: 40.53059896 | L87: 45.95973504 | M87: 54.18815807 | N87: 44.33047524 | O87: 39.37357672
A88: N207 | B88: 205 Waterhouse Lane | F88: 35.1 | G88: 24.6 | H88: Missing | I88: 32.77 | J88: 34.2465578 | K88: 33.36932108 | L88: 36.03260209 | M88: 41.36666173 | N88: 41.23708799 | O88: 32.40145932
A89: N208 | B89: Sherwood Close | F89: 38.5 | G89: 29.64 | H89: 31.79 | I89: 31.23 | J89: 25.4935497 | K89: 32.0073949 | L89: 42.15272583 | M89: 44.6067455 | N89: 39.8055588 | O89: 32.57335072
A90: N209 | B90: 40 Burgess Road | F90: 33.54 | G90: 29.49 | H90: 26.66 | I90: 28.97 | J90: 28.07413154 | K90: 35.27948718 | L90: 38.37958548 | M90: 48.12513619 | N90: 38.37213818 | O90: 31.71201612
A91: N210 | B91: 18 Burgess Road | F91: 43.27 | G91: 36 | H91: Missing | I91: 33.64 | J91: 32.29767345 | K91: 35.28 | L91: 44.65 | M91: 48.04871676 | N91: 44.0328428 | O91: 36.87673584
A92: N211 | B92: 4 Coniston Road | D92: 38.57703149 | E92: 23.86970541 | F92: 31.94 | G92: 22.84 | H92: 26.3 | I92: 24.52 | J92: 22.99052364 | K92: 26.58539473 | L92: 31.42811856 | M92: 33.72140092 | N92: 30.8021052 | O92: 26.51128003
A93: N213 | B93: 277 Portswood Road | D93: 43.31021942 | E93: 33.57193254 | F93: 26.96 | G93: 26.36 | H93: 25.9 | I93: 25.18 | J93: 25.52185096 | K93: 31.5193816 | L93: 33.82054677 | M93: 32.79054107 | N93: 35.20807232 | O93: 28.75750605
A94: N214 | B94: 64 Burgess Road 2019 | D94: Missing | E94: 35.40263289 | F94: 41.45 | G94: 34.38 | H94: 31.33 | I94: 30.16 | J94: 30.68 | K94: 31.5193816 | L94: 39.91614575 | M94: 43.00403916 | N94: 36.93480181 | O94: 32.99426111
A95: N216 | B95: 73 Lodge Road | F95: Missing | G95: 23.76 | H95: 34.31 | I95: Missing | J95: 32.6138276 | K95: 34.10013556 | L95: 44.53154374 | M95: 42.81106309 | N95: 44.57679958 | O95: 34.10487624
A96: N217 | B96: 11 Saxon Road | G96: 28.89 | H96: 29.92 | I96: 31.12 | J96: 34.85596923 | K96: 30.50240829 | L96: 34.51683575 | M96: 42.6926188 | N96: 39.74023905 | O96: 31.64767577
A97: N218 | B97: 112 St Denys Road | K97: 38.08 | L97: 40.98 | M97: 49.96399079 | N97: 34.95688987 | O97: 38.12555475
A99: Closed sites
A100: N102 | B100: 64 Burgess Road | C100: 41.21557589 | D100: Closed
A101: N153 | B101: Coniston Road | C101: 35.50313393 | D101: Closed
A102: N154 | B102: Oceana Boulevard DG5 | C102: 35.13458929 | D102: Closed
A103: N157 | B103: Admiralty House | C103: 27.35420238 | D103: Closed
A104: N160 | B104: 2 Dorset Street | C104: 39.57835802 | D104: Closed
A105: N163 | B105: 285 Portswood Road | C105: 34.3565506 | D105: Closed
A106: N173 | B106: 19A Burgess Road | C106: 34.80699405 | D106: Closed
A107: N212 | B107: Mitre Pub | D107: 48.90114181 | E107: Closed
A108: N215 | B108: Roman Road M27 | F108: 24.27 | G108: 24.21 | H108: 22.44 | I108: 7.18 | J108: Missing | K108: Closed

Sheet 2020
A1: Southampton City Council NO2 Diffusion Tube Data 2020
A2: Status
A3: Bias Adjustment factor | B3: 0.81
A4: Other comments
A7: Site ID | B7: Site Name | C7: 2020-01-01 | D7: 2020-02-01 | E7: 2020-03-01 | F7: 2020-04-01 | G7: 2020-05-01 | H7: 2020-06-01 | I7: 2020-07-01 | J7: 2020-08-01 | K7: 2020-09-01 | L7: 2020-10-01 | M7: 2020-11-01 | N7: 2020-12-01 | O7: Bias Adjusted Annual Mean
A8: N100 | B8: 6 Sandringham Road | C8: 12.37348952 | D8: 17.35193957 | E8: 16.88535794 | F8: 16.33187752 | G8: 11.79701429 | H8: 11.19060152 | I8: 11.75638642 | J8: 13.91844827 | K8: 14.52997845 | L8: 20.72534269 | M8: 23.65536614 | N8: 26.12081314 | O8: 13.27297154
A9: N101 | B9: Redbridge School Fence | C9: 39.68333419 | D9: 44.17154467 | E9: 32.33135625 | F9: 35.97082558 | G9: 31.20106103 | H9: 32.89861453 | I9: 26.56557201 | J9: 34.68902733 | K9: 40.21593932 | L9: 44.21722794 | M9: 46.02163592 | N9: 45.18124926 | O9: 30.58744869
A10: N103 | B10: 485 Millbrook Road | C10: 38.9134908 | D10: 28.16590151 | E10: 26.92254986 | F10: 32.46035424 | G10: 24.93828993 | H10: 27.82742176 | I10: 19.7481369 | J10: 26.00100232 | K10: 26.50912263 | L10: 31.47684089 | M10: 32.80834575 | N10: 32.83444204 | O10: 23.53089816
A11: N104 | B11: Regents Park Junction | C11: 48.10199847 | D11: 39.92696576 | E11: 37.81196422 | F11: 42.02778929 | G11: 35.5390299 | H11: 37.7205497 | I11: 23.56746255 | J11: 31.58991622 | K11: 33.65823641 | L11: 37.95176817 | M11: 42.07670343 | N11: 40.66925153 | O11: 30.41831041
A12: N106 | B12: 2 Romsey Road, Oakhill | C12: 42.1122503 | D12: 36.03377968 | E12: 29.33611477 | F12: 35.33928292 | G12: 28.48828786 | H12: 35.55434793 | I12: 26.38142255 | J12: 32.6803593 | K12: 35.38611971 | L12: 37.19528874 | M12: 35.27668569 | N12: 36.67351331 | O12: 27.70587806
A13: N107 | B13: Cranbury Place | C13: 40.06547116 | D13: 53.34999005 | E13: 39.69937375 | F13: 36.02501429 | G13: 32.43648534 | H13: 34.24838651 | I13: 37.99483466 | J13: 33.2864164 | K13: 34.39167189 | L13: 40.69445983 | M13: 52.27979901 | N13: 45.88077186 | O13: 32.42380555
A14: N109 | B14: 72 Bevois Valley | C14: Missing | D14: 28.15274183 | E14: Missing | F14: 30.47336066 | G14: 26.36899671 | H14: 27.75661262 | I14: 24.96949811 | J14: 29.72232176 | K14: 31.55442422 | L14: 38.08019025 | M14: 44.35549172 | N14: 38.2137896 | O14: 25.89144163
A15: N110 | B15: Brintons Road 1 | C15: 18.2270581 | D15: 30.11190984 | E15: 24.65969935 | F15: 25.98200968 | G15: 20.71300058 | H15: 23.98371172 | I15: 21.25286078 | J15: 25.7782658 | K15: 27.79548753 | L15: 32.88205699 | M15: 37.8473686 | N15: 33.40252275 | O15: 21.77792674
A16: N111 | B16: Brintons Road 2 | C16: 28.57614092 | D16: 30.52985439 | E16: 25.39103427 | F16: 25.18956682 | G16: 21.59597041 | H16: 21.86698735 | I16: 20.83766448 | J16: 26.98407595 | K16: 28.11094703 | L16: 35.47612569 | M16: 34.57123439 | N16: 33.53013506 | O16: 22.45453223
A17: N112 | B17: Brintons Road 3 | C17: 15.33353903 | D17: 28.00228496 | E17: 24.97965838 | F17: 24.93665952 | G17: 22.23980258 | H17: 23.05655146 | I17: 22.68009807 | J17: 26.54411819 | K17: 27.12951746 | L17: 34.17014628 | M17: 34.5025043 | N17: 34.63079126 | O17: 21.47888283
A18: N113 | B18: 206 Bitterne Road | C18: 23.95641405 | D18: 36.4518683 | E18: 32.88540128 | F18: 27.26094174 | G18: 25.95281145 | H18: 26.85279065 | I18: 29.63403152 | J18: 33.94090812 | K18: 37.71352424 | L18: 35.76339488 | M18: 36.29307764 | N18: 36.5642402 | O18: 25.87068477
A19: N114 | B19: Bitterne Library | C19: 26.65767226 | D19: 34.32646542 | E19: 31.98047732 | F19: 27.8899825 | G19: 25.89426708 | H19: 30.56160853 | I19: 23.19879182 | J19: 33.23683558 | K19: 31.39695954 | L19: 35.66615304 | M19: 35.11683935 | N19: 34.56596179 | O19: 25.00821096
A20: N115 | B20: 54 Redbridge Road | C20: 33.10605422 | D20: 36.22145965 | E20: 29.55009846 | F20: 35.01817413 | G20: 28.87573315 | H20: 28.3018915 | I20: 28.3018915 | J20: 28.3018915 | K20: 28.3018915 | L20: 35.23380809 | M20: 35.54681981 | N20: 38.3648692 | O20: 25.99590933
A21: N116 | B21: 57 Redbridge Road | C21: 38.9571174 | D21: 31.67999856 | E21: 31.59840123 | F21: 35.16734537 | G21: 32.39694694 | H21: 28.94916272 | I21: 22.50540209 | J21: 30.07464461 | K21: 30.27908094 | L21: 30.76706551 | M21: 38.00235116 | N21: 33.01206353 | O21: 25.87879666
A22: N117 | B22: Victoria Road (Lamp Post) | C22: 34.40080269 | D22: 31.78430418 | E22: 31.87826978 | F22: 30.66587932 | G22: 28.22407906 | H22: 31.40573752 | I22: 30.12889969 | J22: 31.77494332 | K22: 33.45907949 | L22: 37.80276266 | M22: 43.83749946 | N22: 34.07974492 | O22: 26.96233514
A23: N118 | B23: 3 Rockstone Lane | C23: 23.86862903 | D23: 37.20593018 | E23: 32.91855062 | F23: 31.35664538 | G23: 25.91381166 | H23: 24.81683565 | I23: Missing | J23: 27.5431459 | K23: 29.44610184 | L23: 30.78410321 | M23: 41.2504059 | N23: 37.66649464 | O23: 25.24038452
A24: N120 | B24: 6-9 Canute Road | C24: 31.15170882 | D24: 35.97305741 | E24: 35.51837705 | F24: 30.38338219 | G24: 26.1259315 | H24: 28.81887974 | I24: 28.19338079 | J24: 34.33198095 | K24: 36.11602921 | L24: 33.79189487 | M24: 34.19272704 | N24: 37.24598715 | O24: 26.44942523
A25: N122 | B25: 151 Paynes Road | C25: 36.2149254 | D25: 34.75624541 | E25: 25.40874187 | F25: 35.95583222 | G25: 28.69476736 | H25: 28.75709341 | I25: 19.07279143 | J25: 25.54884801 | K25: 29.44878255 | L25: 31.27495324 | M25: 32.72632489 | N25: 24.45862663 | O25: 23.78146044
A26: N123 | B26: 102 St Andrews Road | C26: 28.56951694 | D26: 32.07757991 | E26: 20.79791257 | F26: Missing | G26: 26.01127551 | H26: 25.0433346 | I26: 24.54770981 | J26: 30.22038405 | K26: 28.77794747 | L26: 37.06834717 | M26: 38.80772943 | N26: 36.51604703 | O26: 24.18496413
A27: N124 | B27: 305 Millbrook Road | C27: 39.69003142 | D27: 35.81471198 | E27: 29.81936139 | F27: 38.66359686 | G27: 31.82188731 | H27: 32.27187427 | I27: 23.61170838 | J27: 30.55436374 | K27: 33.67563085 | L27: 38.2172454 | M27: 37.03242027 | N27: 36.16829033 | O27: 27.49552575
A28: N125 | B28: Princes Court | C28: 31.74243886 | D28: 32.63049419 | E28: 32.55155727 | F28: 31.79708151 | G28: 29.87229149 | H28: 30.54692263 | I28: 22.62006719 | J28: 35.56949011 | K28: 34.65848255 | L28: 39.07231705 | M28: 39.54306786 | N28: 37.8680744 | O28: 26.89687925
A29: N126 | B29: 107 St Andrews Road | C29: 24.65821403 | D29: 32.01788218 | E29: 28.13198262 | F29: 27.77375917 | G29: 27.00795221 | H29: 25.07717795 | I29: 25.37967182 | J29: 32.20943303 | K29: 32.10657147 | L29: 37.92707336 | M29: 39.95250021 | N29: 37.96648801 | O29: 24.98908766
A30: N129 | B30: South West House | C30: 24.86162447 | D30: 28.07061676 | E30: 27.47803195 | F30: 28.23817204 | G30: 23.19132005 | H30: 24.93407889 | I30: 21.30995893 | J30: 26.60073333 | K30: 30.18191621 | L30: 26.70059915 | M30: 33.32346317 | N30: 31.54394023 | O30: 22.03432573
A31: N130 | B31: 367A Millbrook Road | C31: 46.36608969 | D31: 43.69015347 | E31: 33.61322674 | F31: 41.3549508 | G31: 43.77967933 | H31: 41.49566842 | I31: 34.30203978 | J31: 45.12577042 | K31: 41.9727775 | L31: 46.56252984 | M31: 44.18874069 | N31: 44.61096187 | O31: 34.22672473
A32: N131 | B32: 142 Romsey Road | C32: 41.78100523 | D32: 36.52147268 | E32: 34.50448299 | F32: 38.11978488 | G32: 29.96757919 | H32: 36.13516789 | I32: 27.73840603 | J32: 34.45832006 | K32: 34.83480683 | L32: 36.19119375 | M32: 37.50685442 | N32: 37.35883792 | O32: 28.69545905
A33: N133 | B33: 539 Millbrook Road | C33: 36.72349738 | D33: 31.09382258 | E33: 26.1389175 | F33: 36.42812165 | G33: 23.67957499 | H33: 24.37905162 | I33: 19.93853032 | J33: 24.36716719 | K33: 26.33517826 | L33: 29.91172969 | M33: 33.23895529 | N33: 31.83711534 | O33: 23.22483717
A34: N134 | B34: 435 Millbrook Road West Ladbrokes | C34: 37.55811374 | D34: 34.145123 | E34: 32.18649104 | F34: 38.30256157 | G34: 33.82796426 | H34: 32.11722494 | I34: 22.90927591 | J34: 31.37921919 | K34: 31.95358154 | L34: 35.08010785 | M34: 38.71384799 | N34: 37.9379981 | O34: 27.41252687
A35: N138 | B35: 66 Burgess Road | C35: 28.07048494 | D35: 41.87590956 | E35: 39.86170053 | F35: 41.38549805 | G35: 42.70158064 | H35: 35.2678405 | I35: 37.15577053 | J35: 46.45846619 | K35: 46.73581526 | L35: 43.48157896 | M35: 46.61062556 | N35: 47.93660201 | O35: 33.58407641
A36: N140 | B36: 5 Commercial Road | C36: 55.51124828 | D36: 40.82760945 | E36: 40.41506729 | F36: 39.81401772 | G36: 30.17129446 | H36: 38.44536537 | I36: 30.75541176 | J36: 36.35194997 | K36: Missing | L36: 43.8435303 | M36: 51.49903678 | N36: 44.81386033 | O36: 33.3166543
A37: N141 | B37: Town Quay Road | C37: 24.4116591 | D37: 25.55883647 | E37: 33.26150265 | F37: 44.01023028 | G37: 35.73100394 | H37: 28.00557044 | I37: 21.4337902 | J37: 34.98203446 | K37: 33.13118929 | L37: 28.17233264 | M37: 30.14230392 | N37: 31.87854462 | O37: 25.02353237
A38: N143 | B38: 102 Romsey Road | C38: 40.85629943 | D38: 43.30160982 | E38: 32.90939989 | F38: 33.97594003 | G38: 26.1818659 | H38: 31.68623374 | I38: 27.24304515 | J38: 29.08459851 | K38: 34.32433193 | L38: 38.2926029 | M38: 35.76745924 | N38: 35.85091549 | O38: 27.63951539
A39: N144 | B39: 208 Northam Road | C39: 32.88595529 | D39: 31.39984953 | E39: 27.91999521 | F39: 24.46392685 | G39: 23.44376651 | H39: 26.12581266 | I39: 22.60064709 | J39: 30.42498491 | K39: 30.96797117 | L39: 35.5604557 | M39: 33.5990406 | N39: 32.30832424 | O39: 23.73979926
A40: N146 | B40: 222 Northam Road | C40: 32.74794469 | D40: 30.42007941 | E40: 25.96700942 | F40: 24.06141977 | G40: 21.09792204 | H40: 23.38977142 | I40: 19.93015754 | J40: 27.11579871 | K40: 27.38172922 | L40: 32.81369494 | M40: 30.89155381 | N40: 27.57978554 | O40: 21.82928849
A41: N149 | B41: 44B Burgess Road | C41: 29.94043398 | D41: 35.57077521 | E41: 29.69188312 | F41: 28.95717873 | G41: 25.06794713 | H41: 26.84143565 | I41: 32.30384734 | J41: 32.71313381 | K41: 34.62272128 | L41: 41.25031311 | M41: 40.56519562 | N41: 34.91678418 | O41: 26.48981132
A42: N151 | B42: 134 Romsey Road | C42: 38.61201017 | D42: 41.18538644 | E42: 34.96125852 | F42: 37.31254237 | G42: 29.90395376 | H42: 38.35539746 | I42: 28.90311133 | J42: 34.10088734 | K42: 36.12120356 | L42: 34.06616082 | M42: 41.54330323 | N42: 37.78729938 | O42: 29.21754472
A43: N152 | B43: M271 | C43: 50.75698619 | D43: 44.54666155 | E43: 39.33866513 | F43: 42.68899391 | G43: 38.87502596 | H43: 37.22690033 | I43: 28.76975093 | J43: 41.22795802 | K43: 40.54612563 | L43: 44.04304573 | M43: 47.59885083 | N43: 49.09234941 | O43: 34.06801367
A44: N158 | B44: 24 Portsmouth Road | C44: 38.55162785 | D44: 36.93632285 | E44: 33.68457273 | F44: 34.73044877 | G44: 33.08265218 | H44: 34.86534053 | I44: 32.45521273 | J44: 38.10311116 | K44: 35.2819107 | L44: 38.03201845 | M44: 40.79611063 | N44: 37.28001788 | O44: 29.28145589
A45: N159 | B45: 35 Portsmouth Road | C45: 37.72085817 | D45: 29.37056314 | E45: 30.27046165 | F45: 33.7099824 | G45: 31.4945896 | H45: 28.77478193 | I45: 31.53061732 | J45: 33.30780036 | K45: 35.64647694 | L45: 37.04234675 | M45: 39.71731552 | N45: 38.17753516 | O45: 27.4565247
A46: N161 | B46: 30 Addis Square | C46: 29.86076967 | D46: 30.19334338 | E46: 27.20687515 | F46: 27.61785137 | G46: 23.98057966 | H46: 21.89026581 | I46: 24.38567356 | J46: 27.981643 | K46: 36.32778843 | L46: 34.53040435 | M46: 39.64976117 | N46: 33.1309915 | O46: 24.08102643
A47: N162 | B47: 263A Portswood Road | C47: 16.22031848 | D47: 39.28043593 | E47: 34.42784506 | F47: 28.6531615 | G47: 25.60023143 | H47: 28.32271045 | I47: 37.82892131 | J47: 30.40647971 | K47: Missing | L47: 39.93202847 | M47: 40.7342711 | N47: 35.8839551 | O47: 26.30956277
A48: N164 | B48: 168 Portswood Road(Int.Food) | C48: 28.26944845 | D48: 29.34819396 | E48: 28.99806352 | F48: 28.4955509 | G48: 21.11093133 | H48: 26.43843074 | I48: 22.71303187 | J48: 30.98423574 | K48: 29.47200471 | L48: 33.00973133 | M48: 40.39973177 | N48: 32.76450057 | O48: 23.7602602
A49: N165 | B49: 8 The Broadway | C49: 29.96603951 | D49: 32.94502817 | E49: 30.50117043 | F49: 30.86470581 | G49: 26.88691925 | H49: 27.76155374 | I49: 25.71223016 | J49: 32.44537279 | K49: 30.82683045 | L49: 31.28576839 | M49: 40.39973177 | N49: 35.84609081 | O49: 25.34229729
A50: N166 | B50: 14 New Road | C50: 18.84051887 | D50: Missing | E50: 31.22058804 | F50: 29.20355548 | G50: 28.27431646 | H50: 28.44461822 | I50: 26.1325752 | J50: Missing | K50: 34.30303731 | L50: Missing | M50: 44.33383389 | N50: Missing | O50: 24.37624565
A51: N167 | B51: 13 Romsey Road | C51: 39.63957889 | D51: 26.54561093 | E51: 28.98779439 | F51: 37.88658149 | G51: 28.34513064 | H51: 27.02512042 | I51: 21.64283397 | J51: Missing | K51: Missing | L51: 57.91991876 | M51: 34.98467447 | N51: 38.88139385 | O51: 27.69054966
A52: N168 | B52: 23 Romsey Road | C52: 37.50397279 | D52: 28.35529194 | E52: 30.8659224 | F52: Missing | G52: Missing | H52: 26.50701913 | I52: 22.54208824 | J52: 30.1552897 | K52: 36.46832649 | L52: 35.48789043 | M52: 40.638944 | N52: 39.0799825 | O52: 26.53598294
A53: N169 | B53: 150 Romsey Road | C53: 46.90451295 | D53: 48.87610445 | E53: 38.23462214 | F53: 42.42507823 | G53: 35.75749364 | H53: 44.32882079 | I53: 30.56569834 | J53: 41.14580572 | K53: 38.44896908 | L53: 44.71941789 | M53: 44.08123865 | N53: 40.54298962 | O53: 33.48207573
A54: N170 | B54: Union Castle House (2) | C54: Missing | D54: Missing | E54: 32.21296186 | F54: 32.15191422 | G54: 30.32652256 | H54: 30.42360271 | I54: 27.43306367 | J54: 36.03619119 | K54: 38.52741872 | L54: 35.06114071 | M54: 35.88016338 | N54: Missing | O54: 26.82476811
A55: N172 | B55: 4 New Road | C55: 38.61039069 | D55: 46.64719909 | E55: 34.78604319 | F55: 29.22101348 | G55: 27.24152981 | H55: 34.87631436 | I55: 35.24153077 | J55: 38.27775774 | K55: 41.38425375 | L55: 43.72158017 | M55: 41.39964013 | N55: 44.20289401 | O55: 30.75368494
A56: N174 | B56: 166A Bitterne Road West | C56: 34.83615561 | D56: 43.84974846 | E56: 40.75628626 | F56: 30.87724984 | G56: 31.98819589 | H56: 35.2554351 | I56: 30.55804989 | J56: 42.98064106 | K56: 41.33266689 | L56: 45.82627822 | M56: 43.29563186 | N56: 47.25635984 | O56: 31.64485718
A57: N175 | B57: 38 Shirley High Street | C57: 43.20295185 | D57: 38.51242369 | E57: Missing | F57: 58.0138279 | G57: 27.23168555 | H57: 30.48216826 | I57: 24.59717119 | J57: 30.88185808 | K57: 32.34368934 | L57: 38.26872766 | M57: 38.82266974 | N57: 38.45030321 | O57: 29.51400509
A58: N176 | B58: Salisbury Arms, Shirley High Street | C58: 38.78706749 | D58: 26.76776856 | E58: 29.29870818 | F58: 35.60836375 | G58: 27.48618728 | H58: 30.95837416 | I58: 22.34784402 | J58: 30.86238179 | K58: 29.70963888 | L58: 30.724662 | M58: 38.37100578 | N58: 37.43048026 | O58: 25.53879255
A59: N177 | B59: 95 Shirley High Street (Windsor Castle Pub) | C59: 39.00389707 | D59: 32.27537219 | E59: 28.94724988 | F59: 40.38006389 | G59: 30.82652254 | H59: 32.57725129 | I59: 22.2012864 | J59: 28.11152013 | K59: 30.0975998 | L59: 34.98207855 | M59: 41.65089515 | N59: 32.60439515 | O59: 26.57192391
A60: N178 | B60: 2 Gover Road | C60: 26.99388112 | D60: 23.32358569 | E60: 21.86187529 | F60: 29.11224181 | G60: 22.98504387 | H60: 24.64076384 | I60: 11.81863697 | J60: 24.40849216 | K60: 20.15125042 | L60: 23.42462578 | M60: 28.58737185 | N60: 27.60067483 | O60: 19.23131995
A61: N180 | B61: Opposite 5 Commercial Road | C61: 51.1269535 | D61: 40.3686574 | E61: 32.75344316 | F61: 36.40039241 | G61: 26.50116859 | H61: 35.60125657 | I61: 23.19135973 | J61: 32.30694609 | K61: Missing | L61: 41.55737331 | M61: Missing | N61: 42.31945172 | O61: 29.3322872
A62: N184A | B62: Redbridge AMS (A) | C62: 48.59471834 | D62: 45.66521958 | E62: 31.86554758 | F62: 42.0397837 | G62: 29.35636326 | H62: 36.49928465 | I62: 24.48271592 | J62: 33.22885127 | K62: 32.43690051 | L62: 40.17081835 | M62: 38.91696687 | N62: 45.09190253 | O62: 30.2635624
A63: N184B | B63: Redbridge AMS (B) | C63: 46.37722794 | D63: 42.03973794 | E63: 34.08872531 | F63: 36.78697774 | G63: 22.84549339 | H63: 33.95663785 | I63: 23.59971165 | J63: 32.03949151 | K63: 32.05406155 | L63: 36.50380587 | M63: 42.36903838 | N63: 43.70169153 | O63: 28.77947554
A64: N184C | B64: Redbridge AMS (C) | C64: 45.93372985 | D64: 47.72560259 | E64: 34.08872531 | F64: 37.28972155 | G64: 32.2862547 | H64: 33.71057526 | I64: 22.7987591 | J64: 31.12777567 | K64: 32.33930677 | L64: 36.78559724 | M64: 42.99174717 | N64: 44.35590847 | O64: 29.796775
A65: N185 | B65: Redbridge Causeway 1 | C65: 54.46622546 | D65: 53.14822164 | E65: 44.72293501 | F65: 41.52821364 | G65: 43.36580475 | H65: 38.83268744 | I65: 36.82881748 | J65: 38.93532089 | K65: 45.71445152 | L65: 51.65058784 | M65: 54.48049645 | N65: 54.28861716 | O65: 37.6624606
A66: N186 | B66: Redbridge Causeway 2 | C66: 41.10817791 | D66: 36.65326313 | E66: Missing | F66: 30.4228382 | G66: 38.01512827 | H66: 26.91562297 | I66: 29.58174743 | J66: Missing | K66: Missing | L66: 35.87156093 | M66: Missing | N66: Missing | O66: 27.60576492
A67: N187 | B67: Cobden Avenue | C67: 19.19116621 | D67: 40.08067565 | E67: 31.95738588 | F67: 31.03429781 | G67: 23.108451 | H67: 25.75384936 | I67: 29.48179134 | J67: 35.25817239 | K67: 32.11858112 | L67: 41.96631513 | M67: 40.78275328 | N67: 40.65765363 | O67: 26.41889876
A68: N188 | B68: Blechynden Terrace, Taxi | C68: 42.79015609 | D68: 35.87475191 | E68: 31.12273027 | F68: 39.99716051 | G68: 28.30195842 | H68: 28.78166647 | I68: 21.66084056 | J68: 27.82940083 | K68: 32.43544103 | L68: 34.10457559 | M68: 39.61381637 | N68: 38.62385818 | O68: 27.07670405
A69: N189 | B69: Cumberland House | C69: 44.26493241 | D69: 35.57204878 | E69: Missing | F69: 31.74350179 | G69: 24.52460955 | H69: 26.87804651 | I69: 24.90146459 | J69: 30.8747863 | K69: 36.38906362 | L69: 39.06072488 | M69: 40.718742 | N69: 39.52322829 | O69: 27.57322095
A70: N190 | B70: Brunswick Apartments | C70: 49.09899892 | D70: 38.27707021 | E70: 38.18997687 | F70: 34.72925254 | G70: 24.57702369 | H70: 31.03252717 | I70: 30.6355231 | J70: 32.65782493 | K70: 40.24433738 | L70: 45.47272104 | M70: 44.48673497 | N70: 41.07668575 | O70: 30.40731067
A71: N191 | B71: Marlands House | C71: 39.47957331 | D71: 50.59351357 | E71: 40.92963515 | F71: 35.33065656 | G71: 31.27171098 | H71: 38.57549308 | I71: 44.5472626 | J71: 40.31136043 | K71: 37.98491585 | L71: 45.70933951 | M71: 45.91427278 | N71: 46.26234495 | O71: 33.54143032
A72: N192 | B72: Above Bar Street Bus Stop | C72: 28.8241847 | D72: 51.2698564 | E72: 38.61827996 | F72: 32.32815517 | G72: 30.7769126 | H72: 32.91404006 | I72: 40.26517512 | J72: 41.04216941 | K72: 49.1673066 | L72: 49.28703782 | M72: 45.54750875 | N72: 47.31339995 | O72: 32.89639679
A73: N193 | B73: Above Bar Street Taxi Rank | C73: 27.16344849 | D73: 39.69247787 | E73: 32.79216907 | F73: 30.92592193 | G73: 25.52684468 | H73: 26.22646587 | I73: 28.70517323 | J73: 33.21401221 | K73: 32.24384157 | L73: Missing | M73: 42.13201866 | N73: 39.05366363 | O73: 26.33796274
A74: N194 | B74: Vincents Walk Bus Stop | C74: 47.18763841 | D74: 54.04848663 | E74: 43.60584464 | F74: 34.44808456 | G74: 36.63988034 | H74: 47.31938916 | I74: 49.35886462 | J74: 44.90809338 | K74: 49.88109694 | L74: 59.37219138 | M74: 55.93772841 | N74: 46.4330422 | O74: 38.41697299
A75: N195 | B75: Bargate Street | C75: 40.74621853 | D75: 35.30511413 | E75: 38.32652068 | F75: 34.85062557 | G75: 33.54430131 | H75: 30.89967119 | I75: 35.23377198 | J75: 36.15121565 | K75: 43.26217564 | L75: 43.3487633 | M75: 52.03320283 | N75: 47.72837262 | O75: 31.82152186
A76: N197 | B76: 351 Winchester Road | C76: 23.98936117 | D76: 35.61145449 | E76: 30.53071619 | F76: 27.73728307 | G76: 25.8955694 | H76: 27.14565862 | I76: 22.74777088 | J76: 30.76556764 | K76: 25.04027985 | L76: 36.91896151 | M76: 38.34825711 | N76: 33.61344734 | O76: 24.18824209
A77: N198A | B77: Onslow Road (A) | C77: 33.23641039 | D77: 38.16837987 | E77: 33.24706353 | F77: 29.64152909 | G77: 25.08715747 | H77: 27.19889021 | I77: 28.57005617 | J77: 29.4181614 | K77: 32.91599629 | L77: 35.32207269 | M77: 40.16065978 | N77: 37.23204757 | O77: 26.33839365
A78: N198B | B78: Onslow Road (B) | C78: 33.44783793 | D78: 41.36230355 | E78: 31.57370139 | F78: 29.12119797 | G78: 25.73410423 | H78: 24.51478921 | I78: 28.42047472 | J78: 27.72976498 | K78: 31.40433022 | L78: 38.10042136 | M78: 42.58448762 | N78: 34.075607 | O78: 26.19465886
A79: N198C | B79: Onslow Road (C) | C79: 24.39873892 | D79: 40.62829625 | E79: 34.21585214 | F79: 28.73962182 | G79: 25.42860159 | H79: 27.25257223 | I79: 26.7002881 | J79: 28.30210275 | K79: 31.08496415 | L79: 38.11894368 | M79: 45.85566992 | N79: 36.84839181 | O79: 26.16124793
A80: N199 | B80: Dorset Street/Charlottes Place Crossing | C80: 23.19632827 | D80: 40.37653754 | E80: 42.71807802 | F80: 37.92000858 | G80: Missing | H80: 34.08192661 | I80: 28.88118501 | J80: 35.57096098 | K80: 37.95505715 | L80: 46.87764495 | M80: 50.27833264 | N80: 42.4118067 | O80: 30.94699744
A81: N200 | B81: Northam Bridge South | C81: 30.44119603 | D81: 38.92899327 | E81: 33.06378104 | F81: 27.08914654 | G81: 24.33220341 | H81: 29.7922258 | I81: 25.00515642 | J81: 34.65913769 | K81: Missing | L81: 40.69646251 | M81: 39.55892284 | N81: 41.67327965 | O81: 26.89498265
A82: N201 | B82: 289 Millbrook Road West | C82: Missing | D82: Missinng | E82: 42.55689052 | F82: 53.64656118 | G82: 44.64504586 | H82: 42.08168391 | I82: 36.63833629 | J82: Missing | K82: Missing | L82: Missing | M82: 56.88146945 | N82: Missing | O82: 37.32074827
A83: N202 | B83: Redbridge Causeway North | C83: Missing | D83: 55.28700432 | E83: 41.82792505 | F83: 40.16842761 | G83: Missing | H83: Missing | I83: 32.71795122 | J83: 47.95925788 | K83: 45.99287985 | L83: 53.44511253 | M83: 53.43700052 | N83: 49.2475337 | O83: 37.80747834
A84: N204 | B84: 6 Lodge Road | C84: 18.6829601 | D84: 29.76174406 | E84: 31.51219246 | F84: 29.93926039 | G84: 26.43036042 | H84: 28.23321767 | I84: 29.38015784 | J84: Missing | K84: Missing | L84: 37.01648921 | M84: 44.31634276 | N84: 35.25611293 | O84: 25.15283587
A85: N205 | B85: Stags Gate, Lodge Road | C85: 19.25898229 | D85: 32.26257053 | E85: 31.40101628 | F85: 30.90182498 | G85: 24.77033138 | H85: 30.05767376 | I85: 29.85443396 | J85: 36.14205439 | K85: 38.17411572 | L85: 38.7686064 | M85: 43.72283233 | N85: 37.85154812 | O85: 26.53870434
A86: N206 | B86: Charlottes Place | C86: 41.82409293 | D86: 39.91980619 | E86: 35.99838035 | F86: 33.33318179 | G86: 35.52592912 | H86: 27.20620767 | I86: 32.90637578 | J86: 43.43401613 | K86: 34.2428586 | L86: 43.91590159 | M86: 41.1201664 | N86: 46.36808503 | O86: 30.76616261
A87: N207 | B87: 205 Waterhouse Lane | C87: 47.52022534 | D87: 41.57395683 | E87: 31.26016504 | F87: 42.68421708 | G87: 29.30445742 | H87: 32.86967272 | I87: 22.99589773 | J87: 28.65970136 | K87: 28.61384956 | L87: 35.32515642 | M87: 34.57179434 | N87: 36.85314985 | O87: 27.82567645
A88: N208 | B88: Sherwood Close | C88: 25.46926219 | D88: 38.9320958 | E88: 30.48425361 | F88: 29.80533213 | G88: 25.87596345 | H88: 25.78355675 | I88: 20.60676856 | J88: 31.62618272 | K88: 34.86199752 | L88: Missing | M88: 33.44605597 | N88: 25.93574546 | O88: 23.77182213
A89: N209 | B89: 40 Burgess Road | C89: 22.87497528 | D89: 48.8859365 | E89: 30.39702288 | F89: 27.39186089 | G89: 21.75491795 | H89: 23.57814821 | I89: 25.18605047 | J89: Missing | K89: Missing | L89: 35.01701718 | M89: 38.88135732 | N89: 37.56410661 | O89: 25.23404285
A90: N210 | B90: 18 Burgess Road | C90: 38.96623629 | D90: 35.51428644 | E90: 35.19633276 | F90: 26.20982317 | G90: 26.43319368 | H90: 27.39727032 | I90: 28.79385566 | J90: 33.15007086 | K90: 32.76251418 | L90: 39.68630723 | M90: 48.60169664 | N90: 38.10372074 | O90: 27.73003329
A91: N211 | B91: 4 Coniston Road | C91: 32.86109593 | D91: 26.07281007 | E91: 25.39960123 | F91: 30.96641436 | G91: 22.36184016 | H91: 26.59671749 | I91: 13.74600626 | J91: 26.02906758 | K91: 22.10024874 | L91: 28.13126959 | M91: 31.15555489 | N91: 31.33935555 | O91: 21.38129877
A92: N213 | B92: 277 Portswood Road | C92: 25.0420656 | D92: 30.94985463 | E92: 26.06573468 | F92: 24.92875626 | G92: 21.7147946 | H92: 22.05061495 | I92: 23.81245256 | J92: 26.92952787 | K92: 29.55810277 | L92: 33.84348676 | M92: 40.39973177 | N92: 30.69232756 | O92: 22.67915288
A93: N214 | B93: 64 Burgess Road 2019 | C93: 29.38719261 | D93: 35.55249439 | E93: 31.69566469 | F93: 31.35225722 | G93: 26.4482438 | H93: 26.53604674 | I93: 23.49370715 | J93: 32.15350437 | K93: 33.96676208 | L93: 37.26720161 | M93: 36.27822088 | N93: 33.7853829 | O93: 25.50937579
A94: N216 | B94: 73 Lodge Road | C94: 26.1312829 | D94: 31.78678368 | E94: 31.84235171 | F94: 28.8118158 | G94: 24.23936662 | H94: 28.26959085 | I94: 26.28408732 | J94: 33.6991737 | K94: 24.42011362 | L94: 36.28706521 | M94: 44.15835223 | N94: 36.37093073 | O94: 25.13031172
A95: N217 | B95: 11 Saxon Road | C95: 39.49427243 | D95: 32.18576056 | E95: 33.13637642 | F95: 46.19092857 | G95: 32.143701 | H95: 31.0859076 | I95: 21.53028704 | J95: 29.71027824 | K95: 32.31157433 | L95: 40.93261502 | M95: 41.81971421 | N95: 37.67488179 | O95: 28.22960006
A96: N218 | B96: 112 St Denys Road | C96: Missing | D96: Missing | E96: 33.37003864 | F96: 25.31095849 | G96: 30.56493236 | H96: 26.88255078 | I96: 31.17831602 | J96: 38.00188106 | K96: 35.31536412 | L96: 38.38730446 | M96: 39.77840388 | N96: 33.27976609 | O96: 26.89763079

Sheet 2021
A1: Southampton City Council NO2 Diffusion Tube Data 2021
A2: Status | F2: 11 saxon | H2: nov
A3: Bias Adjustment factor | D3: Not available, anticipated March 2022 | F3: conniston
A4: Other comments
A8: Site ID | B8: X OS Grid Ref | C8: Y | D8: Site Name | E8: 2021-01-01 | F8: 2021-02-01 | G8: 2021-03-01 | H8: 2021-04-01 | I8: 2021-05-01 | J8: 2021-06-01 | K8: 2021-07-01 | L8: 2021-08-01 | M8: 2021-09-01 | N8: 2021-10-01 | O8: 2021-11-01 | P8: 2021-12-01 | Q8: Undajusted annual mean | R8: Data capture
A9: N100 | B9: 444387 | C9: 114453 | D9: 6 Sandringham Road | E9: 26.73083433 | F9: 24.73831748 | G9: 22.08079527 | H9: 19.40997994 | I9: 15.31256633 | J9: 16.23410225 | K9: 15.85 | L9: 13.95399026 | M9: 18.11223157 | N9: 22.9004006 | O9: 25.85817115 | P9: 21.06279539 | Q9: =AVERAGE(E9:P9) -> 20.18701538 | R9: 1
A10: N101 | B10: 437548 | C10: 113719 | D10: Redbridge School Fence | E10: 44.7525041 | F10: 43.72615362 | G10: 34.37017329 | H10: 36.78794717 | I10: 36.30164732 | J10: 40.1934736 | K10: 39.79 | L10: 30.56949289 | M10: 44.47687509 | N10: 46.53994401 | O10: 46.13792331 | P10: 42.148712 | Q10: =AVERAGE(E10:P10) -> 40.48290387 | R10: 1
A11: N103 | B11: 438808 | C11: 112903 | D11: 485 Millbrook Road | E11: 30.96057487 | F11: 32.99397347 | G11: 28.7646025 | H11: 23.43350143 | I11: 26.24140934 | J11: 26.48518227 | K11: 26.99 | L11: 21.52995889 | M11: 30.81175912 | N11: 30.01711259 | O11: 31.03180549 | P11: 28.65593118 | Q11: 28.15965093 | R11: 1
A12: N104 | B12: 439222 | C12: 112850 | D12: Regents Park Junction | E12: 33.8229954 | F12: 43.11300222 | G12: 32.73030033 | H12: 29.27783403 | I12: 31.54134679 | J12: 31.72618287 | K12: 30.39 | L12: 27.19695326 | M12: 39.88747723 | N12: 33.48870673 | O12: 32.11454788 | P12: 41.48114705 | Q12: 33.89754115 | R12: 1
A13: N106 | B13: 439752 | C13: 113984 | D13: 2 Romsey Road, Oakhill | E13: 36.92409074 | F13: 37.4013268 | G13: 30.2191258 | H13: 31.15280167 | I13: 33.8150009 | J13: 29.98078837 | K13: 33.15 | M13: 35.62709498 | N13: 38.52070275 | O13: 34.79013148 | P13: 38.53910925 | Q13: =AVERAGE(E13,F13,G13,H13,I13,J13,K13,M13,N13,O13,P13) -> 34.55637934 | R13: 0.92
A14: N107 | B14: 442364 | C14: 112890 | D14: Cranbury Place | E14: 48.77212858 | F14: 43.2502679 | G14: 39.44875113 | H14: 41.97876624 | J14: 40.09067878 | K14: 43.73 | L14: 40.66348082 | M14: 39.89980765 | N14: 48.31560794 | O14: 55.03191297 | P14: 32.38668299 | Q14: =AVERAGE(E14,F14,G14,H14,J14,K14,L14,M14,N14,O14,P14) -> 43.05164409 | R14: 0.92
A15: N109 | B15: 442585 | C15: 113248 | D15: 72 Bevois Valley | E15: 38.0309546 | F15: 43.23409473 | G15: 33.21339341 | H15: 37.69221201 | K15: 37.98 | L15: 30.2011918 | M15: 33.82075442 | N15: 37.95986069 | O15: 37.29510855 | P15: 32.53262479 | Q15: =AVERAGE(E15,F15,G15,H15,K15,L15,M15,N15,O15,P15) -> 36.1960195 | R15: 0.83
A16: N110 | B16: 442579 | C16: 112248 | D16: Brintons Road 1 | E16: 33.93360405 | F16: 32.90417247 | G16: 28.94642827 | H16: 27.87840524 | K16: 24.1 | L16: 21.58703739 | M16: 27.59173087 | N16: 32.27813212 | O16: 34.67825486 | P16: 27.97939734 | Q16: =AVERAGE(E16,F16,H16,K16,L16,M16,N16,O16,P16,G16) -> 29.18771626 | R16: 0.83
A17: N111 | D17: Brintons Road 2 | E17: 32.66237538 | F17: 32.82262557 | G17: 29.87245852 | H17: 27.0091926 | I17: 26.03311782 | J17: 22.14025107 | K17: 24.67 | L17: 24.38339552 | M17: 29.11550223 | N17: 33.46370333 | O17: 32.90044559 | P17: 27.51964198 | Q17: 28.54939247 | R17: 1
A18: N112 | D18: Brintons Road 3 | E18: 37.11167573 | F18: 30.23351163 | G18: 25.73725448 | H18: 26.7335886 | I18: 25.9922495 | J18: 22.89047235 | K18: 26.35 | L18: 22.62507942 | M18: 27.29680738 | N18: 32.54584175 | O18: 32.37368729 | P18: 27.61816099 | Q18: 28.12569409 | R18: 1
A19: N113 | B19: 444124 | C19: 113288 | D19: 206 Bitterne Road | E19: 38.17916611 | F19: 32.52239554 | G19: 39.97557496 | H19: 32.46149718 | I19: 34.1128851 | J19: 31.12224644 | K19: 32.83 | L19: 29.13057428 | M19: 35.46672568 | N19: 40.23455915 | O19: 45.08985783 | P19: 33.78877246 | Q19: 35.40952123 | R19: 1
A20: N114 | B20: 444131 | C20: 113322 | D20: Bitterne Library | E20: 32.83745683 | F20: 33.78280783 | G20: 31.14185653 | H20: 28.91956502 | I20: 35.1354536 | J20: 31.32976089 | K20: 34.31 | L20: 26.07732549 | M20: 33.50702443 | N20: 33.16790066 | O20: 35.56044532 | P20: 33.33768229 | Q20: 32.42560657 | R20: 1
A21: N115 | B21: 437939 | C21: 113474 | D21: 54 Redbridge Road | E21: 32.66215219 | F21: 39.72587675 | G21: 30.84007883 | H21: 27.75915299 | I21: 35.52360863 | J21: 30.73792849 | K21: 30.11 | L21: 23.82171501 | M21: 36.01374872 | N21: 33.76225846 | O21: 30.43107791 | P21: 34.48450953 | Q21: =AVERAGE(E21,F21,G21,H21,I21,J21,K21,L21,M21,N21,P21) -> 32.31282087 | R21: 0.92
A22: N116 | B22: 437952 | C22: 113407 | D22: 57 Redbridge Road | E22: 32.18400956 | F22: 38.45087118 | G22: 33.51221567 | H22: 34.16422725 | I22: 30.83490179 | J22: 27.68820311 | K22: 30.45 | L22: 25.23306274 | M22: 35.81277287 | N22: 33.84494666 | O22: 33.07471566 | P22: 31.69552368 | Q22: 32.24545418 | R22: 1
A23: N117 | B23: 443752 | C23: 111121 | D23: Victoria Road (Lamp Post) | E23: 37.75393304 | F23: 35.76424993 | G23: 36.26134293 | H23: 33.28711018 | I23: 33.61074065 | J23: 32.65218496 | K23: 29.47 | L23: 26.54155269 | M23: 36.51206669 | N23: 38.81336522 | O23: 38.30537192 | P23: 36.96772672 | Q23: 34.66163708 | R23: 1
A24: N118 | B24: 442472 | C24: 113065 | D24: 3 Rockstone Lane | E24: 33.34604803 | F24: 39.9953089 | G24: 30.01616026 | H24: 34.89301903 | I24: 30.28137076 | K24: 29.85 | L24: 24.51554234 | N24: 34.25426234 | O24: 36.1507107 | P24: 39.6142214 | Q24: =AVERAGE(E24,F24,G24,H24,I24,K24,L24,N24,O24,P24) -> 33.29166438 | R24: 0.83
A25: N120 | B25: 442716 | C25: 111019 | D25: 6-9 Canute Road | E25: 37.15366726 | F25: 40.13178464 | G25: 35.90508661 | H25: 33.11074431 | I25: 36.17343564 | J25: 32.96509977 | L25: 31.78432786 | M25: 36.38178238 | N25: 41.08102297 | O25: 40.72153136 | P25: 38.33009453 | Q25: =AVERAGE(E25,F25,G25,H25,I25,J25,L25,M25,N25,O25,P25) -> 36.70350703 | R25: 1
A26: N122 | B26: 440000 | C26: 112633 | D26: 151 Paynes Road | E26: 30.73163098 | F26: 32.03376087 | G26: 28.38650151 | H26: 24.94592854 | I26: 30.80067678 | J26: 27.52349371 | K26: 28.16 | M26: 45.61588465 | N26: 30.21241781 | O26: 31.91025687 | P26: 28.31551205 | Q26: =AVERAGE(E26,F26,G26,H26,I26,J26,K26,M26,N26,O26,P26) -> 30.78509671 | R26: 1
A27: N123 | B27: 442348 | C27: 112305 | D27: 102 St Andrews Road | E27: 36.81976607 | F27: 33.27960598 | G27: 29.71069166 | H27: 33.00379448 | I27: 29.51797979 | J27: 25.54434269 | K27: 30.76 | L27: 26.92024341 | M27: 31.60518894 | N27: 33.81547512 | O27: 36.06411468 | P27: 18.32570366 | Q27: 30.44724221 | R27: 1
A28: N124 | B28: 439741 | C28: 112753 | D28: 305 Millbrook Road | F28: 39.65432907 | G28: 33.11404935 | H28: 30.27972957 | I28: 35.61185046 | J28: 28.79254103 | K28: 28.58 | L28: 26.15471043 | M28: 38.71158913 | P28: 35.75218512 | Q28: =AVERAGE(F28,G28,H28,I28,J28,K28,L28,M28,P28) -> 32.96122046 | R28: 0.75
A29: N125 | B29: 443125 | C29: 112641 | D29: Princes Court | E29: 35.23453136 | F29: 39.37317721 | G29: 33.48789633 | H29: 34.71263888 | I29: 37.99582155 | J29: 28.80200256 | K29: 37.25 | L29: 29.94388898 | M29: 35.39346541 | N29: 30.71732013 | O29: 37.05229473 | P29: 36.69660084 | Q29: 34.7216365 | R29: 1
A30: N126 | B30: 442365 | C30: 112286 | D30: 107 St Andrews Road | E30: 37.0180416 | F30: 35.19882226 | G30: 30.75313566 | H30: 33.78895263 | I30: 30.09194051 | J30: 27.77557622 | K30: 31.51 | L30: 28.99755354 | M30: 33.68814638 | N30: 37.48171984 | O30: 37.51157208 | P30: 32.30483644 | Q30: 33.01002476 | R30: 1
A31: N129 | B31: 442554 | C31: 111021 | D31: South West House | E31: 33.68377052 | F31: 38.02193767 | G31: 29.46996686 | H31: 27.0988499 | I31: 32.11797501 | J31: 27.19112305 | K31: 29.17 | L31: 22.09149784 | M31: 29.38140242 | N31: 31.44187866 | O31: 31.49975371 | P31: 27.96511669 | Q31: 29.92777269 | R31: 1
A32: N130 | B32: 439346 | C32: 112821 | D32: 367A Millbrook Road | E32: 36.93043017 | F32: 46.20751111 | G32: 37.55615838 | H32: 38.80407874 | I32: 55.81513314 | J32: 46.01532601 | K32: 41.92 | L32: 37.79038692 | M32: 49.41179911 | N32: 44.92439591 | O32: 43.00325909 | P32: 43.43736683 | Q32: 43.48465379 | R32: 1
A33: N131 | B33: 439378 | C33: 114185 | D33: 142 Romsey Road | E33: 36.82801394 | F33: 38.7969423 | G33: 30.92320364 | H33: 38.47934283 | I33: 33.430573 | J33: 33.81317421 | K33: 33.64 | L33: 24.3235242 | M33: 39.6628799 | N33: 35.82009931 | O33: 36.778139 | P33: 41.15987839 | Q33: 35.30464756 | R33: 1
A34: N133 | B34: 438609 | C34: 113020 | D34: 539 Millbrook Road | E34: 29.35518103 | F34: 31.08133531 | G34: 27.39524312 | H34: 22.99075719 | I34: 25.30045723 | J34: 23.27136115 | K34: 24.92 | L34: 19.23901976 | M34: 28.16349344 | N34: 31.23102144 | O34: 31.29738382 | P34: 29.1536183 | Q34: 26.94990598 | R34: 1
A35: N134 | B35: 438980 | C35: 112861 | D35: 435 Millbrook Road West Ladbrokes | E35: 34.49852307 | F35: 37.45099957 | G35: 32.03636913 | H35: 31.71503231 | I35: 31.39884856 | J35: 33.55558874 | K35: 32.22 | L35: 28.52400802 | M35: 39.02971801 | N35: 33.88708269 | O35: 35.66921158 | P35: 37.3973377 | Q35: 33.94855995 | R35: 1
A36: N138 | B36: 441697 | C36: 115288 | D36: 66 Burgess Road | E36: 39.16324333 | F36: 52.17093459 | G36: 41.32002509 | H36: 57.0134259 | I36: 44.53544172 | J36: 38.75431355 | K36: 42.65 | L36: 39.22096355 | M36: 43.33326541 | N36: 44.21291805 | O36: 40.55743265 | P36: 40.52283863 | Q36: 43.62123354 | R36: 1
A37: N140 | B37: 441628 | C37: 112332 | D37: 5 Commercial Road | E37: 43.72534003 | F37: 47.15981138 | G37: 39.62869609 | H37: 38.48412836 | I37: 37.83230072 | J37: 42.01637784 | K37: 41.34 | L37: 35.25661773 | M37: 46.9007794 | N37: 44.98805027 | O37: 49.57410899 | P37: 47.29194415 | Q37: 42.84984624 | R37: 1
A38: N141 | B38: 441923 | C38: 110990 | D38: Town Quay Road | E38: 30.08083611 | F38: 33.80316812 | G38: 35.08661898 | H38: 37.30916799 | I38: 32.14796076 | J38: 34.63386618 | K38: 31.49 | L38: 28.24717853 | M38: 31.06889075 | N38: 32.75313859 | O38: 41.35593824 | P38: 33.028108 | Q38: 33.41707269 | R38: 1
A39: N143 | B39: 439457 | C39: 114150 | D39: 102 Romsey Road | E39: 36.0774192 | F39: 34.33529837 | G39: 30.58866365 | H39: 33.68720896 | I39: 31.05639223 | J39: 31.91393875 | K39: 32.31 | L39: 24.07199731 | M39: 36.48742614 | N39: 38.07017977 | O39: 39.42218899 | P39: 37.87079373 | Q39: 33.82429226 | R39: 1
A40: N144 | B40: 443147 | C40: 112709 | D40: 208 Northam Road | E40: 35.61476011 | F40: 31.98018115 | G40: 30.95367715 | H40: 28.96363131 | I40: 32.43346231 | J40: 27.08893181 | K40: 30.1 | L40: 23.69526337 | M40: 31.70315148 | N40: 32.67922787 | O40: 35.98053414 | P40: 29.99305991 | Q40: 30.93215672 | R40: 1
A41: N146 | B41: 443164 | C41: 112741 | D41: 222 Northam Road | E41: 32.19187759 | F41: 29.5046221 | G41: 27.24345357 | H41: 26.12053326 | I41: 28.20034333 | J41: 23.43865022 | K41: 25.98 | L41: 20.23628523 | M41: 28.81741141 | N41: 32.02675101 | O41: 32.91748887 | P41: 28.25025793 | Q41: 27.91063954 | R41: 1
A42: N149 | B42: 441552 | C42: 115247 | D42: 44B Burgess Road | E42: 39.01405764 | F42: 42.77738603 | G42: 36.55792185 | H42: 36.33359593 | I42: 30.53999555 | J42: 30.95470328 | L42: 27.49611044 | M42: 31.77033748 | N42: 40.07336493 | O42: 39.25107226 | P42: 32.6119402 | Q42: =AVERAGE(E42,F42,G42,H42,I42,J42,L42,M42,N42,O42,P42) -> 35.21640778 | R42: 0.92
A43: N151 | B43: 439394 | C43: 114176 | D43: 134 Romsey Road | E43: 37.54391596 | F43: 37.99605807 | G43: 31.56486384 | J43: 34.79670686 | K43: 32.91 | L43: 28.08266859 | M43: 39.95507002 | N43: 40.88869576 | O43: 37.39442133 | P43: 42.49739771 | Q43: =AVERAGE(E43,F43,G43,J43,K43,L43,M43,N43,O43,P43) -> 36.36297981 | R43: 0.83
A44: N152 | B44: 437327 | C44: 113848 | D44: M271 | E44: 39.73255376 | F44: 47.01707804 | G44: 36.16658966 | H44: 39.05488356 | I44: 39.76187202 | J44: 32.05308939 | K44: 38.9 | L44: 26.7160418 | M44: 40.92176258 | N44: 45.86239591 | O44: 44.12140047 | P44: 43.93555112 | Q44: 39.52026819 | R44: 1
A45: N158 | B45: 443807 | C45: 111123 | D45: 24 Portsmouth Road | E45: 41.49450299 | F45: 36.65467907 | G45: 36.70717912 | H45: 35.10634663 | I45: 37.09157659 | J45: 36.05811614 | K45: 32.38 | L45: 27.88164472 | M45: 39.54741749 | N45: 38.02905542 | O45: 39.41297933 | P45: 39.53758378 | Q45: 36.65842344 | R45: 1
A46: N159 | B46: 443740 | C46: 111147 | D46: 35 Portsmouth Road | E46: 40.24243581 | F46: 35.38733836 | G46: 36.34626411 | H46: 38.53175581 | I46: 29.72858726 | J46: 35.89572047 | K46: 31.04 | L46: 30.42491523 | M46: 38.67095672 | N46: 38.10348819 | O46: 42.92365732 | P46: 36.7526798 | Q46: 36.17064992 | R46: 1
A47: N161 | B47: 442705 | C47: 114129 | D47: 30 Addis Square | E47: 33.61269148 | F47: 36.05863383 | G47: 29.61442746 | H47: 34.74998228 | I47: 23.79136411 | J47: 27.20426168 | K47: 28.48 | L47: 26.6434442 | M47: 26.44048287 | N47: 29.0998706 | O47: 34.49969103 | P47: 32.99071228 | Q47: 30.26546348 | R47: 1
A48: N162 | B48: 442872 | C48: 114336 | D48: 263A Portswood Road | E48: 37.39972446 | F48: 34.47003796 | G48: 31.2197731 | H48: 36.04330072 | I48: 33.4917452 | J48: 31.03494374 | K48: 33.51 | L48: 28.5966454 | O48: 37.81068033 | P48: 35.30729118 | Q48: =AVERAGE(E48,G48,F48,H48,I48,J48,K48,L48,P48) -> 33.45260686 | R48: 0.75
A49: N164 | B49: 442809 | C49: 114241 | D49: 168 Portswood Road(Int.Food) | E49: 32.86832378 | F49: 39.77765681 | G49: 27.87533525 | H49: 32.4177687 | I49: 31.58959271 | J49: 26.72284383 | K49: 31.23 | L49: 24.32725176 | M49: 27.73833286 | N49: 33.66251797 | O49: 31.41274429 | P49: 34.28865365 | Q49: 31.1592518 | R49: 1
A50: N165 | B50: 442766 | C50: 114181 | D50: 8 The Broadway | E50: 33.15685044 | F50: 32.56689245 | G50: 27.8429405 | H50: 36.08477785 | I50: 32.30312003 | J50: 31.23494704 | K50: 35.3 | L50: 27.01219928 | M50: 34.4326296 | N50: 36.13860592 | O50: 33.19164587 | P50: 36.29234716 | Q50: 32.96307968 | R50: 1
A51: N166 | B51: 442251 | C51: 112129 | D51: 14 New Road | E51: 39.85242453 | F51: 37.47597814 | H51: 35.12440056 | J51: 29.77712395 | K51: 33.27 | L51: 30.5134261 | M51: 32.86171449 | N51: 37.82146546 | O51: 36.77966437 | P51: 30.37852807 | Q51: =AVERAGE(E51,F51,H51,J51,K51,L51,M51,N51,O51,P51) -> 34.38547257 | R51: 0.83
A52: N167 | B52: 439759 | C52: 114011 | D52: 13 Romsey Road | E52: 36.61006952 | F52: 38.16255107 | G52: 33.68278687 | H52: 34.37900672 | I52: 31.20087716 | J52: 30.16732042 | K52: 28.52 | L52: 25.16965476 | M52: 33.40955722 | N52: 34.79744579 | O52: 41.74815778 | P52: 34.5681095 | Q52: 33.53462807 | R52: 1
A53: N168 | B53: 439737 | C53: 114025 | D53: 23 Romsey Road | E53: 35.62039582 | F53: 39.443252 | G53: 32.3192709 | H53: 35.52399848 | I53: 27.61698561 | J53: 32.06655588 | K53: 31.37 | L53: 23.81009514 | M53: 36.26893487 | N53: 33.74316056 | O53: 40.71439387 | P53: 36.87045854 | Q53: 33.78062514 | R53: 1
A54: N169 | B54: 439361 | C54: 114195 | D54: 150 Romsey Road | E54: 38.39175614 | F54: 39.57893597 | G54: 33.68553705 | H54: 38.51804991 | I54: 41.00230787 | J54: 37.52685784 | K54: 37.47 | L54: 30.94644067 | M54: 46.96340586 | O54: 42.68252131 | P54: 46.77102008 | Q54: =AVERAGE(E54,F54,G54,H54,I54,J54,K54,L54,M54,P54) -> 39.08543114 | R54: 0.83
A55: N170 | B55: 442482 | C55: 111003 | D55: Union Castle House (2) | E55: 40.14816563 | F55: 43.57414648 | G55: 43.13866457 | I55: 40.56381702 | J55: 34.23843642 | K55: 35.02 | L55: 32.92224009 | M55: 35.81916239 | N55: 40.24801571 | O55: 42.76441609 | P55: 41.01279468 | Q55: =AVERAGE(E55,F55,G55,I55,J55,K55,L55,M55,N55,O55,P55) -> 39.04089628 | R55: 1
A56: N172 | B56: 442207 | C56: 112126 | D56: 4 New Road | E56: 41.31962822 | F56: 35.91283016 | G56: 34.15076215 | H56: 33.87374297 | I56: 39.2538387 | J56: 33.33791645 | K56: 34.97 | L56: 34.05952364 | M56: 40.1843398 | N56: 43.22745727 | O56: 41.17279095 | P56: 39.00211023 | Q56: 37.53874505 | R56: 0.92
A57: N174 | B57: 443959 | C57: 113315 | D57: 166A Bitterne Road West | E57: 42.76041693 | F57: 41.98688659 | G57: 36.17897165 | H57: 37.71912747 | I57: 42.21267336 | J57: 36.51599325 | K57: 41.27 | L57: 35.14441182 | M57: 40.96274003 | N57: 47.49328809 | O57: 43.97517884 | P57: 29.36203318 | Q57: 39.6318101 | R57: 1
A58: N175 | B58: 439959 | C58: 113737 | D58: 38 Shirley High Street | E58: 36.72190727 | F58: 33.73039002 | G58: 31.03064927 | H58: 30.9829375 | I58: 33.35086554 | J58: 31.30347021 | K58: 34.18 | L58: 23.51520741 | M58: 35.33947042 | N58: 36.53306401 | O58: 40.7740341 | P58: 38.14363246 | Q58: 33.80046902 | R58: 1
A59: N176 | B59: 439772 | C59: 113952 | D59: Salisbury Arms, Shirley High Street | E59: 34.72594065 | F59: 36.94952506 | G59: 31.99009637 | H59: 31.3177937 | I59: 28.32132138 | J59: 30.2181928 | K59: 29.95 | L59: 17.43085305 | M59: 36.24069403 | N59: 34.14524494 | O59: 37.99082358 | P59: 37.39660968 | Q59: 32.22309127 | R59: 1
A60: N177 | B60: 439844 | C60: 113907 | D60: 95 Shirley High Street (Windsor Castle Pub) | E60: 36.05508255 | F60: 34.75440885 | G60: 30.55994814 | I60: 41.65078913 | J60: 31.4730448 | K60: 32.74 | L60: 22.5902211 | M60: 35.70379486 | N60: 35.49593664 | O60: 36.47993787 | P60: 40.76036095 | Q60: =AVERAGE(E60,F60,G60,I60,J60,K60,L60,M60,N60,O60,P60) -> 34.38759317 | R60: 0.92
A61: N178 | B61: 437265 | C61: 113682 | D61: 2 Gover Road | E61: 22.72089442 | F61: 28.70096348 | G61: 23.6219028 | H61: 23.02263646 | I61: 20.96609524 | J61: 19.93023543 | K61: 20.64 | L61: 17.84122837 | N61: 24.34808118 | O61: 23.04174593 | P61: 25.10113731 | Q61: =AVERAGE(E61,F61,G61,H61,I61,J61,K61,L61,N61,O61,P61) -> 22.72135642 | R61: 1
A62: N180 | B62: 441633 | C62: 112318 | D62: Opposite 5 Commercial Road | E62: 42.04249638 | F62: 42.32498944 | G62: 32.64190574 | R62: 0.25
A63: N184A | B63: 437811 | C63: 113557 | D63: Redbridge AMS (A) | E63: 38.00544979 | F63: 47.13297705 | G63: 34.73908391 | H63: 31.60944601 | I63: 24.34442113 | J63: 28.21922495 | K63: 29.62 | L63: 22.71227383 | M63: 35.67041203 | N63: 34.70125139 | O63: 38.31835713 | P63: 39.48842899 | Q63: 33.71344385 | R63: 0.25
A64: N184B | D64: Redbridge AMS (B) | E64: 36.15653602 | F64: 44.48505699 | G64: 33.1404712 | H64: 28.03919033 | I64: 40.58086012 | J64: 29.07933223 | K64: 28.91 | L64: 21.67249709 | M64: 36.70991675 | N64: 37.79685025 | O64: 38.95058588 | P64: 39.46835314 | Q64: 34.58247083 | R64: 1
A65: N184C | D65: Redbridge AMS (C) | E65: 37.2453408 | F65: 41.65381939 | G65: 32.52562016 | H65: 30.86978941 | I65: 32.47287798 | J65: 32.62548053 | K65: 29.86 | L65: 22.9248438 | M65: 36.76766702 | N65: 36.70220824 | O65: 36.88674237 | P65: 36.6510715 | Q65: 33.93212177 | R65: 1
A66: N185 | B66: 437167 | C66: 113713 | D66: Redbridge Causeway 1 | E66: 52.38884982 | F66: 45.72215283 | G66: 43.62127247 | H66: 44.77555031 | I66: 50.12207143 | J66: 40.48637909 | K66: 43.77 | L66: 40.85939893 | M66: 50.49028876 | N66: 44.86318666 | O66: 55.27978125 | P66: 53.808322 | Q66: 47.18227113 | R66: 1
A67: N186 | B67: 437126 | C67: 113701 | D67: Redbridge Causeway 2 | I67: 34.3770253 | J67: 35.90736632 | K67: 35.02 | L67: 29.56473699 | M67: 36.05929873 | N67: 30.77552649 | O67: 38.89508463 | P67: 35.54562694 | Q67: =AVERAGE(I67,J67,K67,L67,M67,N67,O67,P67) -> 34.51808317 | R67: 0.66
A68: N187 | B68: 444102 | C68: 113872 | D68: Cobden Avenue | E68: 35.15433767 | F68: 28.79146881 | G68: 32.10943007 | H68: 28.73674922 | I68: 31.57892057 | J68: 27.63299154 | K68: 27.81 | L68: 25.18996014 | M68: 29.66062462 | N68: 36.31557621 | O68: 38.77511588 | P68: 33.269354 | Q68: 31.25204406 | R68: 1
A69: N188 | B69: 441300 | C69: 112233 | D69: Blechynden Terrace, Taxi | E69: 35.90778003 | F69: 37.55771225 | G69: 31.32172405 | H69: 30.55350131 | I69: 29.44185106 | J69: 28.86531072 | K69: 28.44 | L69: 24.58159205 | M69: 34.62425533 | N69: 31.29281934 | O69: 34.18232942 | P69: 35.28992863 | Q69: 31.83823368 | R69: 1
A70: N189 | B70: 441790 | C70: 112465 | D70: Cumberland House | E70: 45.22386439 | F70: 37.90300459 | G70: 34.94698083 | H70: 35.38145913 | I70: 31.11809131 | J70: 35.83216712 | K70: 32.17 | L70: 33.00651584 | M70: 35.54518606 | N70: 38.49843217 | O70: 40.73773645 | P70: 35.99755555 | Q70: 36.36341612 | R70: 1
A71: N190 | B71: 442024 | C71: 112553 | D71: Brunswick Apartments | E71: 36.65120671 | F71: 36.96750092 | G71: 38.01669133 | H71: 41.38070848 | I71: 31.8040606 | J71: 35.79956754 | K71: 35.87 | L71: 30.82921223 | M71: 37.67535048 | N71: 44.23710695 | O71: 42.50651076 | P71: 29.90787141 | Q71: 36.80381562 | R71: 1
A72: N191 | B72: 441915 | C72: 112097 | D72: Marlands House | E72: 43.48391267 | F72: 41.27403207 | G72: 37.64841912 | H72: 38.51601438 | I72: 45.31452185 | J72: 37.52678301 | K72: 37.83 | L72: 35.91982657 | M72: 41.55050946 | N72: 41.99778103 | O72: 43.42258663 | P72: 40.34330858 | Q72: 40.40230795 | R72: 1
A73: N192 | B73: 441961 | C73: 112029 | D73: Above Bar Street Bus Stop | E73: 49.74733068 | F73: 40.50236992 | G73: 39.82012512 | H73: 42.22450778 | I73: 37.56739871 | J73: 38.82307328 | K73: 36.92 | L73: 39.38122115 | M73: 40.40406261 | N73: 38.45625995 | O73: 47.28581302 | P73: 38.71949741 | Q73: 40.82097164 | R73: 1
A74: N193 | B74: 441975 | C74: 112031 | D74: Above Bar Street Taxi Rank | E74: 36.53463745 | F74: 33.49805191 | G74: 34.35263857 | H74: 28.76438607 | I74: 32.52562016 | J74: 28.32148119 | K74: 25.75 | L74: 30.01229887 | M74: 29.07119333 | N74: 34.87274265 | O74: 31.51025223 | P74: 33.59609319 | Q74: =AVERAGE(E74:P74) -> 31.56744964 | R74: 1
A75: N194 | B75: 442090 | C75: 111775 | D75: Vincents Walk Bus Stop | E75: 53.19476968 | F75: 40.3411796 | G75: 43.33878905 | H75: 39.64050431 | I75: 43.98234459 | J75: 43.41406817 | K75: 41.76 | M75: 46.88352972 | N75: 40.5234562 | O75: 45.56817327 | P75: 45.65023977 | Q75: =AVERAGE(E75,F75,G75,H75,I75,J75,K75,M75,N75,O75,P75) -> 44.02700494 | R75: 0.92
A76: N195 | B76: 441945 | C76: 111655 | D76: Bargate Street | E76: 48.33725251 | F76: 36.52184053 | G76: 38.41246958 | H76: 35.14469573 | I76: 33.79631231 | J76: 31.99513058 | K76: 31.71 | L76: 29.21964811 | M76: 32.84402929 | N76: 52.154241 | O76: 42.33957624 | P76: 33.24669764 | Q76: 37.14349113 | R76: 1
A77: N197 | B77: 440957 | C77: 115151 | D77: 351 Winchester Road | E77: 30.73402284 | F77: 39.74991274 | G77: 28.18070047 | H77: 38.15761498 | I77: 26.67644596 | J77: 31.18563498 | K77: 33.53 | L77: 24.57620935 | M77: 31.06245728 | N77: 41.77589308 | O77: 34.62832141 | P77: 20.1887665 | Q77: 31.70383163 | R77: 1
A78: N198A | B78: 442304 | C78: 112771 | D78: Onslow Road (A) | E78: 38.97671789 | F78: 39.14577548 | G78: 33.11653726 | H78: 34.89570724 | I78: 31.77038583 | J78: 29.9010858 | K78: 33.64 | L78: 33.03545818 | M78: 30.81845161 | N78: 35.13589262 | O78: 40.11423882 | P78: 35.60727653 | Q78: 34.67979394 | R78: 1
A79: N198B | D79: Onslow Road (B) | E79: 34.89871218 | F79: 38.66600723 | G79: 33.75168499 | H79: 33.58128814 | I79: 30.01443906 | J79: 28.51799593 | K79: 33.01 | L79: 28.75572578 | M79: 31.86371638 | N79: 35.83165287 | O79: 41.03382148 | P79: 35.67300293 | Q79: 33.79983725 | R79: 1
A80: N198C | D80: Onslow Road (C) | E80: 38.77179298 | F80: 35.04768063 | G80: 33.90134842 | H80: 34.74730508 | I80: 29.91234913 | J80: 29.0119566 | K80: 33.68 | L80: 32.50558655 | M80: 33.65078196 | N80: 37.69383471 | O80: 40.48207188 | P80: 33.84909536 | Q80: 34.43781694 | R80: 1
A81: N199 | B81: 442210 | C81: 112583 | D81: Dorset Street/Charlottes Place Crossing | E81: 47.68870127 | F81: 47.46256525 | H81: 45.83624335 | I81: 39.83174125 | J81: 37.91381041 | K81: 43.72 | L81: 30.96728818 | M81: 33.34438281 | N81: 37.64557436 | O81: 37.86095132 | P81: 37.07078397 | Q81: =AVERAGE(E81,F81,H81,I81,J81,K81,L81,M81,N81,O81,P81) -> 39.94018565 | R81: 0.92
A82: N200 | B82: 443160 | C82: 112765 | D82: Northam Bridge South | E82: 39.92197631 | F82: 36.66259853 | G82: 34.86437978 | H82: 31.47495565 | I82: 36.01307818 | J82: 30.14684315 | K82: 32.33 | L82: 30.21196178 | M82: 33.78177378 | N82: 33.20087704 | O82: 43.39536762 | P82: 32.88780006 | Q82: 34.57430099 | R82: 1
A83: N201 | B83: 439759 | C83: 112738 | D83: 289 Millbrook Road West | E83: 54.69752353 | F83: 53.16201434 | G83: 51.45819641 | H83: 47.25461932 | I83: 48.44319558 | J83: 49.1137792 | L83: 46.40300889 | M83: 65.37580994 | N83: 55.00939188 | O83: 65.8225657 | P83: 60.31044841 | Q83: =AVERAGE(E83,F83,G83,H83,I83,J83,L83,M83,N83) -> 52.32417101 | R83: 0.92
A84: N202 | B84: 437166 | C84: 113755 | D84: Redbridge Causeway North | E84: 48.1344526 | F84: 43.74663354 | G84: 41.88640063 | H84: 36.22340871 | I84: 35.13458929 | K84: 42.72 | M84: 39.00861346 | N84: 57.18573829 | O84: 47.51103622 | P84: 48.20727475 | Q84: =AVERAGE(E84,F84,G84,H84,I84,K84,M84,N84,O84,P84) -> 43.97581475 | R84: 0.83
A85: N204 | B85: 442542 | C85: 113261 | D85: 6 Lodge Road | E85: 38.89281704 | F85: 40.01352285 | G85: 33.34533493 | H85: 40.10995301 | I85: 34.21674191 | J85: 28.81231455 | K85: 33.68 | L85: 28.17417602 | M85: 34.41647037 | N85: 37.90034903 | O85: 38.62342748 | P85: 36.62311991 | Q85: 35.40068559 | R85: 1
A86: N205 | B86: 442101 | C86: 113438 | D86: Stags Gate, Lodge Road | E86: 36.08548514 | F86: 39.64295664 | G86: 31.65411667 | H86: 33.73402183 | K86: 34.59 | L86: 24.48954751 | M86: 35.56239757 | O86: 39.81263882 | P86: 39.18546551 | Q86: =AVERAGE(E86,F86,G86,H86,K86,L86,M86,P86) -> 34.36799886 | R86: 0.75
A87: N206 | B87: 442265 | C87: 112516 | D87: Charlottes Place | E87: 40.18948483 | F87: 42.53627148 | G87: 35.6362727 | H87: 38.83298105 | I87: 33.26757095 | J87: 31.82725755 | K87: 36.42 | L87: 41.39994916 | M87: 41.65997656 | N87: 40.81924281 | O87: 41.01808861 | P87: 40.31230892 | Q87: 38.65995038 | R87: 1
A88: N207 | B88: 439698 | C88: 112806 | D88: 205 Waterhouse Lane | E88: 37.74214131 | F88: 38.93926271 | G88: 32.01115213 | H88: 26.74330611 | I88: 31.56024991 | J88: 26.68295588 | K88: 30.39 | L88: 22.04275432 | M88: 35.50895527 | N88: 35.69386821 | O88: 33.05428656 | P88: 27.75762034 | Q88: 31.51054606 | R88: 1
A89: N208 | B89: 441365 | C89: 115202 | D89: Sherwood Close | E89: 37.29843022 | F89: 41.38323816 | G89: 26.66629284 | H89: 34.0671455 | I89: 30.37506755 | J89: 28.22373856 | K89: 30.74 | L89: 21.14359704 | M89: 31.92202609 | N89: 38.90654837 | O89: 33.67006042 | P89: 35.89447067 | Q89: 32.52421795 | R89: 1
A90: N209 | B90: 441246 | C90: 115138 | D90: 40 Burgess Road | E90: 35.01315862 | F90: 39.13556389 | G90: 29.31175177 | H90: 32.22364089 | I90: 27.55613055 | J90: 25.94340371 | K90: 26.84 | L90: 23.79813674 | M90: 29.83331224 | N90: 35.58750633 | O90: 32.72561814 | P90: 34.43716785 | Q90: 31.03378256 | R90: 1
A91: N210 | B91: 441122 | C91: 115118 | D91: 18 Burgess Road | E91: 40.81340376 | F91: 43.20701943 | G91: 32.97572074 | H91: 34.36393457 | I91: 36.25716937 | J91: 30.27955075 | K91: 30.92 | L91: 28.23301856 | M91: 33.65939239 | N91: 41.01578558 | O91: 38.81791859 | P91: 38.491496 | Q91: 35.75286748 | R91: 1
A92: N211 | B92: 437332 | C92: 113873 | D92: 4 Coniston Road | E92: 26.13880609 | F92: 32.57878942 | G92: 23.71968512 | H92: 25.54330596 | I92: 21.4984375 | J92: 22.64799481 | K92: 23.75 | L92: 15.54847024 | M92: 28.54904815 | N92: 26.4060764 | O92: 25.0850746 | P92: 28.6274577 | Q92: 25.00776217 | R92: 1
A93: N213 | B93: 442935 | C93: 114374 | D93: 277 Portswood Road | E93: 33.3224447 | F93: 37.95468489 | G93: 30.07060349 | H93: 32.03613375 | I93: 27.49292017 | J93: 25.40176906 | K93: 24.65 | L93: 24.7125037 | M93: 25.79970586 | N93: 31.71769576 | O93: 35.23633879 | P93: 29.62204705 | Q93: 29.83473727 | R93: 1
A94: N214 | B94: 441677 | C94: 115280 | D94: 64 Burgess Road 2019 | E94: 35.79732133 | F94: 41.2283442 | G94: 29.59621271 | H94: 38.34643369 | I94: 31.01060899 | J94: 26.58483234 | K94: 26.21 | L94: 25.53448148 | M94: 26.20895672 | N94: 35.42360302 | O94: 32.01257032 | P94: 34.59787113 | Q94: 31.87926966 | R94: 1
A95: N216 | B95: 442352 | C95: 113486 | D95: 73 Lodge Road | E95: 34.75353936 | F95: 37.57667064 | G95: 30.68175755 | H95: 35.17582792 | I95: 30.97684322 | J95: 29.80767631 | K95: 31.33 | L95: 26.01568575 | M95: 33.70824315 | N95: 38.55521468 | O95: 33.33141252 | P95: 36.24450185 | Q95: 33.17978108 | R95: 1
A96: N217 | B96: 440751 | C96: 112188 | D96: 11 Saxon Road | E96: 28.65745036 | F96: 37.38011332 | G96: 33.0706845 | H96: 27.41972143 | I96: 34.58509172 | J96: 29.15417568 | K96: 30.28 | L96: 22.44936062 | M96: 37.24009673 | N96: 35.82433782 | O96: 33.23814848 | P96: 32.92964984 | Q96: 31.85240254 | R96: 1
A97: N218 | B97: 443547 | C97: 114101 | D97: 112 St Denys Road | E97: 39.53104549 | F97: 43.99584431 | G97: 38.99156976 | H97: 41.70850384 | I97: 34.13841382 | J97: 31.12008905 | K97: 33.6 | L97: 29.59245261 | M97: 35.9492977 | N97: 36.05407064 | O97: 39.83899423 | P97: 32.99725507 | Q97: 36.45979471 | R97: 1

Sheet Sheet2 (hidden)
F2: Ref | H2: Location | I2: Sample | J2: Exposure Data | O2: µg NO2
E3: no | G3: Trim | I3: Number | J3: Date On* | K3: Date Off* | L3: Time* (hr.) | M3: mg/m3 * | N3: ppb * | O3: on tube
A4: 6 Sandringham Road | B4: N100 | C4: =VLOOKUP($B4,$F$4:$O$186,8,FALSE) ->  | E4: =RIGHT(F4,3) ->  | F4: =RIGHT(G4,4) ->  | G4: =TRIM(H4) ->  | N4: 18.21422546 | O4: 1.674
A5: Redbridge School Fence | B5: N101 | N5: 16.01320392 | O5: 1.286
A6: 485 Millbrook Road | B6: N103 | N6: 14.42561 | O6: 1.16
A7: Regents Park Junction | B7: N104 | N7: 22.93179394 | O7: 1.956
A8: 2 Romsey Road, Oakhill | B8: N106 | N8: 27.36931121 | O8: 2.302
A9: Cranbury Place | B9: N107 | N9: 22.24170908 | O9: 2.027
A10: 72 Bevois Valley | B10: N109 | N10: 21.71239132 | O10: 1.946
A11: Brintons Road 1 | B11: N110 | N11: 21.71687642 | O11: 2.05
A12: Brintons Road 2 | B12: N111 | N12: 26.11210301 | O12: 2.238
A13: Brintons Road 3 | B13: N112 | N13: 17.15677136 | O13: 1.564
A14: 206 Bitterne Road | B14: N113 | N14: 16.21941165 | O14: 1.495
A15: Bitterne Library | B15: N114 | N15: 16.03182345 | O15: 1.625
A16: 54 Redbridge Road | B16: N115 | N16: 21.09961511 | O16: 1.815
A17: 57 Redbridge Road | B17: N116 | N17: 20.98772913 | O17: 1.754
A18: Victoria Road (Lamp Post) | B18: N117 | N18: 18.34066323 | O18: 1.709
A19: 3 Rockstone Lane | B19: N118 | N19: 23.38336776 | O19: 1.915
A20: 6-9 Canute Road | B20: N120 | N20: 19.08380251 | O20: 2.943
A21: 151 Paynes Road | B21: N122 | N21: 19.79587169 | O21: 1.345
A22: 305 Millbrook Road | B22: N124 | N22: 34.63631354 | O22: 1.361
A23: Princes Court | B23: N125 | N23: 17.15898685 | O23: 1.74
A24: 107 St Andrews Road | B24: N126 | N24: 23.61014299 | O24: 1.724
A25: South West House | B25: N129 | N25: 20.84043612 | O25: 1.706
A26: 367A Millbrook Road | B26: N130 | N26: 20.19903511 | O26: 1.726
A27: 142 Romsey Road | B27: N131 | N27: 20.76864159 | O27: 2.14
A28: 539 Millbrook Road | B28: N133 | N28: 18.19265958 | O28: 1.897
A29: 435 Millbrook Road West Ladbrokes | B29: N134 | N29: 37.04271481 | O29: 2
A30: 66 Burgess Road | B30: N138 | N30: 20.31864839 | O30: 1.794
A31: 5 Commercial Road | B31: N140 | N31: 23.56625905 | O31: 1.831
A32: Town Quay Road | B32: N141 | N32: 21.58720019 | O32: 1.829
A33: 102 Romsey Road | B33: N143 | N33: 21.49728439 | O33: 1.769
A34: 44B Burgess Road | B34: N149 | E34: =RIGHT(F34,3) ->  | N34: 22.59489212 | O34: 1.751
A35: 134 Romsey Road | B35: N151 | N35: 18.21753436 | O35: 1.768
A36: M271 | B36: N152 | C36: =VLOOKUP($B36,$F$4:$O$186,8,FALSE) ->  | F36: =RIGHT(G36,4) ->  | G36: =TRIM(H36) ->  | N36: 21.99618199 | O36: 1.658
A37: 24 Portsmouth Road | B37: N158 | N37: 17.18591934 | O37: 2.19
A38: 35 Portsmouth Road | B38: N159 | N38: 19.46296168 | O38: 2.263
A39: 263A Portswood Road | B39: N162 | N39: 19.44151912 | O39: 1.87
A40: 8 The Broadway | B40: N165 | N40: 22.82827714 | O40: 2.028
A41: 14 New Road | B41: N166 | N41: 21.92057963 | O41: 2.774
A42: 150 Romsey Road | B42: N169 | N42: 19.50432762 | O42: 2.003
A43: Union Castle House (2) | B43: N170 | N43: 20.84269329 | O43: 2.027
A44: 4 New Road | B44: N172 | N44: 27.15925593 | O44: 1.601
A45: 166A Bitterne Road West | B45: N174 | N45: 22.45140624 | O45: 1.391
A46: 95 Shirley High Street (Windsor Castle Pub) | B46: N177 | N46: 21.90773696 | O46: 1.439
A47: 2 Gover Road | B47: N178 | N47: 17.68097131 | O47: 1.717
A48: Redbridge AMS (A) | B48: 184A | N48: 17.43421018 | O48: 2.333
A49: Redbridge AMS (B) | B49: 184B | N49: 17.28400776 | O49: 1.95
A50: Redbridge AMS (C) | B50: 184C | N50: 20.26131699 | O50: 1.727
A51: Redbridge Causeway 1 | B51: N185 | N51: 23.35783768 | O51: 1.871
A52: Redbridge Causeway 2 | B52: N186 | N52: 21.9542245 | O52: 2.003
A53: Cumberland House | B53: N189 | N53: 19.41148423 | O53: 2.435
A54: Brunswick Apartments | B54: N190 | N54: 20.50418367 | O54: 1.778
A55: Marlands House | B55: N191 | N55: 20.34349258 | O55: 1.552
A56: Above Bar Street Bus Stop | B56: N192 | E56: =RIGHT(F56,3) ->  | N56: 25.70479225 | O56: 1.934
A57: Above Bar Street Taxi Rank | B57: N193 | N57: 18.98751419 | O57: 1.998
A58: Vincents Walk Bus Stop | B58: N194 | N58: 22.48576924 | O58: 1.635
A59: Bargate Street | B59: N195 | N59: 20.06891203 | O59: 1.873
A60: 351 Winchester Road | B60: N197 | N60: 18.21296404 | O60: 1.843
A61: Onslow Road (A) | B61: 198A | N61: 21.71497933 | O61: 1.614
A62: Onslow Road (B) | B62: 198B | N62: 18.15394016 | O62: 1.614
A63: Onslow Road (C) | B63: 198C | N63: 20.38359987 | O63: 1.687
A64: Dorset Street/Charlottes Place Crossing | B64: N199 | N64: 22.98635148 | O64: 1.677
A65: Northam Bridge South | B65: N200 | N65: 18.28266289 | O65: 1.919
A66: 289 Millbrook Road West | B66: N201 | N66: 22.96450063 | O66: 1.743
A67: Redbridge Causeway North | B67: N202 | N67: 19.29458978 | O67: 1.186
A68: 6 Lodge Road | B68: N204 | C68: =VLOOKUP($B68,$F$4:$O$186,8,FALSE) ->  | F68: =RIGHT(G68,4) ->  | G68: =TRIM(H68) ->  | N68: 20.65528069 | O68: 1.833
A69: Stags Gate, Lodge Road | B69: N205 | N69: 20.99477376 | O69: 1.748
A70: Charlottes Place | B70: N206 | N70: 18.91006377 | O70: 1.977
A71: 205 Waterhouse Lane | B71: N207 | N71: 12.5942076 | O71: 1.838
A72: Sherwood Close | B72: N208 | N72: 20.76169635 | O72: 1.667
A73: 40 Burgess Road | B73: N209 | N73: 20.72633742 | O73: 1.944
A74: 18 Burgess Road | B74: N210 | N74: 20.65089053 | O74: 1.949
A75: 4 Coniston Road | B75: N211 | N75: 21.7013336 | O75: 1.694
A76: 64 Burgess Road 2019 | B76: N214 | N76: 20.77166188 | O76: 1.505
A77: 73 Lodge Road | B77: N216 | N77: 22.94458985 | O77: 1.984
A78: 11 Saxon Road | B78: N217 | N78: 23.53332872 | O78: 2.063
A79: 112 St Denys Road | B79: N218 | N79: 18.55973138 | O79: 1.627
A80: 10 Regents Park Road | B80: N219 | N80: 22.95155472 | O80: 2.012
A81: Bassett Avenue | B81: N220 | N81: 20.35050614 | O81: 2.38
N82: 17.47802522 | O82: 1.85
E87: =RIGHT(F87,3) -> 
F100: =RIGHT(G100,4) ->  | G100: =TRIM(H100) -> 

Sheet 2022
A1: Southampton City Council NO2 Diffusion Tube Data 2022
A2: Status
A3: Bias Adjustment factor | B3: 0.83 March 2023 gradko 20% TEA National factor
A4: Other comments
A8: Site ID | B8: X OS Grid Ref | C8: Y | D8: Site Name | E8: 2022-01-01 | F8: 2022-02-01 | G8: 2022-03-01 | H8: 2022-04-01 | I8: 2022-05-01 | J8: 2022-06-01 | K8: 2022-07-01 | L8: 2022-08-01 | M8: 2022-09-01 | N8: 2022-10-01 | O8: 2022-11-01 | P8: 2022-12-01 | Q8: Undajusted annual mean | R8: Data capture | S8: adjusted annual mean
A9: N100 | B9: 444387 | C9: 114453 | D9: 6 Sandringham Road | E9: 30.61415819 | F9: 20.73762926 | G9: 24.17054744 | H9: 15.34385913 | I9: 13.61621673 | J9: 13.63950409 | K9: 32.77150725 | L9: 14.80297246 | M9: 14.95991434 | N9: 18.46282575 | O9: 20.27720999 | P9: 25.97945616 | Q9: =AVERAGE(E9:P9)*0.83 -> 16.97182622 | R9: =(COUNT(E9:P9))/(COUNTA(E9:P9)) -> 1 | S9: =Q9*0.83 -> 14.08661576
A10: N101 | B10: 437548 | C10: 113719 | D10: Redbridge School Fence | E10: 41.76698485 | G10: 44.81964219 | H10: 33.4452397 | I10: 34.22544633 | J10: 37.04109237 | K10: 40.66518676 | L10: 42.66858949 | M10: 36.98016591 | N10: 42.39004618 | O10: 48.99736192 | P10: 39.0941183 | Q10: =AVERAGE(E10:P10) -> 40.19035218 | R10: =(COUNT(E10:P10))/12 -> 0.9166666667 | S10: =Q10*0.83 -> 33.35799231
A11: N103 | B11: 438808 | C11: 112903 | D11: 485 Millbrook Road | E11: 31.8275597 | F11: 29.66976434 | G11: 32.38491956 | H11: 24.22936932 | I11: 25.22102263 | J11: 25.55457716 | K11: 25.42290739 | L11: 28.28257852 | M11: 25.79663214 | N11: 33.43155158 | O11: 33.05924171 | P11: 27.19795774 | Q11: 28.50650682 | R11: 1 | S11: =Q11*0.83 -> 23.66040066
A12: N104 | B12: 439222 | C12: 112850 | D12: Regents Park Junction | E12: 35.93123616 | F12: 38.04087642 | G12: 42.28342017 | H12: 29.20687983 | J12: 31.540156 | K12: 36.18783099 | L12: 38.00670338 | M12: 32.40377857 | N12: 43.41387263 | O12: 43.31057147 | P12: 41.0115911 | Q12: 37.39426516 | R12: 0.9166666667 | S12: 31.03724008
A13: N106 | B13: 439752 | C13: 113984 | D13: 2 Romsey Road, Oakhill | E13: 37.66005182 | F13: 23.22860651 | G13: 38.81251788 | H13: 26.86364624 | I13: 29.16774332 | J13: 30.78812832 | K13: 30.94861552 | L13: 32.60572323 | M13: 31.87197237 | N13: 37.61902839 | O13: 39.45112873 | P13: 33.13040152 | Q13: 32.67896365 | R13: 1 | S13: 27.12353983
A14: N107 | B14: 442364 | C14: 112890 | D14: Cranbury Place | E14: 58.29264868 | F14: 44.25186161 | G14: 42.33690714 | H14: 40.20006237 | I14: 36.74704511 | J14: 40.00830021 | K14: 40.87085655 | L14: 38.94152191 | M14: 44.02813517 | N14: 40.3622789 | O14: 48.17539832 | P14: 48.52377541 | Q14: 43.56156595 | R14: 1 | S14: 36.15609974
A15: N109 | B15: 442585 | C15: 113248 | D15: 72 Bevois Valley | E15: 47.32030356 | F15: 31.08284467 | G15: 44.69654286 | I15: 29.00438149 | J15: 28.12977339 | K15: 21.95312222 | L15: 35.27703351 | M15: 33.53117413 | N15: 35.2232196 | O15: 41.05200149 | P15: 42.750071 | Q15: 35.45640617 | R15: 0.9166666667 | S15: 29.42881712
A16: N110 | B16: 442579 | C16: 112248 | D16: Brintons Road 1 | E16: 38.38295009 | F16: 27.83553442 | G16: 34.25452488 | H16: 23.62763995 | I16: 20.77211479 | J16: 22.23736454 | K16: 23.33275015 | L16: 25.34641507 | M16: 26.59973522 | N16: 29.43362885 | P16: 31.72948009 | Q16: 27.59564891 | R16: 0.9166666667 | S16: 22.9043886
A17: N111 | D17: Brintons Road 2 | E17: 36.35956774 | F17: 30.06322582 | G17: 32.80659186 | H17: 24.33294264 | I17: 19.5755644 | J17: 21.13133472 | K17: 19.15544611 | L17: 23.85024559 | M17: 28.17542662 | N17: 29.13036307 | O17: 29.94896692 | P17: 33.21752605 | Q17: 27.3122668 | R17: 1 | S17: 22.66918144
A18: N112 | D18: Brintons Road 3 | E18: 37.36103981 | F18: 26.01094909 | G18: 32.88593066 | H18: 24.1482205 | I18: 20.61257474 | J18: 21.32521932 | L18: 23.84064094 | M18: 29.73736988 | N18: 29.95591992 | O18: 31.05364193 | P18: 33.04702079 | Q18: 28.17986614 | R18: 0.9166666667 | S18: 23.3892889
A19: N113 | B19: 444124 | C19: 113288 | D19: 206 Bitterne Road | E19: 47.15967097 | F19: 30.77731481 | G19: 34.95668825 | H19: 38.38820745 | I19: 31.28678497 | J19: 32.2007873 | K19: 32.27656004 | L19: 41.18035223 | M19: 37.54049299 | N19: 40.50224455 | O19: 34.85359945 | P19: 38.16266506 | Q19: 36.60711401 | R19: 1 | S19: 30.38390462
A20: N114 | B20: 444131 | C20: 113322 | D20: Bitterne Library | E20: 37.33168975 | F20: 34.71718922 | G20: 38.6780118 | H20: 29.67881091 | K20: 29.64840294 | L20: 24.34189786 | M20: 30.72126392 | N20: 39.25171199 | O20: 34.58196884 | P20: 41.04430664 | Q20: 33.99952539 | R20: 0.8333333333 | S20: 28.21960607
A21: N115 | B21: 437939 | C21: 113474 | D21: 54 Redbridge Road | E21: 31.22450152 | F21: 32.9087216 | G21: 37.59077998 | H21: 28.27167919 | I21: 27.33271143 | J21: 28.62266229 | K21: 32.22246651 | L21: 32.57580431 | M21: 30.02166339 | N21: 40.44071954 | O21: 37.42770311 | P21: 29.7141665 | Q21: 32.36279828 | R21: 1 | S21: 26.86112257
A22: N116 | B22: 437952 | C22: 113407 | D22: 57 Redbridge Road | E22: 31.80871332 | F22: 28.45812176 | G22: 34.88336366 | H22: 28.18684028 | I22: 27.51094591 | J22: 25.98542118 | K22: 30.0542212 | L22: 33.33759617 | M22: 33.51012299 | N22: 37.98691558 | O22: 36.12441056 | P22: 29.71538329 | Q22: 31.46350466 | R22: 1 | S22: 26.11470887
A23: N117 | B23: 443752 | C23: 111121 | D23: Victoria Road (Lamp Post) | E23: 38.35753708 | F23: 36.88435318 | G23: 36.34272142 | H23: 29.53552696 | I23: 28.94052518 | J23: 25.45955384 | K23: 29.70050741 | L23: 32.32603846 | M23: 31.11158497 | N23: 33.93352391 | O23: 35.47033272 | P23: 39.32053802 | Q23: 33.1152286 | R23: 1 | S23: 27.48563973
A24: N118 | B24: 442472 | C24: 113065 | D24: 3 Rockstone Lane | E24: 38.91916112 | F24: 28.8785278 | G24: 39.13421844 | H24: 34.68570607 | I24: 23.43416928 | J24: 24.39283229 | M24: 30.31393723 | N24: 32.3097418 | O24: 32.29671366 | P24: 36.88879902 | Q24: 32.12538067 | R24: 0.8333333333 | S24: 26.66406596
A25: N120 | B25: 442716 | C25: 111019 | D25: 6-9 Canute Road | E25: 40.81821674 | F25: 38.22607401 | J25: 33.29336632 | L25: 34.01277096 | M25: 19.13220782 | N25: 39.28139914 | O25: 38.1252433 | P25: 37.13542587 | Q25: 35.00308802 | R25: 0.6666666667 | S25: 29.05256306
A26: N122 | B26: 440000 | C26: 112633 | D26: 151 Paynes Road | E26: 36.07958096 | F26: 32.21288699 | G26: 31.28834382 | H26: 24.77785533 | I26: 27.88031037 | J26: 27.51389957 | K26: 24.9823185 | L26: 28.23181381 | M26: 26.87582488 | N26: 31.77124767 | O26: 36.46150346 | P26: 30.6212711 | Q26: 29.8914047 | R26: 1 | S26: 24.80986591
A27: N123 | B27: 442348 | C27: 112305 | D27: 102 St Andrews Road | E27: 44.22802985 | F27: 30.17714507 | G27: 35.64036635 | H27: 28.58370945 | I27: 25.03180464 | J27: 25.93998429 | K27: 26.1782042 | L27: 29.53728216 | M27: 32.45199177 | N27: 32.20917262 | O27: 32.11452235 | P27: 35.42520771 | Q27: 31.45978504 | R27: 1 | S27: 26.11162158
A28: N124 | B28: 439741 | C28: 112753 | D28: 305 Millbrook Road | E28: 35.86146301 | F28: 33.35729219 | G28: 37.05229108 | H28: 28.98748542 | I28: 29.94864528 | J28: 29.71058219 | K28: 30.82141274 | L28: 34.72509524 | M28: 31.17588567 | N28: 35.82976834 | O28: 34.94565714 | P28: 29.63815065 | Q28: 32.67114408 | R28: 1 | S28: 27.11704959
A29: N125 | B29: 443125 | C29: 112641 | D29: Princes Court | E29: 44.75242691 | F29: 28.29501709 | G29: 42.58054672 | H29: 36.01004706 | I29: 30.12698141 | J29: 32.06969015 | K29: 28.02371781 | L29: 36.97225332 | M29: 38.82979651 | N29: 41.90521983 | O29: 40.93319912 | P29: 37.6830919 | Q29: 36.51516565 | R29: 1 | S29: 30.30758749
A30: N126 | B30: 442365 | C30: 112286 | D30: 107 St Andrews Road | E30: 42.78120203 | F30: 29.47176257 | G30: 51.3751038 | H30: 30.57243452 | I30: 25.07957526 | J30: 26.63095658 | K30: 27.62306847 | L30: 30.88910286 | M30: 35.08989176 | N30: 33.92701418 | O30: 33.37541377 | P30: 37.30939629 | Q30: 33.67707684 | R30: 1 | S30: 27.95197378
A31: N129 | B31: 442554 | C31: 111021 | D31: South West House | E31: 34.34267991 | F31: 29.77266087 | G31: 32.71680601 | I31: 23.38876415 | J31: 28.95128451 | K31: 25.82216684 | L31: 28.17103412 | M31: 29.60136272 | N31: 32.16231093 | O31: 29.78572372 | P31: 31.89836814 | Q31: 29.69210563 | R31: 0.9166666667 | S31: 24.64444767
A32: N130 | B32: 439346 | C32: 112821 | D32: 367A Millbrook Road | E32: 42.56928177 | F32: 43.25427787 | G32: 44.5865583 | H32: 39.7789476 | I32: 38.87625412 | J32: 43.92435491 | K32: 45.11448864 | L32: 49.06225419 | M32: 42.59382595 | N32: 48.14881341 | O32: 45.27570618 | P32: 35.73868693 | Q32: 43.24362082 | R32: 1 | S32: 35.89220528
A33: N131 | B33: 439378 | C33: 114185 | D33: 142 Romsey Road | E33: 36.5754096 | F33: 30.96678286 | G33: 40.68740181 | H33: 30.49202929 | I33: 30.03306711 | J33: 32.05423436 | K33: 30.99034022 | L33: 34.35906131 | M33: 31.68394016 | N33: 35.56078252 | P33: 32.74383496 | Q33: 33.28608038 | R33: 0.9166666667 | S33: 27.62744672
A34: N133 | B34: 438609 | C34: 113020 | D34: 539 Millbrook Road | E34: 31.00040724 | F34: 28.33462494 | G34: 32.87600906 | H34: 23.40664031 | I34: 24.41901521 | J34: 26.17115627 | K34: 24.72740391 | L34: 28.07917386 | M34: 26.16338529 | N34: 31.91473073 | O34: 32.87431 | P34: 26.67285258 | Q34: 28.05330912 | R34: 1 | S34: 23.28424657
A35: N134 | B35: 438980 | C35: 112861 | D35: 435 Millbrook Road West Ladbrokes | E35: 40.22286036 | F35: 34.50169739 | G35: 40.393575 | H35: 30.26271539 | I35: 30.32854353 | J35: 31.52121479 | K35: 33.4496245 | L35: 35.85831861 | M35: 32.03816218 | N35: 37.30559404 | O35: 40.28172032 | P35: 33.8931874 | Q35: 35.00476779 | R35: 1 | S35: 29.05395727
A36: N138 | B36: 441697 | C36: 115288 | D36: 66 Burgess Road | E36: 49.01081699 | F36: 35.07022744 | G36: 53.15085309 | H36: 44.03396001 | I36: 37.07710813 | J36: 38.43750787 | K36: 42.26423271 | L36: 42.48570309 | M36: 38.58130312 | N36: 31.88090066 | O36: 40.01020136 | P36: 41.52250159 | Q36: 41.12710967 | R36: 1 | S36: 34.13550103
A37: N140 | B37: 441628 | C37: 112332 | D37: 5 Commercial Road | E37: 46.1682782 | F37: 43.8285244 | G37: 48.39774644 | H37: 37.34818669 | I37: 38.33120604 | J37: 37.82904057 | K37: 34.09360557 | L37: 41.8070077 | M37: 37.69479873 | N37: 48.57026303 | O37: 49.00151839 | P37: 43.04595397 | Q37: 42.17634414 | R37: 1 | S37: 35.00636564
A38: N141 | B38: 441923 | C38: 110990 | D38: Town Quay Road | E38: 37.82643362 | G38: 42.20107253 | H38: 36.06358982 | I38: 30.29041766 | J38: 30.92089198 | K38: 31.78112983 | L38: 39.20053597 | M38: 31.97935842 | N38: 34.45937363 | O38: 30.59238946 | P38: 33.20187813 | Q38: 34.41064282 | R38: 0.9166666667 | S38: 28.56083354
A39: N143 | B39: 439457 | C39: 114150 | D39: 102 Romsey Road | E39: 37.21986617 | F39: 31.77279116 | G39: 35.96525571 | H39: 29.47880541 | I39: 29.46321974 | J39: 30.52013755 | K39: 29.66556007 | L39: 31.67977199 | M39: 31.93711217 | O39: 37.808017 | P39: 32.9965949 | Q39: 32.59155744 | R39: 0.9166666667 | S39: 27.05099268
A40: N144 | B40: 443147 | C40: 112709 | D40: 208 Northam Road | E40: 40.27718422 | F40: 31.68872228 | G40: 34.24573662 | H40: 27.58359513 | I40: 27.54683691 | J40: 28.8378794 | K40: 28.86146541 | L40: 28.30057936 | M40: 33.14778189 | N40: 33.91058793 | O40: 31.45565542 | P40: 40.76548503 | Q40: 32.21845913 | R40: 1 | S40: 26.74132108
A41: N146 | B41: 443164 | C41: 112741 | D41: 222 Northam Road | E41: 33.26683295 | F41: 27.99734854 | G41: 32.46494497 | H41: 22.6896512 | I41: 21.55139905 | J41: 21.48395299 | K41: 25.61676152 | L41: 25.44415048 | M41: 28.36588888 | N41: 33.01443074 | O41: 29.49917443 | P41: 32.70020371 | Q41: 27.84122829 | R41: 1 | S41: 23.10821948
A42: N149 | B42: 441552 | C42: 115247 | D42: 44B Burgess Road | E42: 45.9439487 | F42: 34.9641469 | G42: 42.0507335 | P42: 42.55 | Q42: 41.37720727 | R42: 0.3333333333 | S42: 34.34308204
A43: N151 | B43: 439394 | C43: 114176 | D43: 134 Romsey Road | E43: 38.19433957 | F43: 33.98394717 | G43: 37.95704059 | H43: 32.54759808 | I43: 31.23607823 | J43: 30.64159839 | K43: 31.70064119 | L43: 36.24872023 | M43: 32.43364041 | N43: 35.80532659 | O43: 38.93824354 | P43: 34.41721203 | Q43: 34.50869884 | R43: 1 | S43: 28.64222003
A44: N152 | B44: 437327 | C44: 113848 | D44: M271 | E44: 39.36372045 | F44: 39.49525899 | G44: 46.16973086 | H44: 38.28863962 | I44: 32.28723611 | J44: 37.61600955 | K44: 38.63259195 | L44: 44.06242605 | M44: 36.94118736 | N44: 46.23466869 | O44: 45.61537424 | P44: 36.04808426 | Q44: 40.06291068 | R44: 1 | S44: 33.25221586
A45: N158 | B45: 443807 | C45: 111123 | D45: 24 Portsmouth Road | E45: 43.08766143 | F45: 36.17083006 | G45: 38.47786368 | H45: 31.20382378 | I45: 30.95912133 | J45: 33.28098417 | K45: 34.35477019 | L45: 35.02241374 | M45: 31.78119805 | N45: 36.0012462 | O45: 34.65059836 | P45: 33.61848906 | Q45: 34.88408334 | R45: 1 | S45: 28.95378917
A46: N159 | B46: 443740 | C46: 111147 | D46: 35 Portsmouth Road | E46: 41.43069725 | F46: 31.73976264 | G46: 35.6236003 | H46: 30.33630943 | I46: 29.24770286 | J46: 26.39732737 | K46: 30.50908696 | L46: 31.81598465 | M46: 33.70756704 | N46: 31.63392515 | O46: 34.11259174 | P46: 32.91865313 | Q46: 32.45610071 | R46: 1 | S46: 26.93856359
A47: N161 | B47: 442705 | C47: 114129 | D47: 30 Addis Square | E47: 41.24532 | F47: 28.49760518 | G47: 34.52369758 | H47: 28.7006835 | I47: 24.44815063 | J47: 24.77094085 | K47: 26.34724787 | L47: 28.23268742 | M47: 32.99583748 | N47: 31.39815172 | O47: 32.81713189 | P47: 33.88074099 | Q47: 30.65484959 | R47: 1 | S47: 25.44352516
A48: N162 | B48: 442872 | C48: 114336 | D48: 263A Portswood Road | E48: 42.59427496 | F48: 37.27588534 | G48: 35.05565962 | H48: 30.82356989 | I48: 30.35155665 | J48: 30.43802225 | K48: 24.56000671 | L48: 30.29396083 | M48: 35.15097101 | N48: 37.8500581 | O48: 41.58675385 | P48: 35.9944019 | Q48: 34.33126009 | R48: 1 | S48: 28.49494588
A49: N164 | B49: 442809 | C49: 114241 | D49: 168 Portswood Road(Int.Food) | E49: 39.75329405 | F49: 29.05039042 | G49: 37.3715897 | H49: 28.87656733 | I49: 27.5690538 | J49: 33.53268713 | K49: 33.34374532 | L49: 33.18312274 | M49: 29.88537072 | N49: 32.67308707 | O49: 32.52956982 | P49: 34.1145076 | Q49: 32.65691547 | R49: 1 | S49: 27.10523984
A50: N165 | B50: 442766 | C50: 114181 | D50: 8 The Broadway | E50: 39.20144884 | F50: 31.36169886 | G50: 38.04459502 | H50: 31.56966468 | I50: 29.37132361 | J50: 32.28467997 | K50: 30.36483661 | L50: 33.03106158 | M50: 32.63699397 | N50: 36.82612166 | O50: 39.45543004 | P50: 37.34792944 | Q50: 34.29131536 | R50: 1 | S50: 28.46179174
A51: N166 | B51: 442251 | C51: 112129 | D51: 14 New Road | E51: 44.25297516 | G51: 40.74910045 | H51: 28.66271105 | I51: 27.67564609 | J51: 29.4744423 | K51: 31.56814553 | L51: 35.2156499 | M51: 35.532943 | N51: 35.97449174 | O51: 37.85285483 | P51: 39.5952656 | Q51: 35.14129324 | R51: 0.9166666667 | S51: 29.16727339
A52: N167 | B52: 439759 | C52: 114011 | D52: 13 Romsey Road | E52: 41.60278466 | F52: 25.54903782 | G52: 36.8401789 | H52: 30.79745777 | I52: 27.31046299 | J52: 26.12727747 | K52: 30.75552796 | L52: 34.38981455 | M52: 33.68507452 | N52: 34.48071291 | O52: 35.24547018 | Q52: 32.43489088 | R52: 0.9166666667 | S52: 26.92095943
A53: N168 | B53: 439737 | C53: 114025 | D53: 23 Romsey Road | E53: 37.86741709 | F53: 25.84594851 | G53: 41.37032423 | H53: 31.98557172 | I53: 27.33156845 | J53: 26.31301162 | K53: 31.1300914 | L53: 35.82798917 | M53: 32.85286157 | N53: 34.43995557 | O53: 35.49165507 | P53: 34.52282761 | Q53: 32.91493517 | R53: 1 | S53: 27.31939619
A54: N169 | B54: 439361 | C54: 114195 | D54: 150 Romsey Road | E54: 46.2216187 | F54: 32.26409516 | G54: 43.37715145 | H54: 32.98690504 | I54: 35.2461153 | J54: 37.50405144 | K54: 37.01547936 | L54: 39.82877412 | M54: 35.08856579 | N54: 44.16058208 | O54: 41.87194682 | P54: 34.79177297 | Q54: 38.36308818 | R54: 1 | S54: 31.84136319
A55: N170 | B55: 442482 | C55: 111003 | D55: Union Castle House (2) | E55: 46.69175971 | F55: 38.18445676 | G55: 40.59098491 | H55: 36.17909699 | I55: 30.82337762 | J55: 31.68256336 | K55: 30.7728172 | L55: 36.56809206 | M55: 36.03430411 | N55: 38.20512863 | O55: 38.13949354 | P55: 40.82935288 | Q55: 37.05845232 | R55: 1 | S55: 30.75851542
A56: N172 | B56: 442207 | C56: 112126 | D56: 4 New Road | E56: 46.52299813 | F56: 40.31010928 | G56: 42.76579537 | H56: 33.61675988 | I56: 33.21714484 | J56: 36.28207003 | K56: 37.37555407 | L56: 35.62047528 | M56: 38.98172865 | N56: 38.003911 | O56: 41.75087723 | P56: 37.38535338 | Q56: 38.48606476 | R56: 1 | S56: 31.94343375
A57: N174 | B57: 443959 | C57: 113315 | D57: 166A Bitterne Road West | E57: 46.19527023 | G57: 42.73583801 | H57: 33.77691028 | I57: 35.73529652 | J57: 39.09827363 | K57: 40.73199444 | L57: 32.82461867 | M57: 39.43909795 | N57: 35.27688398 | O57: 43.04240366 | P57: 28.77492525 | Q57: 37.96650115 | R57: 0.9166666667 | S57: 31.51219595
A58: N175 | B58: 439959 | C58: 113737 | D58: 38 Shirley High Street | F58: 33.82907799 | G58: 34.91951566 | H58: 28.21241145 | I58: 28.80895053 | J58: 28.96667544 | K58: 30.0386675 | L58: 30.13039479 | M58: 30.57555556 | N58: 34.92904369 | O58: 37.25598012 | P58: 36.43876934 | Q58: 32.19136746 | R58: 0.9166666667 | S58: 26.71883499
A59: N176 | B59: 439772 | C59: 113952 | D59: Salisbury Arms, Shirley High Street | E59: 38.30241492 | G59: 43.87898266 | H59: 28.30537245 | I59: 26.42403375 | J59: 26.89482718 | K59: 30.01963636 | M59: 51.68012037 | N59: 41.83741348 | O59: 33.46062972 | P59: 32.7742725 | Q59: 35.35777034 | R59: 0.8333333333 | S59: 29.34694938
A60: N177 | B60: 439844 | C60: 113907 | D60: 95 Shirley High Street (Windsor Castle Pub) | E60: 35.43682873 | F60: 29.30295135 | G60: 47.22351267 | H60: 29.38634142 | I60: 30.07527803 | J60: 29.17312556 | K60: 30.92664562 | L60: 36.36929855 | M60: 30.47852786 | N60: 40.04409035 | O60: 38.34329672 | P60: 34.90005402 | Q60: 34.3049959 | R60: 1 | S60: 28.4731466
A61: N178 | B61: 437265 | C61: 113682 | D61: 2 Gover Road | E61: 23.90494618 | F61: 19.02547094 | G61: 33.70314817 | H61: 22.15560132 | I61: 19.63151147 | J61: 19.89624086 | K61: 21.34314979 | L61: 24.60625931 | M61: 22.16385743 | N61: 28.33680095 | O61: 26.03994644 | P61: 23.72639577 | Q61: 23.71111072 | R61: 1 | S61: 19.6802219
A62: N184A | B62: 437811 | C62: 113557 | D62: Redbridge AMS (A) | E62: 33.11418456 | F62: 40.09329325 | G62: 46.22441025 | H62: 29.5184014 | I62: 30.75441502 | J62: 32.40068945 | K62: 34.09165382 | L62: 35.03221577 | M62: 31.94385325 | N62: 44.0569549 | O62: 45.6858595 | P62: 34.86578541 | Q62: 36.48180972 | R62: 1 | S62: 30.27990206
A63: N184B | D63: Redbridge AMS (B) | E63: 40.34606688 | F63: 39.60742098 | G63: 46.02526313 | H63: 27.13598295 | I63: 28.41595913 | J63: 31.62044471 | K63: 33.3421743 | L63: 37.00908306 | M63: 30.76665278 | N63: 43.05026074 | O63: 44.46160605 | P63: 34.48130874 | Q63: 36.35518529 | R63: 1 | S63: 30.17480379
A64: N184C | D64: Redbridge AMS (C) | E64: 39.19798612 | F64: 41.30670179 | G64: 43.16754962 | H64: 21.87876097 | I64: 29.52441054 | J64: 31.14819131 | K64: 34.6116558 | L64: 34.89205999 | M64: 33.12479648 | N64: 44.93404052 | O64: 44.36360939 | P64: 34.55316392 | Q64: 36.0585772 | R64: 1 | S64: 29.92861908
A65: N185 | B65: 437167 | C65: 113713 | D65: Redbridge Causeway 1 | E65: 47.72249279 | F65: 57.44933878 | G65: 48.28100689 | H65: 45.78998906 | I65: 37.73534129 | J65: 41.27084017 | K65: 48.18820276 | L65: 38.988339 | Q65: 45.67819384 | R65: 0.6666666667 | S65: 37.91290089
A66: N186 | B66: 437126 | C66: 113701 | D66: Redbridge Causeway 2 | E66: 42.62170377 | F66: 27.54910497 | G66: 37.92337961 | I66: 25.31327806 | J66: 25.2347575 | K66: 32.29454992 | L66: 38.93459356 | Q66: 32.83876677 | R66: 0.5833333333 | S66: 27.25617642
A67: N187 | B67: 444102 | C67: 113872 | D67: Cobden Avenue | E67: 39.79220112 | F67: 33.94779596 | G67: 44.02589531 | H67: 27.14408214 | I67: 28.05998751 | J67: 27.30389338 | K67: 31.08541082 | L67: 24.66968114 | M67: 28.96067525 | N67: 30.11452637 | O67: 34.05848249 | Q67: 31.74205741 | R67: 0.9166666667 | S67: 26.34590765
A68: N188 | B68: 441300 | C68: 112233 | D68: Blechynden Terrace, Taxi | E68: 36.52116625 | F68: 34.61717315 | G68: 41.59196208 | H68: 34.5887222 | I68: 25.71709658 | J68: 26.12505764 | K68: 25.57498991 | L68: 28.91647775 | M68: 28.56197857 | N68: 33.23167005 | O68: 34.54709586 | P68: 32.79597987 | Q68: 31.89911416 | R68: 1 | S68: 26.47626475
A69: N189 | B69: 441790 | C69: 112465 | D69: Cumberland House | E69: 40.41151995 | F69: 36.34803181 | G69: 37.47923178 | H69: 34.47766098 | I69: 27.55386894 | J69: 30.61641831 | K69: 28.36986157 | L69: 34.02474706 | M69: 34.4911393 | N69: 36.32340649 | O69: 37.00775488 | P69: 37.0186707 | Q69: 34.51019265 | R69: 1 | S69: 28.6434599
A70: N190 | B70: 442024 | C70: 112553 | D70: Brunswick Apartments | E70: 44.03261672 | F70: 36.87867055 | H70: 29.77412717 | I70: 30.56468811 | J70: 31.22642532 | K70: 31.89216557 | L70: 35.02021108 | M70: 37.72667593 | N70: 39.5585975 | O70: 40.70074011 | P70: 41.42730698 | Q70: 36.25474773 | R70: 0.9166666667 | S70: 30.09144062
A71: N191 | B71: 441915 | C71: 112097 | D71: Marlands House | E71: 44.95551902 | F71: 44.63510266 | G71: 49.90809485 | H71: 33.29388195 | I71: 34.74583415 | J71: 38.75287395 | K71: 35.08978009 | L71: 35.55288425 | M71: 38.64207551 | N71: 40.91708919 | O71: 43.5882674 | P71: 37.27737957 | Q71: 39.77989855 | R71: 1 | S71: 33.0173158
A72: N192 | B72: 441961 | C72: 112029 | D72: Above Bar Street Bus Stop | E72: 53.61070531 | F72: 40.84387419 | G72: 40.76887196 | H72: 36.90336184 | I72: 33.85344572 | J72: 35.55593966 | K72: 35.97301244 | L72: 36.85325733 | M72: 43.71074532 | N72: 36.68565575 | Q72: 39.47588695 | R72: 0.8333333333 | S72: 32.76498617
A73: N193 | B73: 441975 | C73: 112031 | D73: Above Bar Street Taxi Rank | E73: 40.03963798 | F73: 33.08508103 | G73: 35.70736313 | H73: 28.59589271 | I73: 26.73613911 | J73: 27.58194679 | K73: 30.35451026 | L73: 28.96157275 | M73: 33.15537108 | N73: 31.13510737 | O73: 31.43403778 | P73: 33.0654908 | Q73: 31.6543459 | R73: 1 | S73: 26.2731071
A74: N194 | B74: 442090 | C74: 111775 | D74: Vincents Walk Bus Stop | E74: 61.16959023 | F74: 55.87504405 | G74: 46.38398333 | H74: 41.65615187 | I74: 40.99035417 | J74: 45.42065596 | K74: 48.2039055 | M74: 48.07246028 | N74: 44.68191453 | O74: 51.07437611 | P74: 47.82510912 | Q74: =AVERAGE(E74:P74) -> 48.30486774 | R74: =(COUNT(E74:P74))/12 -> 0.9166666667 | S74: 40.09304023
A75: N195 | B75: 441945 | C75: 111655 | D75: Bargate Street | E75: 53.2131643 | F75: 36.98651964 | G75: 44.48591752 | K75: 39.63019741 | L75: 34.62492498 | M75: 42.32466612 | N75: 33.31993571 | Q75: 40.65504652 | R75: 0.5833333333 | S75: =Q75*0.83 -> 33.74368862
A76: N197 | B76: 440957 | C76: 115151 | D76: 351 Winchester Road | E76: 41.28415319 | F76: 28.13111402 | G76: 37.12693676 | H76: 30.36991134 | I76: 29.19582955 | J76: 28.170925 | K76: 26.9912716 | L76: 28.04865014 | M76: 31.015811 | N76: 35.63559235 | O76: 35.8789225 | P76: 34.02854373 | Q76: 32.15647176 | R76: 1 | S76: 26.68987156
A77: N198A | B77: 442304 | C77: 112771 | D77: Onslow Road (A) | E77: 45.23310852 | F77: 37.08505317 | G77: 36.4025431 | H77: 30.13619787 | I77: 28.1131304 | J77: 29.75557177 | K77: 28.90671894 | L77: 28.8593667 | M77: 34.20635661 | N77: 32.83024465 | O77: 25.11047296 | P77: 37.59080588 | Q77: 32.85246421 | R77: 1 | S77: 27.2675453
A78: N198B | D78: Onslow Road (B) | E78: 43.80232786 | F78: 36.0248744 | G78: 36.99638557 | H78: 30.47272716 | I78: 27.18772656 | K78: 25.89828855 | L78: 31.24039111 | M78: 33.80744866 | N78: 31.6342737 | O78: 39.10613934 | P78: 38.73837998 | Q78: 34.08263299 | R78: 0.9166666667 | S78: 28.28858538
A79: N198C | D79: Onslow Road (C) | E79: 42.53506499 | F79: 36.59737094 | G79: 36.20459561 | H79: 31.19626513 | I79: 30.01180379 | J79: 30.19956388 | K79: 27.54792016 | L79: 30.83511036 | M79: 34.03183438 | N79: 33.65563305 | O79: 38.41146393 | P79: 39.38970583 | Q79: 34.21802767 | R79: 1 | S79: 28.40096297
A80: N199 | B80: 442210 | C80: 112583 | D80: Dorset Street/Charlottes Place Crossing | E80: 46.74750589 | F80: 34.23309444 | G80: 46.23450963 | H80: 32.54430598 | I80: 27.91288855 | J80: 29.93962591 | K80: 30.64184916 | L80: 34.10037499 | M80: 32.94948218 | N80: 36.26555474 | O80: 39.33599139 | P80: 63.77520057 | Q80: 37.89003195 | R80: 1 | S80: 31.44872652
A81: N200 | B81: 443160 | C81: 112765 | D81: Northam Bridge South | E81: 45.08871682 | F81: 35.9732751 | G81: 37.70990073 | H81: 30.54440813 | I81: 29.38221234 | J81: 32.32210134 | K81: 29.98561014 | L81: 29.05683 | M81: 35.62743517 | N81: 37.79908947 | O81: 37.83796231 | P81: 30.11533047 | Q81: 34.286906 | R81: 1 | S81: 28.45813198
A82: N201 | B82: 439759 | C82: 112738 | D82: 289 Millbrook Road West | E82: 74.17073108 | F82: 51.49823381 | G82: 61.19775463 | H82: 51.92791263 | I82: 49.38677234 | J82: 49.26913918 | K82: 50.92218973 | L82: 60.49974456 | M82: 52.52669213 | N82: 60.48835605 | O82: 62.75233419 | P82: 50.30069021 | Q82: 56.24504588 | R82: 1 | S82: 46.68338808
A83: N202 | B83: 437166 | C83: 113755 | D83: Redbridge Causeway North | E83: 47.52464023 | F83: 47.64280898 | G83: 46.69932099 | H83: 38.55237655 | I83: 36.01732687 | J83: 42.05108491 | K83: 44.53737185 | L83: 50.31230219 | M83: 40.93942096 | N83: 54.45373864 | O83: 52.86830398 | P83: 41.06911927 | Q83: 45.22231795 | R83: 1 | S83: 37.5345239
A84: N204 | B84: 442542 | C84: 113261 | D84: 6 Lodge Road | E84: 47.13516985 | F84: 33.98758527 | G84: 40.20506295 | H84: 30.50451483 | I84: 29.00662376 | J84: 30.32708669 | K84: 31.23768526 | L84: 31.17253638 | M84: 34.69848591 | N84: 34.06007016 | O84: 42.01299406 | P84: 39.10133757 | Q84: 35.28742939 | R84: 1 | S84: 29.28856639
A85: N205 | B85: 442101 | C85: 113438 | D85: Stags Gate, Lodge Road | E85: 47.15444255 | F85: 41.81130265 | G85: 43.11606446 | H85: 29.98292632 | I85: 32.70823911 | J85: 35.41100437 | K85: 33.72119209 | L85: 32.3529278 | M85: 34.22417886 | O85: 48.69591825 | P85: 41.1931226 | Q85: 38.21557446 | R85: 0.9166666667 | S85: 31.7189268
A86: N206 | B86: 442265 | C86: 112516 | D86: Charlottes Place | E86: 56.0753564 | G86: 40.56241362 | H86: 34.76898148 | I86: 35.71512209 | J86: 36.05278452 | K86: 39.43825272 | L86: 40.25046116 | M86: 40.26578274 | N86: 41.2787344 | O86: 44.51328798 | P86: 49.13441127 | Q86: 41.64141713 | R86: 0.9166666667 | S86: 34.56237621
A87: N207 | B87: 439698 | C87: 112806 | D87: 205 Waterhouse Lane | E87: 34.83177099 | F87: 37.15078349 | G87: 36.83496317 | H87: 25.18921983 | I87: 31.8059256 | J87: 30.28620417 | K87: 27.96052103 | L87: 33.53922615 | M87: 28.7880942 | N87: 38.78141974 | O87: 42.47387955 | P87: 33.25490846 | Q87: 33.40807637 | R87: 1 | S87: 27.72870338
A88: N208 | B88: 441365 | C88: 115202 | D88: Sherwood Close | E88: 42.10270351 | F88: 29.76390554 | G88: 40.29148145 | H88: 26.71933638 | I88: 25.95766814 | J88: 25.31824001 | K88: 26.62412404 | L88: 29.27900824 | M88: 29.59238006 | N88: 29.80624667 | O88: 37.59922981 | P88: 32.90444643 | Q88: 31.32989752 | R88: 1 | S88: 26.00381494
A89: N209 | B89: 441246 | C89: 115138 | D89: 40 Burgess Road | E89: 45.43300621 | F89: 33.01056819 | G89: 38.31252853 | H89: 27.49332219 | I89: 24.09101345 | J89: 21.65583192 | K89: 25.57860908 | L89: 27.74655388 | M89: 29.39082214 | N89: 26.98006848 | O89: 32.05646727 | P89: 36.42521388 | Q89: 30.6811671 | R89: 1 | S89: 25.46536869
A90: N210 | B90: 441122 | C90: 115118 | D90: 18 Burgess Road | E90: 49.82711163 | F90: 35.38665022 | G90: 39.97389074 | H90: 30.77497626 | I90: 29.40323162 | J90: 28.68276571 | L90: 30.17186638 | M90: 33.26333353 | N90: 28.98200889 | O90: 36.35486127 | P90: 37.53867787 | Q90: 34.57812492 | R90: 0.9166666667 | S90: 28.69984368
A91: N211 | B91: 437332 | C91: 113873 | D91: 4 Coniston Road | E91: 27.94202959 | G91: 34.09873389 | H91: 24.22680099 | I91: 20.85571393 | J91: 22.44230264 | K91: 23.42101887 | L91: 27.79354238 | M91: 22.71588083 | N91: 30.90136066 | O91: 30.3155155 | P91: 27.32647247 | Q91: 26.54903379 | R91: 0.9166666667 | S91: 22.03569805
A92: N213 | B92: 442935 | C92: 114374 | D92: 277 Portswood Road | E92: 37.66854547 | F92: 29.85540082 | G92: 30.56235937 | H92: 26.24714466 | I92: 24.79779565 | J92: 23.02822105 | K92: 30.78385848 | L92: 25.25904709 | M92: 29.55257817 | N92: 29.64039894 | O92: 32.2839156 | P92: 32.18670394 | Q92: 29.3221641 | R92: 1 | S92: 24.33739621
A93: N214 | B93: 441677 | C93: 115280 | D93: 64 Burgess Road 2019 | E93: 40.6107145 | F93: 30.38146745 | G93: 43.35574055 | H93: 32.59219738 | I93: 26.33955359 | J93: 27.85926783 | K93: 29.03523327 | L93: 31.95693052 | M93: 30.04097583 | N93: 26.78152303 | O93: 32.86415776 | P93: 34.82849167 | Q93: 32.22052111 | R93: 1 | S93: 26.74303252
A94: N216 | B94: 442352 | C94: 113486 | D94: 73 Lodge Road | E94: 40.26725265 | F94: 34.7084698 | G94: 40.83852529 | H94: 26.53371201 | I94: 29.07044472 | J94: 30.1860813 | K94: 30.26063657 | L94: 29.63502916 | M94: 29.29319413 | N94: 36.41791116 | O94: 39.51400456 | P94: 34.82334299 | Q94: 33.4623837 | R94: 1 | S94: 27.77377847
A95: N217 | B95: 440751 | C95: 112188 | D95: 11 Saxon Road | E95: 39.19562933 | F95: 40.16369792 | G95: 40.04963948 | H95: 26.47104502 | I95: 29.77070081 | J95: 27.20450797 | K95: 27.88227391 | L95: 31.59335134 | M95: 29.68949566 | N95: 37.68569095 | O95: 37.30687705 | P95: 29.63086855 | Q95: 33.05364817 | R95: 1 | S95: 27.43452798
A96: N218 | B96: 443547 | C96: 114101 | D96: 112 St Denys Road | E96: 47.44482759 | F96: 32.9299982 | G96: 25.64784466 | H96: 39.74897016 | I96: 28.15736578 | J96: 28.76069369 | K96: 29.23658943 | L96: 33.39623181 | M96: 33.35815108 | N96: 29.92996317 | O96: 35.9 | P96: 30.40390897 | Q96: 32.90954538 | R96: 1 | S96: 27.31492266

Sheet 2023
A1: Southampton City Council NO2 Diffusion Tube Data 2023
A2: Status
A3: Bias Adjustment factor | D3: March 2024 0.81
A4: Other comments | S4: national bias adjustment factor 0.81 03/24 update
S5: Gradko 20% TEA in water method
A8: Site ID | B8: X OS Grid Ref | C8: Y | D8: Site Name | E8: 2023-01-01 | F8: 2023-02-01 | G8: 2023-03-01 | H8: 2023-04-01 | I8: 2023-05-01 | J8: 2023-06-01 | K8: 2023-07-01 | L8: 2023-08-01 | M8: 2023-09-01 | N8: 2023-10-01 | O8: 2023-11-01 | P8: 2023-12-01 | Q8: Undajusted annual mean | R8: Data capture | S8: adjusted annual mean 0.81 03/24
A9: N100 | B9: 444387 | C9: 114453 | D9: 6 Sandringham Road | E9: 25.92380957 | F9: 24.13050176 | G9: 16.75372907 | H9: 15.71383993 | I9: 12.15068941 | J9: 13.16188735 | K9: 12.44532663 | L9: 14.77948849 | M9: 19.46705297 | N9: 22.48014244 | O9: 19.5718671 | P9: 18.13743745 | Q9: =AVERAGE(E9:P9) -> 17.89298102 | R9: 1 | S9: =Q9*0.81 -> 14.49331462
A10: N101 | B10: 437548 | C10: 113719 | D10: Redbridge School Fence | E10: 45.75316411 | F10: 50.03078937 | G10: 35.58136838 | H10: 40.9298186 | I10: 25.30131775 | J10: 32.4468092 | K10: 32.76541475 | L10: 34.50984713 | M10: 41.7963997 | N10: 37.48450984 | O10: 41.23839035 | P10: 34.33795638 | Q10: =AVERAGE(E10:P10) -> 37.68131546 | R10: 1 | S10: =Q10*0.81 -> 30.52186553
A11: N103 | B11: 438808 | C11: 112903 | D11: 485 Millbrook Road | E11: 33.23594629 | F11: 30.71697372 | G11: 25.41604769 | H11: 26.70946173 | I11: 18.8265239 | J11: 23.20472239 | K11: 22.85980272 | L11: 25.08595422 | M11: 34.47220336 | N11: 31.04227103 | O11: 28.81586388 | P11: 25.16168537 | Q11: 27.12895469 | R11: 1 | S11: =Q11*0.81 -> 21.9744533
A12: N104 | B12: 439222 | C12: 112850 | D12: Regents Park Junction | E12: 35.86903713 | F12: 40.21248902 | G12: 33.46298493 | H12: 37.1936158 | I12: 23.08987889 | J12: 30.21208906 | K12: 29.03067711 | L12: 31.43015917 | M12: 42.78992966 | N12: 38.68502159 | O12: 34.21544471 | P12: 30.76686072 | Q12: 33.91318231 | R12: 1 | S12: 27.46967768
A13: N106 | B13: 439752 | C13: 113984 | D13: 2 Romsey Road, Oakhill | E13: 38.28055644 | F13: 39.93027561 | G13: 30.61451208 | H13: 33.49402486 | I13: 23.76126247 | J13: 28.89865901 | K13: 27.09432025 | L13: 28.79512602 | M13: 39.62702459 | N13: 36.30080994 | O13: 33.09820143 | Q13: 32.71770661 | R13: 0.92 | S13: 26.50134235
A14: N107 | B14: 442364 | C14: 112890 | D14: Cranbury Place | E14: 53.47387476 | F14: 49.25038195 | G14: 39.31382561 | H14: 43.07096116 | I14: 36.31166249 | J14: 37.94926209 | K14: 36.15403417 | L14: 37.66516419 | M14: 44.51027505 | N14: 47.73921258 | O14: 42.82183848 | P14: 43.07450055 | Q14: 42.61124942 | R14: 1 | S14: 34.51511203
A15: N109 | B15: 442585 | C15: 113248 | D15: 72 Bevois Valley | E15: 39.04373357 | F15: 43.08273386 | G15: 33.20954691 | H15: 33.08279821 | I15: 32.88767694 | J15: 31.00104877 | L15: 28.72659033 | M15: 38.97407564 | N15: 44.67966052 | O15: 32.35352511 | P15: 29.02520939 | Q15: 35.09696357 | R15: 0.92 | S15: 28.42854049
A16: N110 | B16: 442579 | C16: 112248 | D16: Brintons Road 1 | E16: 35.19624893 | F16: 33.87674104 | G16: 23.15851917 | H16: 25.59967788 | I16: 18.64437499 | J16: 20.16625804 | K16: 21.15967192 | L16: 22.52663353 | M16: 30.12633193 | O16: 27.37064566 | P16: 24.71173999 | Q16: 25.68516755 | R16: 0.92 | S16: 20.80498572
A17: N111 | D17: Brintons Road 2 | E17: 30.57962665 | F17: 33.40394671 | G17: 23.2255967 | H17: 25.18293894 | I17: 19.79289911 | J17: 19.94424419 | K17: 20.33168476 | L17: 22.05514585 | M17: 32.48148492 | N17: 32.37073948 | O17: 27.37064566 | P17: 24.93695055 | Q17: 25.97299196 | R17: 1 | S17: 21.03812349
A18: N112 | D18: Brintons Road 3 | E18: 31.6348546 | F18: 33.11615886 | G18: 24.39945357 | H18: 25.57983317 | I18: 19.23777912 | J18: 20.98030882 | K18: 20.92047563 | L18: 22.21230841 | M18: 31.38241352 | N18: 32.50474017 | O18: 26.77784083 | P18: 24.65031893 | Q18: 26.1163738 | R18: 1 | S18: 21.15426278
A19: N113 | B19: 444124 | C19: 113288 | D19: 206 Bitterne Road | E19: 40.13284278 | F19: 41.57975518 | H19: 30.96196487 | I19: 29.97230983 | J19: 32.24168798 | K19: 29.90460656 | L19: 36.52338399 | M19: 34.60438088 | N19: 37.45719578 | O19: 35.87604867 | P19: 22.70250353 | Q19: 33.81424364 | R19: 0.92 | S19: 27.38953735
A20: N114 | B20: 444131 | C20: 113322 | D20: Bitterne Library | E20: 36.40001005 | F20: 39.79850417 | G20: 29.32479668 | H20: 33.9197799 | I20: 25.78018222 | J20: 31.59928493 | K20: 24.58106414 | L20: 31.58380027 | M20: 35.68540254 | N20: 45.89186896 | O20: 30.91356349 | P20: 28.61795576 | Q20: 32.84135109 | R20: 1 | S20: 26.60149438
A21: N115 | B21: 437939 | C21: 113474 | D21: 54 Redbridge Road | E21: 31.97168582 | F21: 32.87237392 | G21: 27.93874122 | H21: 31.47440533 | I21: 22.62342394 | J21: 27.82092437 | K21: 22.69132244 | L21: 27.08650993 | M21: 35.15838278 | N21: 31.29931815 | O21: 30.20488743 | P21: 24.87537412 | Q21: 28.83477912 | R21: 1 | S21: 23.35617109
A22: N116 | B22: 437952 | C22: 113407 | D22: 57 Redbridge Road | E22: 34.27465179 | G22: 28.7 | H22: 28.9 | I22: 27.4 | J22: 28.8 | K22: 20.19306475 | L22: 26.0957094 | M22: 29.5076218 | N22: 27.53844428 | O22: 29.67772366 | P22: 20.16555035 | Q22: 27.38661509 | R22: 0.92 | S22: 22.18315823
A23: N117 | B23: 443752 | C23: 111121 | D23: Victoria Road (Lamp Post) | E23: 38.88967119 | F23: 41.1887969 | G23: 28.15975253 | H23: 33.0974772 | I23: 26.7639367 | J23: 28.20385316 | K23: 26.79125363 | L23: 29.94335311 | M23: 35.98260868 | N23: 34.83488951 | O23: 34.45168294 | P23: 32.55058588 | Q23: 32.57148845 | R23: 1 | S23: 26.38290565
A24: N118 | B24: 442472 | C24: 113065 | D24: 3 Rockstone Lane | F24: 36.38007718 | G24: 29.366107 | H24: 30.73745168 | I24: 26.66242888 | J24: 26.09990515 | K24: 22.07378666 | L24: 26.01983532 | N24: 35.49021843 | Q24: 29.10372629 | R24: 0.66 | S24: 23.57401829
A25: N120 | B25: 442716 | C25: 111019 | D25: 6-9 Canute Road | E25: 37.55447626 | F25: 37.29103459 | G25: 30.94956661 | H25: 32.85947743 | I25: 33.03858642 | J25: 31.35647408 | K25: 27.4682387 | M25: 40.87245021 | N25: 45.07724383 | O25: 39.06758377 | P25: 38.17573264 | Q25: 35.79189678 | R25: 0.92 | S25: 28.99143639
A26: N122 | B26: 440000 | C26: 112633 | D26: 151 Paynes Road | E26: 27.49755572 | F26: 32.8766188 | G26: 24.68880256 | H26: 24.82514736 | I26: 17.68633683 | J26: 23.95056832 | K26: 24.12271543 | L26: 25.1367113 | M26: 35.77876546 | N26: 30.60514554 | O26: 28.9178887 | P26: 29.28677132 | Q26: 27.11441894 | R26: 1 | S26: 21.96267935
A27: N124 | B27: 439741 | C27: 112753 | D27: 305 Millbrook Road | F27: 37.92889015 | G27: 29.26729056 | H27: 34.08428592 | I27: 25.18464628 | J27: 31.95596375 | K27: 25.94730076 | L27: 28.32555476 | N27: 35.17949419 | O27: 33.35150056 | P27: 27.67720516 | Q27: 30.89021321 | R27: 0.83 | S27: 25.0210727
A28: N125 | B28: 443125 | C28: 112641 | D28: Princes Court | E28: 38.1697064 | F28: 39.7116625 | G28: 32.87785341 | H28: 34.80004778 | I28: 32.213114 | J28: 32.94922999 | K28: 23.26995403 | L28: 32.72364158 | M28: 40.0821678 | N28: 34.75877304 | O28: 32.63648271 | P28: 28.02847726 | Q28: 33.51842587 | R28: 1 | S28: 27.14992496
A29: N126 | B29: 442365 | C29: 112286 | D29: 107 St Andrews Road | E29: 35.08024006 | F29: 38.82068336 | G29: 30.12307239 | H29: 32.1559245 | I29: 26.37820118 | J29: 27.0589857 | K29: 22.60065624 | L29: 26.78364698 | M29: 39.77598213 | N29: 40.31769071 | O29: 34.29174704 | P29: 28.92532848 | Q29: 31.85934657 | R29: 1 | S29: 25.80607072
A30: N129 | B30: 442554 | C30: 111021 | D30: South West House | E30: 37.19816109 | F30: 32.92822146 | G30: 25.12890034 | H30: 26.6252216 | I30: 24.69400772 | J30: 23.12633277 | K30: 20.20308861 | L30: 25.16378785 | M30: 31.52069045 | N30: 29.24106925 | O30: 31.4380536 | P30: 24.65396924 | Q30: 27.66012533 | R30: 1 | S30: 22.40470152
A31: N130 | B31: 439346 | C31: 112821 | D31: 367A Millbrook Road | E31: 39.2139179 | F31: 44.80253263 | G31: 43.06029698 | H31: 38.9920762 | I31: 33.09126582 | J31: 39.41848882 | K31: 36.51630825 | L31: 41.53058537 | M31: 53.31387558 | N31: 46.3072822 | O31: 41.14226893 | P31: 33.3889602 | Q31: 40.89815491 | R31: 1 | S31: 33.12750547
A32: N131 | B32: 439378 | C32: 114185 | D32: 142 Romsey Road | E32: 37.96951635 | F32: 34.85713576 | G32: 30.40029182 | H32: 35.33074574 | I32: 26.09318381 | J32: 30.45824948 | K32: 25.33995072 | L32: 29.48584956 | M32: 38.31695141 | N32: 35.13030071 | O32: 33.66391191 | P32: 27.19687077 | Q32: 32.0202465 | R32: 1 | S32: 25.93639967
A33: N133 | B33: 438609 | C33: 113020 | D33: 539 Millbrook Road | E33: 30.57934341 | F33: 31.07639271 | G33: 22.60970734 | H33: 24.85028736 | I33: 16.61322432 | J33: 21.41595666 | K33: 20.65440432 | L33: 23.5381042 | M33: 31.15283726 | N33: 27.43604021 | O33: 29.25885535 | P33: 21.89929096 | Q33: 25.09037034 | R33: 1 | S33: 20.32319998
A34: N134 | B34: 438980 | C34: 112861 | D34: 435 Millbrook Road West Ladbrokes | E34: 37.11923649 | F34: 40.42686255 | G34: 30.7 | H34: 35.8 | I34: 28.5 | J34: 31.6 | L34: 33.33227595 | M34: 39.29881694 | O34: 33.85878769 | P34: 25.76048958 | Q34: 33.63964692 | R34: 0.83 | S34: 27.248114
A35: N138 | B35: 441697 | C35: 115288 | D35: 66 Burgess Road | E35: 37.68627316 | F35: 44.04184944 | G35: 38.87818711 | H35: 44.03727002 | I35: 40.14673842 | J35: 44.23497846 | K35: 27.37689323 | L35: 34.21768501 | M35: 45.91532656 | N35: 42.74851328 | O35: 34.29367764 | P35: 30.15734442 | Q35: 38.6445614 | R35: 1 | S35: 31.30209473
A36: N140 | B36: 441628 | C36: 112332 | D36: 5 Commercial Road | E36: 47.31901969 | G36: 41.50193164 | H36: 41.3179494 | I36: 32.54756524 | J36: 37.35445408 | K36: 33.13270368 | L36: 37.89050469 | M36: 48.47907812 | N36: 47.61668845 | O36: 40.52442624 | P36: 35.850729 | Q36: 40.3213682 | R36: 0.92 | S36: 32.66030824
A37: N141 | B37: 441923 | C37: 110990 | D37: Town Quay Road | E37: 35.21341189 | F37: 37.24995064 | G37: 31.13238912 | H37: 39.25492634 | I37: 35.16188889 | J37: 35.43719282 | K37: 22.75102407 | L37: 32.32510881 | M37: 36.03823698 | N37: 32.43896896 | O37: 30.03036512 | P37: 21.03703726 | Q37: 32.33920841 | R37: 1 | S37: 26.19475881
A38: N143 | B38: 439457 | C38: 114150 | D38: 102 Romsey Road | E38: 37.92754057 | F38: 38.70135128 | G38: 28.79716575 | H38: 32.69768284 | I38: 23.14559845 | J38: 28.76966363 | K38: 27.79339184 | L38: 29.7682938 | M38: 38.62013953 | N38: 36.41114675 | O38: 35.54055907 | P38: 29.90497778 | Q38: 32.33979261 | R38: 1 | S38: 26.19523201
A39: N149 | B39: 441552 | C39: 115247 | D39: 44B Burgess Road | E39: 33.03469926 | F39: 43.99998321 | G39: 37.74515599 | H39: 35.98392097 | I39: 27.05811398 | J39: 30.45848938 | K39: 26.75633523 | L39: 27.36596685 | M39: 37.81799084 | N39: 41.57932551 | O39: 36.30714768 | P39: 20.30924112 | Q39: 33.20136417 | R39: 1 | S39: 26.89310498
A40: N151 | B40: 439394 | C40: 114176 | D40: 134 Romsey Road | E40: 37.53054522 | F40: 39.79271729 | G40: 31.86982454 | H40: 35.3485242 | I40: 25.43841314 | J40: 29.97009901 | K40: 26.84011239 | L40: 29.85032218 | M40: 38.61644895 | N40: 35.55051965 | O40: 33.99582786 | P40: 30.79071089 | Q40: 32.96617211 | R40: 1 | S40: 26.70259941
A41: N152 | B41: 437327 | C41: 113848 | D41: M271 | E41: 40.00287965 | F41: 43.93731719 | G41: 39.45997903 | H41: 43.24917839 | I41: 32.22078853 | J41: 34.34561016 | K41: 27.46709573 | L41: 32.53021664 | M41: 40.815685 | N41: 41.73986603 | O41: 37.34010746 | P41: 30.12964469 | Q41: 36.93653071 | R41: 1 | S41: 29.91858987
A42: N158 | B42: 443807 | C42: 111123 | D42: 24 Portsmouth Road | E42: 38.84419387 | F42: 43.2918133 | G42: 31.12932898 | H42: 36.63533822 | I42: 27.953445 | J42: 31.86490399 | K42: 28.30301619 | L42: 31.490772 | M42: 40.06503743 | N42: 38.13602637 | O42: 34.508772 | P42: 31.75310822 | Q42: 34.49797963 | R42: 1 | S42: 27.9433635
A43: N159 | B43: 443740 | C43: 111147 | D43: 35 Portsmouth Road | E43: 38.10674797 | F43: 41.36107556 | G43: 29.57114293 | H43: 33.35355481 | I43: 33.94346893 | J43: 29.84589486 | K43: 22.56490152 | L43: 28.1203899 | M43: 32.13738857 | N43: 31.59474074 | O43: 42.0571197 | P43: 26.49075204 | Q43: 32.42893146 | R43: 1 | S43: 26.26743448
A44: N162 | B44: 442872 | C44: 114336 | D44: 263A Portswood Road | E44: 42.32977252 | F44: 34.89603911 | G44: 31.19007041 | H44: 34.32543101 | I44: 26.90278858 | J44: 30.61571637 | K44: 27.48055271 | L44: 29.0624583 | M44: 37.50753239 | N44: 40.91810294 | P44: 34.4512341 | Q44: 33.60724531 | R44: 0.92 | S44: 27.2218687
A45: N165 | B45: 442766 | C45: 114181 | D45: 8 The Broadway | E45: 34.07819986 | F45: 38.45203545 | G45: 30.78960698 | H45: 34.3014176 | I45: 27.26568123 | J45: 30.64960205 | K45: 23.49153775 | L45: 30.02323239 | M45: 38.14883494 | N45: 33.61953651 | O45: 28.02023352 | P45: 27.65309283 | Q45: 31.37441759 | R45: 1 | S45: 25.41327825
A46: N166 | B46: 442251 | C46: 112129 | D46: 14 New Road | E46: 41.42311508 | F46: 41.97522401 | G46: 31.4892361 | H46: 30.99783341 | I46: 26.43628347 | J46: 29.73115452 | K46: 27.06266001 | L46: 29.61042374 | M46: 40.84966491 | N46: 41.93588348 | O46: 38.83150449 | P46: 34.52497541 | Q46: 34.57232989 | R46: 1 | S46: 28.00358721
A47: N169 | B47: 439361 | C47: 114195 | D47: 150 Romsey Road | G47: 35.30563224 | H47: 40.12843325 | I47: 27.89346266 | J47: 32.50958632 | K47: 31.56819197 | L47: 34.7357402 | M47: 44.34613084 | N47: 38.66201764 | O47: 37.89677966 | P47: 33.81037667 | Q47: 35.68563515 | R47: 0.83 | S47: 28.90536447
A48: N170 | B48: 442482 | C48: 111003 | D48: Union Castle House (2) | F48: 42.14468468 | G48: 34.01505559 | I48: 37.73108488 | J48: 32.51185991 | K48: 27.88623363 | L48: 31.98116402 | M48: 40.33861526 | N48: 42.01076466 | O48: 40.27957814 | Q48: 36.54433786 | R48: 0.75 | S48: 29.60091367
A49: N172 | B49: 441522 | C49: 112126 | D49: 4 New Road | E49: 40.93164563 | F49: 43.01689435 | G49: 33.23915312 | H49: 37.92855766 | I49: 28.17954564 | J49: 34.04995689 | K49: 33.85518498 | L49: 35.39810729 | M49: 42.3963998 | N49: 47.19932315 | O49: 37.1455947 | P49: 34.95143858 | Q49: 37.35765015 | R49: 1 | S49: 30.25969662
A50: N174 | B50: 443959 | C50: 113315 | D50: 166A Bitterne Road West | E50: 42.44735929 | F50: 43.96183416 | G50: 38.88723038 | H50: 40.91406861 | I50: 30.75702548 | J50: 35.88775932 | K50: 28.26244608 | L50: 31.1058613 | M50: 42.96173683 | N50: 47.41530656 | O50: 37.43957139 | P50: 34.12455812 | Q50: 37.84706313 | R50: 1 | S50: 30.65612113
A51: N177 | B51: 439844 | C51: 113907 | D51: 95 Shirley High Street (Windsor Castle Pub) | E51: 29.93366032 | F51: 45.23703397 | G51: 32.01756486 | H51: 37.02384729 | I51: 26.69177717 | J51: 31.21003936 | K51: 24.65816166 | L51: 28.47459328 | M51: 39.29452043 | N51: 37.71312109 | O51: 33.35160536 | P51: 25.82726001 | Q51: 32.61943207 | R51: 1 | S51: 26.42173997
A52: N178 | B52: 437265 | C52: 113682 | D52: 2 Gover Road | E52: 23.72652808 | F52: 27.63946875 | G52: 22.03073116 | H52: 22.39760384 | I52: 17.25632225 | J52: 19.08999802 | K52: 15.80193983 | L52: 19.68534029 | M52: 6.334795825 | N52: 25.55940162 | O52: 22.30789613 | P52: 17.05052897 | Q52: 19.9067129 | R52: 0.92 | S52: 16.12443745
A53: N184A | B53: 437811 | C53: 113557 | D53: Redbridge AMS (A) | E53: 41.44979267 | F53: 42.6151146 | G53: 31.29545012 | H53: 36.64715682 | I53: 22.12365261 | J53: 29.2058115 | K53: 25.51445432 | L53: 29.96136326 | M53: 39.45992741 | N53: 34.42992954 | O53: 35.66955539 | P53: 27.32669949 | Q53: 32.97490898 | R53: 1 | S53: 26.70967627
A54: N184B | D54: Redbridge AMS (B) | E54: 39.78555289 | F54: 41.60094176 | G54: 32.22201072 | H54: 36.8906697 | I54: 22.00074342 | J54: 28.6773434 | K54: 25.66225819 | L54: 29.90162462 | M54: 37.3346486 | N54: 34.635607 | O54: 35.55813505 | P54: 25.9787457 | Q54: 32.52069009 | R54: 1 | S54: 26.34175897
A55: N184C | D55: Redbridge AMS (C) | E55: 41.90350855 | F55: 41.60953522 | G55: 31.80931878 | H55: 37.39145418 | I55: 21.67298561 | J55: 29.10042443 | K55: 25.97971793 | L55: 29.28363067 | M55: 37.26799111 | N55: 34.45212088 | O55: 35.52882111 | P55: 30.16557186 | Q55: 33.01375669 | R55: 1 | S55: 26.74114292
A56: N185 | B56: 437167 | C56: 113713 | D56: Redbridge Causeway 1
A57: N186 | B57: 437126 | C57: 113701 | D57: Redbridge Causeway 2
A58: N189 | B58: 441790 | C58: 112465 | D58: Cumberland House | E58: 41.95262075 | F58: 38.93053031 | G58: 32.42249219 | H58: 35.03047815 | I58: 33.28824455 | J58: 29.78837177 | K58: 25.53523313 | L58: 29.8640626 | M58: 42.10494072 | O58: 33.94526776 | P58: 27.99584877 | Q58: 33.71437188 | R58: 0.92 | S58: 27.30864122
A59: N190 | B59: 442024 | C59: 112553 | D59: Brunswick Apartments | E59: 44.22930619 | F59: 45.15295234 | G59: 32.94584048 | I59: 30.4525009 | J59: 29.54218688 | K59: 27.06428304 | L59: 31.81866645 | N59: 43.5768915 | O59: 35.1 | P59: 36.2 | Q59: 35.60826278 | R59: 0.83 | S59: 28.84269285
A60: N191 | B60: 441915 | C60: 112097 | D60: Marlands House | E60: 44.73862562 | F60: 43.738979 | G60: 38.71300163 | H60: 42.4047653 | I60: 29.59989093 | J60: 37.04084707 | K60: 32.82644558 | L60: 36.36640961 | M60: 49.49865994 | N60: 46.47572029 | O60: 40.27385858 | P60: 33.28566006 | Q60: 39.58023863 | R60: 1 | S60: 32.05999329
A61: N192 | B61: 441961 | C61: 112029 | D61: Above Bar Street Bus Stop | E61: 46.22991314 | F61: 41.99983058 | G61: 35.72875312 | H61: 32.94496543 | I61: 34.54198371 | J61: 32.72200364 | K61: 32.19401681 | L61: 34.70577437 | N61: 45.02633386 | O61: 43.21937078 | P61: 26.62852804 | Q61: 36.90377032 | R61: 0.92 | S61: 29.89205396
A62: N193 | B62: 441975 | C62: 112031 | D62: Above Bar Street Taxi Rank | E62: 38.20525651 | F62: 37.37029171 | G62: 29.67820434 | H62: 28.52001914 | I62: 24.56120399 | J62: 26.41802156 | K62: 25.01580583 | L62: 26.59622843 | M62: 36.58183543 | N62: 34.40465174 | O62: 31.12169464 | P62: 42.72528326 | Q62: 31.76654138 | R62: 1 | S62: 25.73089852
A63: N194 | B63: 442090 | C63: 111775 | D63: Vincents Walk Bus Stop | E63: 56.67874369 | F63: 52.03713437 | G63: 35.96639039 | H63: 41.59200115 | I63: 36.05714405 | J63: 41.94613633 | K63: 44.88991082 | L63: 39.68775664 | M63: 50.42146748 | N63: 50.95619857 | O63: 48.31597855 | P63: 45.0382198 | Q63: =AVERAGE(E63:P63) -> 45.29892349 | R63: 1 | S63: 36.69212802
A64: N195 | B64: 441945 | C64: 111655 | D64: Bargate Street | E64: 41.43329423 | F64: 39.93460035 | G64: 32.45283207 | H64: 34.2699342 | I64: 33.29439179 | J64: 33.33679775 | K64: 26.23682364 | L64: 31.07952001 | M64: 39.73441637 | N64: 40.22047357 | O64: 33.45657249 | P64: 38.78960717 | Q64: 35.35327197 | R64: 1 | S64: 28.6361503
A65: N197 | B65: 440957 | C65: 115151 | D65: 351 Winchester Road | E65: 35.63879183 | F65: 36.23168219 | G65: 30.40457445 | H65: 29.14249243 | I65: 25.35860139 | J65: 29.61248309 | K65: 23.14460649 | L65: 28.2644935 | M65: 35.10497929 | N65: 40.18716243 | O65: 29.51125553 | P65: 24.54468471 | Q65: 30.59548394 | R65: 1 | S65: 24.78234199
A66: N198A | B66: 442304 | C66: 112771 | D66: Onslow Road (A) | E66: 37.99252731 | F66: 37.19240378 | G66: 32.36194643 | H66: 33.02239476 | I66: 28.23062388 | J66: 27.52728016 | K66: 26.6081681 | L66: 27.66011557 | M66: 34.24947814 | N66: 37.59589482 | O66: 32.41795531 | P66: 33.74314641 | Q66: 32.38349456 | R66: 1 | S66: 26.23063059
A67: N198B | D67: Onslow Road (B) | E67: 41.16040452 | F67: 39.28601591 | G67: 32.46260567 | H67: 32.56540615 | I67: 27.57988408 | J67: 25.2652407 | K67: 26.41194267 | L67: 27.27570461 | M67: 33.6606619 | N67: 40.23756156 | O67: 34.23024435 | P67: 32.86271237 | Q67: 32.74986537 | R67: 1 | S67: 26.52739095
A68: N198C | D68: Onslow Road (C) | E68: 44.06429196 | F68: 38.97813178 | G68: 33.23432653 | H68: 32.80383499 | I68: 26.45065912 | J68: 27.42287834 | K68: 26.51005538 | L68: 28.21925877 | M68: 34.56351347 | N68: 37.25132959 | O68: 32.84138733 | P68: 32.02322875 | Q68: 32.86357467 | R68: 1 | S68: 26.61949548
A69: N199 | B69: 442210 | C69: 112583 | D69: Dorset Street/Charlottes Place Crossing | E69: 39.8446364 | F69: 42.06429413 | G69: 33.84172063 | H69: 34.42060551 | I69: 28.21720432 | J69: 30.22822307 | K69: 26.11013653 | L69: 29.44143788 | N69: 37.23754423 | O69: 33.25577998 | P69: 30.72389057 | Q69: 33.2168612 | R69: 0.92 | S69: 26.90565758
A70: N200 | B70: 443160 | C70: 112765 | D70: Northam Bridge South | E70: 43.17134189 | F70: 39.56710626 | G70: 31.22309617 | H70: 31.89174384 | I70: 25.18862628 | J70: 28.16574842 | K70: 27.39207923 | L70: 30.55195078 | M70: 38.4782276 | N70: 37 | O70: 37.27598741 | P70: 35.1123729 | Q70: 33.7515234 | R70: 1 | S70: 27.33873395
A71: N201 | B71: 439759 | C71: 112738 | D71: 289 Millbrook Road West | E71: 60.1749652 | F71: 66.36317674 | G71: 47.91889128 | H71: 57.90035655 | I71: 49.38812928 | J71: 57.08765599 | K71: 39.97114852 | L71: 48.16899417 | M71: 57.84219897 | N71: 56.72540225 | O71: 60.18655375 | P71: 46.59236657 | Q71: 54.02665327 | R71: 1 | S71: 43.76158915
A72: N202 | B72: 437166 | C72: 113755 | D72: Redbridge Causeway North | E72: 47.0743889 | F72: 52.43960028 | G72: 45.13039082 | H72: 45.68714766 | I72: 35.57885585 | J72: 45.6029738 | K72: 40.89204635 | L72: 40.74889181 | M72: 47.22899371 | N72: 58.53557248 | O72: 46.93573819 | P72: 38.64673318 | Q72: 45.37511109 | R72: 1 | S72: 36.75383998
A73: N204 | B73: 442542 | C73: 113261 | D73: 6 Lodge Road | E73: 43.76187737 | F73: 41.6059004 | G73: 30.92796317 | H73: 36.69568628 | I73: 27.21172884 | J73: 29.42205282 | K73: 24.96345277 | L73: 30.6854684 | M73: 37.19589337 | N73: 38.131001 | O73: 31.79516663 | P73: 30.66882226 | Q73: 33.58875111 | R73: 1 | S73: 27.2068884
A74: N205 | B74: 442101 | C74: 113438 | D74: Stags Gate, Lodge Road | E74: 41.02293378 | F74: 39.05497734 | G74: 35.96381973 | H74: 34.01662744 | I74: 27.88785894 | K74: 31.82467418 | L74: 33.78917613 | M74: 41.35482351 | N74: 45.5814934 | O74: 35.50218162 | Q74: 36.59985661 | R74: 0.83 | S74: 29.64588385
A75: N206 | B75: 442265 | C75: 112516 | D75: Charlottes Place | E75: 47.66935178 | F75: 44.75361699 | I75: 35.53490428 | J75: 38.6053885 | K75: 28.41362695 | L75: 33.94649899 | M75: 47.07174156 | N75: 44.66605092 | O75: 37.3670739 | P75: 35.11831548 | Q75: 39.31465693 | R75: 0.83 | S75: =Q75*0.81 -> 31.84487212
A76: N207 | B76: 439698 | C76: 112806 | D76: 205 Waterhouse Lane | F76: 36.56456561 | G76: 30.49513971 | H76: 31.96838417 | I76: 18.83119688 | J76: 26.95259161 | K76: 24.97135977 | L76: 27.87736496 | M76: 40.23695121 | N76: 34.73046165 | O76: 28.83057131 | P76: 27.21111792 | Q76: 29.87906407 | R76: 0.92 | S76: 24.2020419
A77: N208 | B77: 441365 | C77: 115202 | D77: Sherwood Close | E77: 34.50744518 | F77: 36.96843403 | G77: 29.37184777 | H77: 31.10837355 | I77: 20.21761811 | J77: 25.6813914 | K77: 20.80643885 | L77: 26.58809831 | M77: 35.67961685 | N77: 37.23578806 | O77: 30.58444261 | P77: 26.10465696 | Q77: 29.57117931 | R77: 1 | S77: 23.95265524
A78: N209 | B78: 441246 | C78: 115138 | D78: 40 Burgess Road | E78: 34.30204609 | F78: 39.57551779 | G78: 28.22373428 | H78: 30.10421656 | I78: 22.09032754 | J78: 24.42372903 | K78: 19.66271917 | L78: 23.64295511 | M78: 31.08631865 | N78: 31.79043617 | O78: 28.66483969 | P78: 27.98273087 | Q78: 28.46246425 | R78: 1 | S78: 23.05459604
A79: N210 | B79: 441122 | C79: 115118 | D79: 18 Burgess Road | E79: 39.25104086 | F79: 40.22598652 | G79: 32.99454143 | H79: 35.41190349 | I79: 25.87396495 | J79: 28.93071438 | K79: 25.20408419 | L79: 28.24474135 | M79: 33.65419185 | N79: 36.93049162 | O79: 35.42036534 | P79: 27.25167976 | Q79: 32.44947548 | R79: 1 | S79: 26.28407514
A80: N211 | B80: 437332 | C80: 113873 | D80: 4 Coniston Road | E80: 26.30437166 | F80: 30.68129871 | G80: 26.44328229 | H80: 27.19425882 | I80: 20.91995735 | J80: 21.95759428 | K80: 17.24470761 | L80: 21.19918576 | M80: 28.33554113 | N80: 28.22113917 | O80: 24.85210649 | P80: 19.11966263 | Q80: 24.37275883 | R80: 1 | S80: 19.74193465
A81: N214 | B81: 441677 | C81: 115280 | D81: 64 Burgess Road 2019 | E81: 33.00442298 | F81: 35.0295821 | G81: 29.6442218 | H81: 30.63627405 | I81: 24.99378099 | J81: 27.96279461 | K81: 20.77416132 | L81: 23.90942844 | M81: 32.04905074 | N81: 31.59256734 | O81: 29.31020457 | P81: 25.68812485 | Q81: 28.71621782 | R81: 1 | S81: 23.26013643
A82: N216 | B82: 442352 | C82: 113486 | D82: 73 Lodge Road | E82: 35.8063959 | F82: 34.78294935 | G82: 31.03054339 | I82: 24.06935776 | J82: 29.66689219 | K82: 26.69110585 | L82: 30.62464761 | M82: 40.74600158 | N82: 37.72989241 | O82: 32.60715393 | P82: 29.80894874 | Q82: 32.1421717 | R82: 0.92 | S82: 26.03515908
A83: N217 | B83: 440751 | C83: 112188 | D83: 11 Saxon Road | E83: 36.17488878 | F83: 34.90479583 | G83: 29.69415587 | H83: 32.46117605 | I83: 19.51481136 | J83: 24.61848907 | K83: 25.55444661 | L83: 27.54140328 | M83: 38.62461356 | N83: 31.91541737 | O83: 32.6344561 | P83: 28.16358557 | Q83: 30.15018662 | R83: 1 | S83: 24.42165116
A84: N218 | B84: 443547 | C84: 114101 | D84: 112 St Denys Road | E84: 40.08197547 | F84: 39.77941021 | G84: 29.8353349 | H84: 35.19975159 | I84: 30.90808312 | J84: 31.57756992 | K84: 22.79914698 | L84: 31.40305811 | M84: 35.61989521 | N84: 40.56443348 | O84: 39.58149663 | P84: 27.98475376 | Q84: 33.77790912 | R84: 1 | S84: 27.36010638
A85: N219 | B85: 439255 | C85: 1122861 | D85: 10 Regents Park Road | E85: 34.99821046 | F85: 35.14071074 | G85: 32.18657704 | H85: 36.28268974 | I85: 27.18881118 | J85: 33.28088898 | K85: 29.90011302 | L85: 30.71791581 | M85: 43.90086615 | N85: 37.57856441 | O85: 34.51866858 | P85: 31.47285781 | Q85: =AVERAGE(E85:P85) -> 33.93057283 | R85: 1 | S85: 27.48376399
A86: N220A | B86: 441928 | C86: 116985 | D86: 253 Basset Avenue (A) | H86: 38.3814829 | I86: 40.87323127 | J86: 36.83247599 | K86: 20.10017262 | L86: 22.96548918 | M86: 41.48172994 | N86: 36.9152184 | O86: 34.9037936 | P86: 26.13069296 | Q86: =AVERAGE(E86:P86) -> 33.17603187 | R86: 0.75 | S86: 26.87258582
A87: N220B | D87: 253 Basset Avenue (B) | H87: 41.2 | I87: 38.2 | J87: 37 | K87: 21.6 | L87: 27.6 | M87: 36.4 | N87: 39.2 | O87: 32.7 | P87: 26.7 | Q87: =AVERAGE(E87:P87) -> 33.4 | R87: 0.75 | S87: 27.054
A88: N220C | D88: 253 Basset Avenue © | H88: 39.4 | I88: 39.4 | J88: 37.8 | K88: 20.7 | L88: 25.6 | M88: 37.4 | N88: 39.7 | O88: 35.9 | P88: 27.5 | Q88: 33.71111111 | R88: 0.75 | S88: 27.306

Sheet QA QC Log
A1: Southampton City Council NO2 Diffusion Tube Data QA QC Log
A3: Date | B3: Update | C3: Description
A4: 2019-05-09 | B4: 2017, 2018, partial 2019 data added | C4: Data updated
A5: 2019-07-18 | B5: 2018 national bias adjustment factor update | C5: National bias adjustment factor used updated from 0.93 to 0.92 in accordance with Defra's updated national local bias adjustment factor spreadsheet issued June 2019 (version 06/19, Gradko 20% TEA in water). https://laqm.defra.gov.uk/bias-adjustment-factors/national-bias.html
A6: 2020-07-03 | B6: 2019 national bias adjustment factor update | C6: National bias adjustment factor remains at 0.92 in accordance with Defra's updated national local bias adjustment factor spreadsheet issued June 2020 (version 06/20, Gradko 20% TEA in water). https://laqm.defra.gov.uk/bias-adjustment-factors/national-bias.html

Sheet Sheet1 (hidden)
F2: Ref | H2: Location | I2: Sample | J2: Exposure Data | O2: µg NO2
E3: no | G3: Trim | I3: Number | J3: Date On* | K3: Date Off* | L3: Time* (hr.) | M3: mg/m3 * | N3: ppb * | O3: on tube
A4: 6 Sandringham Road | B4: N100 | C4: =VLOOKUP($B4,$F$4:$O$198,8,FALSE) ->  | E4: =RIGHT(F4,3) ->  | F4: =RIGHT(G4,4) ->  | G4: =TRIM(H4) ->  | N4: 17.39958047 | O4: 1.688
A5: Redbridge School Fence | B5: N101 | C5: =VLOOKUP($B5,$F$4:$O$198,8,FALSE) ->  | N5: 20.34881994 | O5: 1.971
A6: 485 Millbrook Road | B6: N103 | N6: 20.32076908 | O6: 1.968
A7: Regents Park Junction | B7: N104 | N7: 14.5060242 | O7: 1.355
A8: 2 Romsey Road, Oakhill | B8: N106 | N8: 12.8425153 | O8: 1.2
A9: Cranbury Place | B9: N107 | N9: 22.99709084 | O9: 2.149
A10: 72 Bevois Valley | B10: N109 | N10: 26.25903037 | O10: 2.454
A11: Brintons Road 1 | B11: N110 | N11: 18.28403746 | O11: 1.711
A12: Brintons Road 2 | B12: N111 | N12: 19.31580536 | O12: 1.808
A13: Brintons Road 3 | B13: N112 | C13: =VLOOKUP($B13,$F$4:$O$198,8,FALSE) ->  | N13: 18.21088726 | O13: 1.705
A14: 206 Bitterne Road | B14: N113 | N14: 22.26961873 | O14: 2.085
A15: Bitterne Library | B15: N114 | N15: 17.00198555 | O15: 1.593
A16: 54 Redbridge Road | B16: N115 | N16: 14.65510118 | O16: 1.371
A17: 57 Redbridge Road | B17: N116 | N17: 14.76126227 | O17: 1.381
A18: Victoria Road (Lamp Post) | B18: N117 | N18: 18.71519761 | O18: 1.751
A19: 3 Rockstone Lane | B19: N118 | N19: 19.83648402 | O19: 1.856
A20: 6-9 Canute Road | B20: N120 | N20: 25.60660448 | O20: 2.396
A21: 151 Paynes Road | B21: N122 | N21: 17.50481532 | O21: 1.638
A22: 305 Millbrook Road | B22: N124 | N22: 18.12374491 | O22: 1.696
A23: Princes Court | B23: N125 | N23: 31.5760671 | O23: 2.955
A24: 107 St Andrews Road | B24: N126 | N24: 14.73476712 | O24: 1.379
A25: South West House | B25: N129 | N25: 18.98188859 | O25: 1.773
A26: 367A Millbrook Road | B26: N130 | N26: 15.72567578 | O26: 1.469
A27: 142 Romsey Road | B27: N131 | N27: 0.3318226725 | O27: 0.031
A28: 539 Millbrook Road | B28: N133 | N28: 17.01760085 | O28: 1.59
A29: 435 Millbrook Road West Ladbrokes | B29: N134 | N29: 16.53432776 | O29: 1.545
A30: 66 Burgess Road | B30: N138 | N30: 18.91895628 | O30: 1.768
A31: 5 Commercial Road | B31: N140 | N31: 17.93270423 | O31: 1.676
A32: Town Quay Road | B32: N141 | N32: 20.78746039 | O32: 1.943
A33: 102 Romsey Road | B33: N143 | N33: 18.69936805 | O33: 1.748
A34: 44B Burgess Road | B34: N149 | N34: 17.94875499 | O34: 1.678
A35: 134 Romsey Road | B35: N151 | N35: 21.81994139 | O35: 1.972
A36: M271 | B36: N152 | N36: 15.09210738 | O36: 1.364
A37: 24 Portsmouth Road | B37: N158 | N37: 17.75821872 | O37: 1.605
A38: 35 Portsmouth Road | B38: N159 | N38: 18.27777196 | O38: 1.652
A39: 263A Portswood Road | B39: N162 | N39: 16.60541997 | O39: 1.557
A40: 8 The Broadway | B40: N165 | N40: 16.87162759 | O40: 1.582
A41: 14 New Road | B41: N166 | N41: 18.27892158 | O41: 1.714
A42: 150 Romsey Road | B42: N169 | N42: 16.48922304 | O42: 1.544
A43: Union Castle House (2) | B43: N170 | N43: 19.08564304 | O43: 1.79
A44: 4 New Road | B44: N172 | N44: 14.70304495 | O44: 1.379
A45: 166A Bitterne Road West | B45: N174 | N45: 17.75196814 | O45: 1.665
A46: 95 Shirley High Street (Windsor Castle Pub) | B46: N177 | N46: 20.45956992 | O46: 1.919
A47: 2 Gover Road | B47: N178 | N47: 18.5557851 | O47: 2.104
A48: Redbridge AMS (A) | B48: N184A | N48: 19.23447668 | O48: 2.181
A49: Redbridge AMS (B) | B49: N184B | N49: 15.1156434 | O49: 1.714
A50: Redbridge AMS (C) | B50: N184C | N50: 18.07146398 | O50: 2.049
A51: Redbridge Causeway 1 | B51: N185 | N51: 18.59106226 | O51: 2.108
A52: Redbridge Causeway 2 | B52: N186 | N52: 18.37977552 | O52: 2.084
A53: Cumberland House | B53: N189 | N53: 13.22881789 | O53: 1.501
A54: Brunswick Apartments | B54: N190 | N54: 12.44793611 | O54: 1.454
A55: Marlands House | B55: N191 | N55: 12.44292324 | O55: 1.495
A56: Above Bar Street Bus Stop | B56: N192 | N56: 16.1216612 | O56: 1.828
A57: Above Bar Street Taxi Rank | B57: N193 | N57: 21.00754758 | O57: 2.382
A58: Vincents Walk Bus Stop | B58: N194 | N58: 17.7976905 | O58: 2.018
A59: Bargate Street | B59: N195 | N59: 15.06229995 | O59: 1.709
A60: 351 Winchester Road | B60: N197 | N60: 16.3050058 | O60: 1.85
A61: Onslow Road (A) | B61: N198A | N61: 16.0934814 | O61: 1.826
A62: Onslow Road (B) | B62: N198B | N62: 20.32438513 | O62: 2.306
A63: Onslow Road (C) | B63: N198C | N63: 18.41181289 | O63: 2.089
A64: Dorset Street/Charlottes Place Crossing | B64: N199 | N64: 14.73522308 | O64: 1.671
A65: Northam Bridge South | B65: N200 | N65: 15.81104427 | O65: 1.793
A66: 289 Millbrook Road West | B66: N201 | N66: 13.18321873 | O66: 1.495
A67: Redbridge Causeway North | B67: N202 | N67: 17.31895759 | O67: 1.964
A68: 6 Lodge Road | B68: N204 | C68: =VLOOKUP($B68,$F$4:$O$198,8,FALSE) ->  | E68: =RIGHT(F68,3) ->  | F68: =RIGHT(G68,4) ->  | G68: =TRIM(H68) ->  | N68: 17.23959373 | O68: 1.955
A69: Stags Gate, Lodge Road | B69: N205 | N69: 16.26959101 | O69: 1.845
A70: Charlottes Place | B70: N206 | N70: 15.46713422 | O70: 1.754
A71: 205 Waterhouse Lane | B71: N207 | N71: 16.88566169 | O71: 1.916
A72: Sherwood Close | B72: N208 | N72: 22.17416654 | O72: 2.522
A73: 40 Burgess Road | B73: N209 | N73: 16.67898252 | O73: 1.897
A74: 18 Burgess Road | B74: N210 | N74: 15.28131954 | O74: 1.738
A75: 4 Coniston Road | B75: N211 | N75: 14.48149994 | O75: 1.647
A76: 64 Burgess Road 2019 | B76: N214 | N76: 15.74732066 | O76: 1.791
A77: 73 Lodge Road | B77: N216 | N77: 14.63917022 | O77: 1.665
A78: 11 Saxon Road | B78: N217 | N78: 7.725977275 | O78: 0.877
A79: 112 St Denys Road | B79: N218 | N79: 12.87561646 | O79: 1.462
A80: 10 Regents Park Road | B80: N219 | N80: 17.43018362 | O80: 1.979
A81: 253 Basset Avenue (A) | B81: N220A | N81: 19.29658315 | O81: 2.2
A82: 253 Basset Avenue (B) | B82: N220B | N82: 14.77065729 | O82: 1.684
A83: 253 Basset Avenue © | B83: N220C | N83: 13.27982802 | O83: 1.514
N84: 15.16536012 | O84: 1.729
N85: 21.49287695 | O85: 2.45
N86: 12.70453959 | O86: 1.448
N87: 17.13184691 | O87: 1.953
N88: 20.18685376 | O88: 1.954
N89: 22.30471712 | O89: 2.159
N90: 11.12 | O90: 1.15
N91: 11.06 | O91: 1.15
N92: 16.75857519 | O92: 1.96
N93: 20.35050614 | O93: 2.38
N94: 17.47802522 | O94: 1.85
